Workbook

Sheet APLICATIU
B2: DEMANDA A COBRIR | H2: DISPONIBILITAT D'AIGUA | O2: DESINFECCIÓ | V2: ESTALVI D'AIGUA
H3: PLUVIOMETRE | K3: Veure plànol pluviòmetres
C4: DOMÈSTICA | I4: Sant Andreu | O4: DESINFECCIÓ AMB HIPOCLORIT
D5: RESIDENTS | O5: Veure esquema de desinfecció amb hipoclorit | Q5: Veure esquema de desinfecció per rajos UV | Y5: DEMANDA
D6: 2 | P6: CAPACITAT | Y6: =VLOOKUP(I4,'Balanç anual'!AN6:AS7,3,FALSE)+VLOOKUP(I4,'Balanç anual'!AN6:AS7,4,FALSE) -> 123.8650734
D7: OCUPACIÓ MITJANA ANUAL | H7: PRECIPITACIÓ | J7: SUPERFÍCIE DE RECOLLIDA | P7: =D10/2 -> 161
D8: 1 | H8: =IF(I4="Personalitzat",'Dades meteorològiques'!O7,IF(J22=0,(VLOOKUP(I4,'Aigua recollida'!P6:Q23,2,FALSE)),APLICATIU!J22)) -> 677 | J8: 70 | P8: litres | W8: ESTALVI D'AIGUA | Y8: VOLUM D'AIGUA ESTALVIAT
D9: CONSUM Fins a | H9: mm/any | J9: m² coberta | O9: VOLUM ESCOLLIT | P9: =IF(AND(P7=0,P7=0),0,IF(AND(P7>0,P7<=43),43,IF(AND(P7>43,P7<=94),94,IF(AND(P7>94,P7<=190),190,IF(AND(P7>190,P7<=297),297,IF(AND(P7>297,P7<=486),486,IF(AND(P7>486,P7<=905),905,IF(AND(P7>905,P7<=1002),1002,IF(AND(P7>1002,P7<=1050),1050,IF(AND(P7>1050,P7<=100000000000),1050)))))))))) -> 190
D10: =IF(D12=0,Consum!C16*D6,D12) -> 322 | O10: TEMPS DE CONTACTE (hores) | P10: =(P9/D10)*24 -> 14.16149068 | Q10: CABAL DE RECIRCULACIÓ | W10: =IFERROR(Y10/Y6,"-") -> 0.3636860558 | Y10: =IFERROR(VLOOKUP(I4,'Balanç anual'!AN6:AS7,6,FALSE),"-") -> 45.048
D11: litres/dia | O11: DOSIFICACIÓ DE CLOR | P11: 0.5 | Q11: =J29/24 -> 0.1583333333
C12: Personalitzat | D12: 0
O13: CONCENTRACIÓ HIPOCLORIT | P13: 40
C16: REG | H16: VOLUM RECOLLIT (Eficiència 80%) | W16: PRESSUPOST
C17: VEGETACIÓ | D17: TIPUS DE REG | E17: SUPERFÍCIE | H17: MITJÀ | O17: DOSI HIPOCLORIT | P17: =P9*P11/P13 -> 2.375 | W17: RECOL·LECCIÓ I EMMAGATZEMATGE D'AIGÜES PLUVIALS | AA17: =IFERROR(Pressupost!C69,0) -> 865.6
C18: Plantes de zona àrida | E18: 0
D19: Mànega | H19: =IF(J22=0,(VLOOKUP(I4,'Aigua recollida'!P6:R23,3,FALSE)),H8/365*J8*0.8) -> 103.8684932 | O19: GRUP DE PRESSIÓ
C20: Fruites | D20: Mànega | E20: 0 | P20: PLANTES EDIFICI | R20: 1 | W20: =Pressupost!B70 -> CLORACIÓ | AA20: =Pressupost!C70 -> 1223.27
C21: Arbres | D21: Mànega | E21: 0 | H21: litres/dia | O21: BANYS | R21: CUINA
C22: Arbustos | D22: Mànega | E22: 0 | H22: Personalitzar dades meteorològiques | O22: De quants lavabos disposa l'habitatge? | Q22: 1 | R22: Quantes piques hi ha a l'habitatge? | S22: 1 | W22: GRUP DE PRESSIÓ | AA22: =Pressupost!C71 -> 1623.5
C24: Flors | D24: Mànega | E24: 0 | H24: CAPACITAT DEL DIPÒSIT | O24: Quantes dutxes hi ha a l'habitatge? | Q24: 0 | R24: Es disposa de rentavaixelles? Quants? | S24: 0
C25: Gespa | D25: Aspersió | E25: 5 | H25: DIMENSIONAR PER | O25: Tens alguna banyera petita (menys de 1,40 m)? | Q25: 0 | W25: CANONADES, VÀLVULES I ACCESSORIS | AA25: =Pressupost!C72 -> 230.23
C26: Horta | D26: Mànega | E26: 0 | H26: =IF(D34>H19,"DISPONIBILITAT","DEMANDA") -> DISPONIBILITAT | O26: Tens alguna banyera gran (igual o més de 1,40 m)? | Q26: 0 | R26: ALTRES
D28: SUPERFÍCIE | E28: CONSUM Fins a | J28: VOLUM | O28: Quants bidets hi ha a l'habitatge? | Q28: 0 | R28: Hi ha algun safareig a l'habitatge? | S28: 1 | W28: MÀ D'OBRA | AA28: =Pressupost!C73 -> 400
D29: =IF(D31=0,SUM(E18:E26),D31) -> 5 | E29: =IF(D31=0,Consum!K19,D31*Consum!K2) -> 31.6172043 | J29: =IF(J35=0,IF(H26="DISPONIBILITAT",ROUNDUP(H19*'Aigua recollida'!H2/1000*1.2,1),IF(H26="DEMANDA",IF(D34<=H19,ROUNDUP(D34*'Aigua recollida'!H2/1000*1.2,1),"-"),"-")),J35) -> 3.8 | O29: De quants inodors disposa l'habitatge? Son amb cisterna o amb fluxor? | P29: Cisterna | Q29: 1 | R29: Quantes rentadores tens? | S29: 0
D30: m² | E30: litres/dia | J30: PRECIPITACIÓ UTLITZADA | P30: Fluxor | Q30: 0 | R30: L'habitatge disposa d'alguna aixeta aïllada (jardí, garatge…)? | S30: 1 | W30: TOTAL INSTAL·LACIÓ | AA30: =IFERROR(Pressupost!C74,0) -> 4342.6
C31: Personalitzat | D31: 0 | J31: =IF(AND(J29="-",0),0,IF(AND('Balanç anual'!AQ8>'Balanç anual'!AQ9),'Balanç anual'!AQ9/'Balanç anual'!AQ8,IF(AND('Balanç anual'!AQ9>'Balanç anual'!AQ8),"100","-"))) -> 0.100194357 | O31: CABAL A IMPULSAR | R31: PRESSIÓ | AF31: Desenvolupat per:
W32: IVA 21% | Z32: =IFERROR(Pressupost!C75,0) -> 911.946
D33: DEMANDA | H33: DEMANDA COBERTA | J33: DIES DE RESERVA AL JULIOL | O33: =Consum!H20 -> 1.653071019 | R33: =IF(1.2*(15+(R20*3)/0.8)<50,1.2*(15+(R20*3)/0.8),50) -> 22.5
D34: =D10+E29 -> 353.6172043 | H34: =IFERROR(Y10/Y6,"-") -> 0.3636860558 | J34: ='Balanç anual'!AP11 -> 3.167266712 | O34: m³/h | R34: m.c.a | W34: TOTAL INSTAL·LACIÓ IVA INCLÓS | AA34: =IFERROR(Pressupost!C76,0) -> 5254.546
D35: litres/dia | H35: Personalitzat | J35: 0 | O35: CANONADA PROPOSADA | R35: =CONCATENATE("PE40 DN",VLOOKUP(1,Consum!F25:H30,3,FALSE)," PN10") -> PE40 DN25 PN10
J36: 8

Sheet Xarxa pluviòmetres
A2: XARXA DE PLUVIÒMETRES DEL PARC DEL MONTNEGRE I CORREDOR | J2: Torna a l'aplicatiu

Sheet Esquema cloració
A2: ESQUEMA DEL SISTEMA D'APROFITAMENT D'AIGÜES PLUVIALS AMB DESINFECCIÓ PER CLORACIÓ | G2: Torna a l'aplicatiu

Sheet Esquema UV
A2: ESQUEMA DEL SISTEMA D'APROFITAMENT D'AIGÜES PLUVIALS AMB DESINFECCIÓ PER RAJOS UV | G2: Torna a l'aplicatiu

Sheet Dades meteorològiques
B2: DADES METEOROLÒGIQUES | N2: Torna a l'aplicatiu
B5: Dades de precipitació
B6: Mes | C6: Gener | D6: Febrer | E6: Març | F6: Abril | G6: Maig | H6: Juny | I6: Juliol | J6: Agost | K6: Setembre | L6: Octubre | M6: Novembre | N6: Desembre | O6: Total
B7: Pluviometria (mm) | C7: 0 | D7: 0 | E7: 0 | F7: 0 | G7: 0 | H7: 0 | I7: 0 | J7: 0 | K7: 0 | L7: 0 | M7: 0 | N7: 0 | O7: =SUM(C7:N7) -> 0
B9: Dades d'evapotranspiració
B10: Mes | C10: Gener | D10: Febrer | E10: Març | F10: Abril | G10: Maig | H10: Juny | I10: Juliol | J10: Agost | K10: Setembre | L10: Octubre | M10: Novembre | N10: Desembre | O10: Total
B11: Eto mitjana (mm/mes) | C11: 0 | D11: 0 | E11: 0 | F11: 0 | G11: 0 | H11: 0 | I11: 0 | J11: 0 | K11: 0 | L11: 0 | M11: 0 | N11: 0 | O11: =SUM(C11:N11) -> 0

Sheet Aigua recollida (hidden)
A2: Superfície coberta | B2: =APLICATIU!J8 -> 70 | F2: Dies de període sec | H2: 30
A3: Eficiència de recollida | B3: 0.8
P5: PLUVIOMETRE | Q5: PLUVIOMETRIA (mm) | R5: AIGUA RECOLLIDA (l/dia) | S5: AIGUA RECOLLIDA (m³/any)
A6: Personalitzat | P6: =A13 -> Sant Andreu | Q6: =N16 -> 677 | R6: =N18 -> 103.8684932 | S6: =N17 -> 37.912
B7: 31 | C7: 28 | D7: 31 | E7: 30 | F7: 31 | G7: 30 | H7: 31 | I7: 31 | J7: 30 | K7: 31 | L7: 30 | M7: 31 | N7: 365 | P7: =A6 -> Personalitzat | Q7: =N9 -> 0 | R7: =N11 -> 0 | S7: =N10 -> 0
A8: Mes | B8: Gener | C8: Febrer | D8: Març | E8: Abril | F8: Maig | G8: Juny | H8: Juliol | I8: Agost | J8: Setembre | K8: Octubre | L8: Novembre | M8: Desembre | N8: Total
A9: Pluviometria (mm) | B9: ='Dades meteorològiques'!C7 -> 0 | C9: ='Dades meteorològiques'!D7 -> 0 | D9: ='Dades meteorològiques'!E7 -> 0 | E9: ='Dades meteorològiques'!F7 -> 0 | F9: ='Dades meteorològiques'!G7 -> 0 | G9: ='Dades meteorològiques'!H7 -> 0 | H9: ='Dades meteorològiques'!I7 -> 0 | I9: ='Dades meteorològiques'!J7 -> 0 | J9: ='Dades meteorològiques'!K7 -> 0 | K9: ='Dades meteorològiques'!L7 -> 0 | L9: ='Dades meteorològiques'!M7 -> 0 | M9: ='Dades meteorològiques'!N7 -> 0 | N9: =SUM(B9:M9) -> 0
A10: Aigua recollida (m³) | B10: =B9*$B$2*$B$3/1000 -> 0 | C10: =C9*$B$2*$B$3/1000 -> 0 | D10: 0 | E10: 0 | F10: 0 | G10: 0 | H10: 0 | I10: 0 | J10: 0 | K10: 0 | L10: 0 | M10: 0 | N10: =SUM(B10:M10) -> 0
B11: =B10*1000/B7 -> 0 | C11: =C10*1000/C7 -> 0 | D11: 0 | E11: 0 | F11: 0 | G11: 0 | H11: 0 | I11: 0 | J11: 0 | K11: 0 | L11: 0 | M11: 0 | N11: 0
A13: =APLICATIU!I4 -> Sant Andreu
B14: 31 | C14: 28 | D14: 31 | E14: 30 | F14: 31 | G14: 30 | H14: 31 | I14: 31 | J14: 30 | K14: 31 | L14: 30 | M14: 31 | N14: 365
A15: Mes | B15: Gener | C15: Febrer | D15: Març | E15: Abril | F15: Maig | G15: Juny | H15: Juliol | I15: Agost | J15: Setembre | K15: Octubre | L15: Novembre | M15: Desembre | N15: Total
A16: Pluviometria (mm) | B16: =VLOOKUP(APLICATIU!$I$4,'Aigua recollida'!$A$22:$M$213,2,FALSE) -> 58 | C16: =VLOOKUP(APLICATIU!$I$4,'Aigua recollida'!$A$22:$M$213,3,FALSE) -> 63 | D16: =VLOOKUP(APLICATIU!$I$4,'Aigua recollida'!$A$22:$M$213,4,FALSE) -> 56 | E16: =VLOOKUP(APLICATIU!$I$4,'Aigua recollida'!$A$22:$M$213,5,FALSE) -> 59 | F16: =VLOOKUP(APLICATIU!$I$4,'Aigua recollida'!$A$22:$M$213,6,FALSE) -> 54 | G16: =VLOOKUP(APLICATIU!$I$4,'Aigua recollida'!$A$22:$M$213,7,FALSE) -> 30 | H16: =VLOOKUP(APLICATIU!$I$4,'Aigua recollida'!$A$22:$M$213,8,FALSE) -> 20 | I16: =VLOOKUP(APLICATIU!$I$4,'Aigua recollida'!$A$22:$M$213,9,FALSE) -> 46 | J16: =VLOOKUP(APLICATIU!$I$4,'Aigua recollida'!$A$22:$M$213,10,FALSE) -> 86 | K16: =VLOOKUP(APLICATIU!$I$4,'Aigua recollida'!$A$22:$M$213,11,FALSE) -> 91 | L16: =VLOOKUP(APLICATIU!$I$4,'Aigua recollida'!$A$22:$M$213,12,FALSE) -> 56 | M16: =VLOOKUP(APLICATIU!$I$4,'Aigua recollida'!$A$22:$M$213,13,FALSE) -> 58 | N16: =SUM(B16:M16) -> 677
A17: Aigua recollida (m³) | B17: =B16*$B$2*$B$3/1000 -> 3.248 | C17: =C16*$B$2*$B$3/1000 -> 3.528 | D17: 3.136 | E17: 3.304 | F17: 3.024 | G17: 1.68 | H17: 1.12 | I17: 2.576 | J17: 4.816 | K17: 5.096 | L17: 3.136 | M17: 3.248 | N17: =SUM(B17:M17) -> 37.912
B18: =B17*1000/B14 -> 104.7741935 | C18: =C17*1000/C14 -> 126 | D18: 101.1612903 | E18: 110.1333333 | F18: 97.5483871 | G18: 56 | H18: 36.12903226 | I18: 83.09677419 | J18: 160.5333333 | K18: 164.3870968 | L18: 104.5333333 | M18: 104.7741935 | N18: 103.8684932
A21: PLUVIOMETRIA | B21: Gener | C21: Febrer | D21: Març | E21: Abril | F21: Maig | G21: Juny | H21: Juliol | I21: Agost | J21: Setembre | K21: Octubre | L21: Novembre | M21: Desembre
A22: Sant Andreu | B22: 58 | C22: 63 | D22: 56 | E22: 59 | F22: 54 | G22: 30 | H22: 20 | I22: 46 | J22: 86 | K22: 91 | L22: 56 | M22: 58
A23: El Trull | B23: 74.61363636 | C23: 49.61363636 | D23: 45.18181818 | E23: 56.62272727 | F23: 54.60454545 | G23: 38.18181818 | H23: 28.90909091 | I23: 38.13636364 | J23: 62.22727273 | K23: 100.6363636 | L23: 67.36363636 | M23: 61.77272727
A24: Can Xerrac | B24: 48.04545455 | C24: 38.5 | D24: 41.09090909 | E24: 60.77272727 | F24: 37.63636364 | G24: 28.45454545 | H24: 23.31818182 | I24: 32.40909091 | J24: 69.59090909 | K24: 73.13636364 | L24: 50.36363636 | M24: 45.68181818
A25: Serra de l'Esquirol | B25: 64.01515152 | C25: 54.45454545 | D25: 59.77272727 | E25: 63.63636364 | F25: 56.77272727 | G25: 38.31818182 | H25: 24.04545455 | I25: 43.95454545 | J25: 84.09090909 | K25: 85.27272727 | L25: 68.45454545 | M25: 43.86363636
A26: Ca l'Agustí | B26: 71.53181818 | C26: 45.37727273 | D26: 59.13636364 | E26: 62.5 | F26: 53.22727273 | G26: 36.13636364 | H26: 20.04545455 | I26: 38.81818182 | J26: 70.40909091 | K26: 109.2727273 | L26: 61.27272727 | M26: 65.63636364
A27: Can Preses | B27: 76.63636364 | C27: 52.72727273 | D27: 68.04545455 | E27: 74.40909091 | F27: 61.5 | G27: 41.40909091 | H27: 20 | I27: 46.31818182 | J27: 77.81818182 | K27: 99 | L27: 82.86363636 | M27: 56.09090909
A28: ----------------------------
A29: Personalitzat | B29: ='Dades meteorològiques'!C7 -> 0 | C29: ='Dades meteorològiques'!D7 -> 0 | D29: ='Dades meteorològiques'!E7 -> 0 | E29: ='Dades meteorològiques'!F7 -> 0 | F29: ='Dades meteorològiques'!G7 -> 0 | G29: ='Dades meteorològiques'!H7 -> 0 | H29: ='Dades meteorològiques'!I7 -> 0 | I29: ='Dades meteorològiques'!J7 -> 0 | J29: ='Dades meteorològiques'!K7 -> 0 | K29: ='Dades meteorològiques'!L7 -> 0 | L29: ='Dades meteorològiques'!M7 -> 0 | M29: ='Dades meteorològiques'!N7 -> 0
A30: ----------------------------
A31: AltCamp_VY_Nulles | B31: 16.7 | C31: 85.6 | D31: 32.6 | E31: 80.5 | F31: 35.7 | G31: 22.2 | H31: 2.5 | I31: 42.2 | J31: 37.1 | K31: 220.5 | L31: 48.3 | M31: 7.7
A32: AltCamp_DQ_Vila-rodona | B32: 23.5 | C32: 72.2 | D32: 45.2 | E32: 90.4 | F32: 81.1 | G32: 40.4 | H32: 4.2 | I32: 41.8 | J32: 38.4 | K32: 198.3 | L32: 51.8 | M32: 6.5
A33: Alt Emporda_U1_Cabanes | B33: 24.4 | C33: 67.7 | D33: 41.6 | E33: 132.8 | F33: 54.7 | G33: 56 | H33: 11.9 | I33: 18.1 | J33: 25.8 | K33: 251.7 | L33: 162 | M33: 18.2
A34: Alt Emporda_W1_Castelló d'Empúries | B34: 19.8 | C34: 43.5 | D34: 44.1 | E34: 74.5 | F34: 57.1 | G34: 32.4 | H34: 12.4 | I34: 29.6 | J34: 4.1 | K34: 202.2 | L34: 125.9 | M34: 12.7
A35: Alt Emporda_vz_Espolia | B35: 53.6 | C35: 46.5 | D35: 41.9 | E35: 109.8 | F35: 82.1 | G35: 59.7 | H35: 21.4 | I35: 31.6 | J35: 17.7 | K35: 190.4 | L35: 177.4 | M35: 15
A36: Alt Emporda_Y5_Navata | B36: 38.9 | C36: 87.1 | D36: 31.9 | E36: 128.9 | F36: 110.5 | G36: 97.3 | H36: 35.1 | I36: 22.8 | J36: 36.4 | K36: 209.1 | L36: 265.5 | M36: 15.1
A37: Alt Emporda_J5_Panta de Darnius - Boadella | B37: 57 | C37: 81.1 | D37: 40.8 | E37: 152.5 | F37: 102.9 | G37: 68.3 | H37: 39.3 | I37: 27.7 | J37: 34.7 | K37: 297.9 | L37: 272.8 | M37: 16.3
A38: Alt Emporda_D6_Portbou | B38: 17.7 | C38: 58.7 | D38: 68.9 | E38: 75.6 | F38: 24.1 | G38: 28 | H38: 40.2 | I38: 60.8 | J38: 24.2 | K38: 231.8 | L38: 64.5 | M38: 29.8
A39: Alt Emporda_D4_Roses | B39: 21.8 | C39: 44.3 | D39: 48.9 | E39: 63.3 | F39: 33.1 | G39: 25.2 | H39: 22.4 | I39: 70.7 | J39: 2.3 | K39: 222.1 | L39: 81.3 | M39: 20.5
A40: Alt Emporda_U2_ Sant Pere Pescador | B40: 25.6 | C40: 61.1 | D40: 40.3 | E40: 79.6 | F40: 44.5 | G40: 45.5 | H40: 38.2 | I40: 49.2 | J40: 8.6 | K40: 211.5 | L40: 112.6 | M40: 21.7
A41: Alt Emporda_xz_Torroella de Fluvia | B41: 34 | C41: 67.8 | D41: 43.4 | E41: 71.6 | F41: 62.9 | G41: 46.6 | H41: 38.5 | I41: 18 | J41: 6.3 | K41: 191.3 | L41: 114.5 | M41: 20.2
A42: Alt Penedes_WP_Canaletes | B42: 63.3 | C42: 117.8 | D42: 72.8 | E42: 90.3 | F42: 96.3 | G42: 55.3 | H42: 11.2 | I42: 25.6 | J42: 41.9 | K42: 185.8 | L42: 72.6 | M42: 2.5
A43: Alt Penedes_DI_Font-rubí | B43: 63.4 | C43: 121.3 | D43: 65.9 | E43: 110.3 | F43: 88.9 | G43: 36.3 | H43: 0.9 | I43: 26.2 | J43: 36.4 | K43: 222.8 | L43: 61.8 | M43: 4.8
A44: Alt Penedes_W4_la Granada | B44: 61.5 | C44: 130.6 | D44: 60.9 | E44: 88.7 | F44: 48.4 | G44: 47.1 | H44: 13.9 | I44: 46.9 | J44: 31.2 | K44: 214.2 | L44: 94 | M44: 3.6
A45: Alt Penedes_U3_Sant Martí Sarroca | B45: 57 | C45: 130.1 | D45: 48.3 | E45: 83.7 | F45: 39.7 | G45: 29.7 | H45: 9.4 | I45: 48 | J45: 38.7 | K45: 252 | L45: 60.7 | M45: 4.5
A46: Alt Penedes_WY_Sant Sadurní d'Anoia | B46: 50.3 | C46: 96.1 | D46: 70.3 | E46: 82.7 | F46: 82.5 | G46: 47 | H46: 10.8 | I46: 49.8 | J46: 67.9 | K46: 181 | L46: 92 | M46: 3.3
A47: Alt Urgell_Y4_ Alinya | B47: 91.7 | C47: 131.5 | D47: 129.7 | E47: 132.9 | F47: 169 | G47: 95.8 | H47: 26.8 | I47: 119.9 | J47: 43 | K47: 250.6 | L47: 84.5 | M47: 6.6
A48: Alt Urgell_CD_la Seu d'Urgell - Bellestar | B48: 58.9 | C48: 73.7 | D48: 55.4 | E48: 96.7 | F48: 143.7 | G48: 40.8 | H48: 51 | I48: 33.8 | J48: 63 | K48: 125.7 | L48: 52 | M48: 6
A49: Alt Urgell_W5_Oliana | B49: 56.4 | C49: 137.5 | D49: 109.1 | E49: 140.5 | F49: 161.6 | G49: 52.9 | H49: 21.7 | I49: 74.7 | J49: 25.5 | K49: 169.5 | L49: 90.5 | M49: 10.3
A50: Alt Urgell_CJ_Organya | B50: 66.5 | C50: 90.3 | D50: 82 | E50: 107.1 | F50: 185.4 | G50: 112.9 | H50: 15.3 | I50: 78.4 | J50: 84.6 | K50: 155.5 | L50: 65.5 | M50: 6.8
A51: Alta Ribagorça_Z2_Boí (2.535 m) | B51: 113.6 | C51: 183 | D51: 229.8 | E51: 254.9 | F51: 179.9 | G51: 104.3 | H51: 42.5 | I51: 148.7 | J51: 212.3 | K51: 181 | L51: 99 | M51: 8.4
A52: Alta Ribagorça_CT_el Pont de Suert | B52: 46.4 | C52: 103.7 | D52: 130.7 | E52: 231.2 | F52: 202.7 | G52: 88.7 | H52: 44.6 | I52: 64.9 | J52: 112.5 | K52: 145.2 | L52: 91.3 | M52: 12.8
A53: Anoia_CE_els Hostalets de Pierola | B53: 69.1 | C53: 87.3 | D53: 56.3 | E53: 92.7 | F53: 79 | G53: 94.7 | H53: 7.3 | I53: 27.6 | J53: 76 | K53: 187.2 | L53: 108.5 | M53: 2.3
A54: Anoia_XB_la Llacuna | B54: 53.2 | C54: 129.8 | D54: 63.1 | E54: 129 | F54: 123.6 | G54: 63.3 | H54: 2.7 | I54: 19.3 | J54: 33.3 | K54: 263.5 | L54: 79.3 | M54: 3.8
A55: Anoia_XA_la Panadella | B55: 42.4 | C55: 60.6 | D55: 59.5 | E55: 88.7 | F55: 66.8 | G55: 44 | H55: 27.3 | I55: 98.2 | J55: 38.3 | K55: 196.2 | L55: 63.6 | M55: 5.8
A56: Anoia_H1_ ódena | B56: 65.3 | C56: 100.5 | D56: 45.6 | E56: 78.8 | F56: 68.6 | G56: 82.5 | H56: 13.9 | I56: 91.5 | J56: 41.2 | K56: 191.8 | L56: 74.6 | M56: 4.3
A57: Bages_WW_Artés | B57: 85.7 | C57: 85.9 | D57: 67.4 | E57: 70.5 | F57: 194.7 | G57: 84.6 | H57: 12.4 | I57: 93.1 | J57: 9.6 | K57: 181.2 | L57: 88 | M57: 5.4
A58: Bages_MQ_Cardona | B58: 76.8 | C58: 84.9 | D58: 59.6 | E58: 84 | F58: 71.7 | G58: 37 | H58: 71.4 | I58: 64.9 | J58: 42 | K58: 170.2 | L58: 88 | M58: 6.1
A59: Bages_U4_ Castellnou de Bages | B59: 83.8 | C59: 88 | D59: 54.1 | E59: 66.1 | F59: 113.6 | G59: 98 | H59: 29.8 | I59: 80.6 | J59: 24 | K59: 172.6 | L59: 89.6 | M59: 7
A60: Bages_R1_el Pont de Vilomara | B60: 68.2 | C60: 87.8 | D60: 63.2 | E60: 84.6 | F60: 183.7 | G60: 57.4 | H60: 10.4 | I60: 20.5 | J60: 17.5 | K60: 162 | L60: 116.1 | M60: 4
A61: Bages_WN_Montserrat - Sant Dimes | B61: 80.3 | C61: 80.4 | D61: 67.2 | E61: 106.3 | F61: 124.8 | G61: 69.8 | H61: 26.4 | I61: 44.2 | J61: 56.9 | K61: 171.8 | L61: 145.7 | M61: 3.6
A62: Bages_CL_Sant Salvador de Guardiola | B62: 84 | C62: 110.1 | D62: 58.4 | E62: 90.1 | F62: 118.6 | G62: 43.2 | H62: 20.9 | I62: 34.2 | J62: 52 | K62: 194.7 | L62: 129.3 | M62: 3.1
A63: Baix Camp_YF_Mont-roig del Camp | B63: 10.8 | C63: 116.6 | D63: 22.5 | E63: 61 | F63: 15.2 | G63: 17.8 | H63: 6.9 | I63: 27.4 | J63: 71.6 | K63: 197.1 | L63: 70.4 | M63: 3.9
A64: Baix Camp_XR_Prades | B64: 52.4 | C64: 100.7 | D64: 67.6 | E64: 155.6 | F64: 127.4 | G64: 17.5 | H64: 5.7 | I64: 25.6 | J64: 46.7 | K64: 314.4 | L64: 93.1 | M64: 14
A65: Baix Camp_W6_Riudoms | B65: 16.5 | C65: 101.4 | D65: 32.5 | E65: 64.8 | F65: 55.8 | G65: 10.7 | H65: 5.2 | I65: 102.2 | J65: 26.2 | K65: 287.8 | L65: 69.7 | M65: 4.9
A66: Baix Camp_U6_ Vinyolsi els Ares | B66: 12 | C66: 88.3 | D66: 19.7 | E66: 62.3 | F66: 19.8 | G66: 9.3 | H66: 5.2 | I66: 100.1 | J66: 29.8 | K66: 275.6 | L66: 55.3 | M66: 5.1
A67: Baix Ebre_U7_Aldover | B67: 9.8 | C67: 42.4 | D67: 25.8 | E67: 58.8 | F67: 25.2 | G67: 7.3 | H67: 35.2 | I67: 91.6 | J67: 42.5 | K67: 234.6 | L67: 115.4 | M67: 8.2
A68: Baix Ebre_DB_el Perelló | B68: 11.8 | C68: 59.1 | D68: 18.3 | E68: 45.3 | F68: 52.1 | G68: 3.5 | H68: 18.7 | I68: 21.3 | J68: 41.9 | K68: 190.2 | L68: 59 | M68: 6.2
A69: Baix Ebre_U9_l'Aldea | B69: 10.7 | C69: 53.5 | D69: 22.4 | E69: 39.8 | F69: 106.5 | G69: 9.1 | H69: 14.1 | I69: 15 | J69: 28.5 | K69: 226.8 | L69: 164.7 | M69: 8
A70: Baix Ebre_UA_l'Amet llade Mar | B70: 9.6 | C70: 68.9 | D70: 27 | E70: 44.3 | F70: 50 | G70: 5.5 | H70: 12.8 | I70: 14.9 | J70: 61.5 | K70: 220.3 | L70: 52.8 | M70: 7.5
A71: Baix Ebre_X5_PN deis Ports | B71: 71.4 | C71: 67.7 | D71: 45 | E71: 158.1 | F71: 89.1 | G71: 51.8 | H71: 51.3 | I71: 50.7 | J71: 82.9 | K71: 462.4 | L71: 301.1 | M71: 51
A72: Baix Emporda_DO_Castell d'Aro | B72: 24.8 | C72: 64.6 | D72: 38.4 | E72: 118.2 | F72: 55.1 | G72: 47.7 | H72: 22.6 | I72: 18.5 | J72: 3.5 | K72: 221.9 | L72: 149.2 | M72: 11.6
A73: Baix Emporda_DF_la Bisbal d'Emporda | B73: 35.2 | C73: 77 | D73: 47 | E73: 129.1 | F73: 61.4 | G73: 10.7 | H73: 51.2 | I73: 17.2 | J73: 5.6 | K73: 189.7 | L73: 327.3 | M73: 15
A74: Baix Emporda_UB_la Tallada d'Emporda | B74: 25.5 | C74: 72.3 | D74: 52.6 | E74: 86.4 | F74: 46.4 | G74: 17.9 | H74: 47.8 | I74: 23.4 | J74: 16.9 | K74: 158.9 | L74: 232.9 | M74: 14.7
A75: Baix Emporda_uc_Monells | B75: 31.2 | C75: 72.3 | D75: 44.1 | E75: 114.3 | F75: 46.6 | G75: 28.7 | H75: 60 | I75: 27.2 | J75: 11 | K75: 161 | L75: 293.7 | M75: 15.4
A76: Baix Emporda_UE_Torroella de Montgrí | B76: 50 | C76: 71.6 | D76: 61.8 | E76: 71.5 | F76: 53.6 | G76: 24.7 | H76: 46.2 | I76: 15.6 | J76: 15 | K76: 161.6 | L76: 56.6 | M76: 27.2
A77: Baix Llobregat_XL_el Pral de Llobregat | B77: 52.2 | C77: 117 | D77: 89.8 | E77: 53.2 | F77: 36.9 | G77: 37.2 | H77: 9.4 | I77: 85 | J77: 87.1 | K77: 171.1 | L77: 132.5 | M77: 4.4
A78: Baix Llobregat_UF_PN del Garraf - el Rascler | B78: 46.9 | C78: 154 | D78: 64.9 | E78: 47.6 | F78: 25.9 | G78: 73.2 | H78: 6 | I78: 60.5 | J78: 115.6 | K78: 173.7 | L78: 96.3 | M78: 7
A79: Baix Llobregat_Y9_Port de Barcelona - ZAL Prat | B79: 48.2 | C79: 96.4 | D79: 74.2 | E79: 39 | F79: 36.1 | G79: 32.6 | H79: 19 | I79: 85.4 | J79: 82.3 | K79: 184.6 | L79: 97.5 | M79: 4.5
A80: Baix Llobregat_D3_Vallirana | B80: 101.5 | C80: 169.2 | D80: 93.9 | E80: 83.7 | F80: 31.6 | G80: 99.1 | H80: 20.2 | I80: 123.7 | J80: 56.9 | K80: 180.1 | L80: 174.2 | M80: 3.8
A81: Baix Llobregat_UG_Viladecans | B81: 48.6 | C81: 139.2 | D81: 63.2 | E81: 41.3 | F81: 41.4 | G81: 43.2 | H81: 5.9 | I81: 83.5 | J81: 47.5 | K81: 145.8 | L81: 176.9 | M81: 4.1
A82: Baix Penedés_WZ_Cunit | B82: 43.5 | C82: 125.2 | D82: 44.1 | E82: 41.1 | F82: 14.3 | G82: 42.9 | H82: 2.4 | I82: 113.5 | J82: 108.3 | K82: 250.8 | L82: 69.6 | M82: 3.9
A83: Baix Penedés_UH_el Montmell | B83: 36.2 | C83: 118.1 | D83: 73.9 | E83: 103.6 | F83: 67.9 | G83: 38.5 | H83: 1.9 | I83: 76.3 | J83: 34.5 | K83: 328.6 | L83: 70.2 | M83: 6.1
A84: Baix Penedés_D9_el Vendrell | B84: 26.7 | C84: 111.2 | D84: 42.5 | E84: 66.6 | F84: 19.2 | G84: 32.8 | H84: 28.4 | I84: 89.9 | J84: 96.8 | K84: 239.8 | L84: 71.9 | M84: 4.2
A85: Baix Penedés_WO_la Bisbal del Penedés | B85: 19.2 | C85: 98.6 | D85: 45.1 | E85: 76.1 | F85: 21.7 | G85: 47.8 | H85: 9 | I85: 60.5 | J85: 65.6 | K85: 247.8 | L85: 59.6 | M85: 4.5
A86: Barcelonés_WU_Badalona - Museu | B86: 71.7 | C86: 82.7 | D86: 75.8 | E86: 34.1 | F86: 40.8 | G86: 34 | H86: 57.1 | I86: 30.9 | J86: 116.2 | K86: 151.2 | L86: 108.6 | M86: 3.3
A87: Barcelonés_X4_Barcelona - el Raval | B87: 55.4 | C87: 89.6 | D87: 79.1 | E87: 48.6 | F87: 87.6 | G87: 12.9 | H87: 24.7 | I87: 96.2 | J87: 154.8 | K87: 187.9 | L87: 168.8 | M87: 4.6
A88: Barcelonés_D5_Barcelona - Observatori Fabra | B88: 62.5 | C88: 104 | D88: 113.5 | E88: 58.6 | F88: 53.6 | G88: 52.7 | H88: 51.4 | I88: 36.2 | J88: 43.6 | K88: 195.6 | L88: 207.6 | M88: 4.9
A89: Barcelonés_X8_Barcelona - Zona Universitaria | B89: 55.6 | C89: 108.7 | D89: 104.3 | E89: 53.8 | F89: 41.8 | G89: 52.5 | H89: 12.4 | I89: 47.3 | J89: 93.9 | K89: 217.1 | L89: 128 | M89: 4.4
A90: Bergueda_MS_Castellar de n'Hug - el Clot del Moro | B90: 74.6 | C90: 111.7 | D90: 85.2 | E90: 163.2 | F90: 152.6 | G90: 71.2 | H90: 133.7 | I90: 265.9 | J90: 72.2 | K90: 311.6 | L90: 88.6 | M90: 8.6
A91: Bergueda_UI_Gisclareny | B91: 119.1 | C91: 145.9 | D91: 124.9 | E91: 184.8 | F91: 220.7 | G91: 132.3 | H91: 106.8 | I91: 192.8 | J91: 108.9 | K91: 321.4 | L91: 97.1 | M91: 12.7
A92: Bergueda_WV_Guardiola de Bergueda | B92: 86.8 | C92: 132.7 | D92: 70.9 | E92: 136.8 | F92: 169.6 | G92: 102.4 | H92: 122.6 | I92: 201.6 | J92: 44.1 | K92: 277.6 | L92: 95.9 | M92: 11.3
A93: Bergueda_CR_laQuar | B93: 92.6 | C93: 142.2 | D93: 59.2 | E93: 107.1 | F93: 189.1 | G93: 82.5 | H93: 73.6 | I93: 194.3 | J93: 79.1 | K93: 206.5 | L93: 71.5 | M93: 5.7
A94: Bergueda_WM_Santuari de Queralt | B94: 95.9 | C94: 151.8 | D94: 86.8 | E94: 105.3 | F94: 128.5 | G94: 89 | H94: 57.4 | I94: 172.6 | J94: 71.6 | K94: 241.7 | L94: 86.2 | M94: 8.8
A95: Cerdanya_z9_Cadí Nord (2.143 m) - Prat d'Aguiló | B95: 151.5 | C95: 153.6 | D95: 159.2 | E95: 206.7 | F95: 178 | G95: 144.2 | H95: 94.7 | I95: 219.3 | J95: 115.9 | K95: 345.7 | L95: 106.3 | M95: 11.5
A96: Cerdanya_DP_Das - Aerodrom | B96: 66.6 | C96: 65.3 | D96: 38 | E96: 109.4 | F96: 83.5 | G96: 81.8 | H96: 71.3 | I96: 85.7 | J96: 33.4 | K96: 177.7 | L96: 49.2 | M96: 7.9
A97: Cerdanya_Z3_Malniu (2.230 m) | B97: 146 | C97: 157.4 | D97: 89.8 | E97: 107.3 | F97: 142.5 | G97: 115.4 | H97: 133.5 | I97: 142.8 | J97: 99.9 | K97: 204.8 | L97: 71.9 | M97: 15.8
A98: Cerdanya_YA_Puigcerdil | B98: 69.7 | C98: 80 | D98: 43 | E98: 104.6 | F98: 107.7 | G98: 37.4 | H98: 75.2 | I98: 75.3 | J98: 44.6 | K98: 141.6 | L98: 39.9 | M98: 9.2
A99: Conca de B._W8_Blancafort | B99: 22 | C99: 68.9 | D99: 65.4 | E99: 103.1 | F99: 93.5 | G99: 16.7 | H99: 5.3 | I99: 27.7 | J99: 23.2 | K99: 246.9 | L99: 117.9 | M99: 8.2
A100: Conca de B._CW_l'Espluga de Francolí | B100: 33.3 | C100: 94.5 | D100: 48.8 | E100: 186.6 | F100: 108.6 | G100: 13.6 | H100: 3.6 | I100: 35.7 | J100: 9.3 | K100: 212.9 | L100: 87 | M100: 9.6
A101: Conca de B._UJ_Santa Coloma de Queralt | B101: 46.8 | C101: 67.1 | D101: 84.3 | E101: 81.7 | F101: 71.6 | G101: 54.4 | H101: 5.9 | I101: 42.4 | J101: 10.1 | K101: 206 | L101: 63.4 | M101: 5.8
A102: Garraf_XU_Canyelles | B102: 43 | C102: 139.6 | D102: 62.6 | E102: 75.5 | F102: 21.7 | G102: 56.4 | H102: 6.6 | I102: 67.9 | J102: 74.8 | K102: 222.4 | L102: 84.1 | M102: 4.6
A103: Garraf_UK_Sant Pere de Ribes - PN del Garraf | B103: 47.4 | C103: 131 | D103: 71.9 | E103: 66.4 | F103: 21.9 | G103: 119.4 | H103: 6.3 | I103: 67.9 | J103: 77.1 | K103: 235.4 | L103: 71.3 | M103: 4.9
A104: Garrigues_UM_la Granadella | B104: 29.9 | C104: 42 | D104: 38.5 | E104: 48.3 | F104: 61.2 | G104: 10.5 | H104: 12 | I104: 19.8 | J104: 8.7 | K104: 145.7 | L104: 98.3 | M104: 9.7
A105: Garrigues_VD_les Borges Blanques | B105: 37.4 | C105: 48.2 | D105: 41.6 | E105: 74.1 | F105: 55.8 | G105: 3 | H105: 30.6 | I105: 14.8 | J105: 15.5 | K105: 129.5 | L105: 68.8 | M105: 16
A106: Garrotxa_W9_la Vall d'en Bas | B106: 66.9 | C106: 152.4 | D106: 44.2 | E106: 161.9 | F106: 140.2 | G106: 69.5 | H106: 99.3 | I106: 65.4 | J106: 85.2 | K106: 230 | L106: 156.8 | M106: 7.5
A107: Garrotxa_YB_Olot | B107: 53.8 | C107: 137.9 | D107: 45.8 | E107: 160.5 | F107: 139.1 | G107: 83.4 | H107: 62.5 | I107: 64.5 | J107: 67 | K107: 209.5 | L107: 130 | M107: 6.8
A108: Girones_UN_Cassa de la Selva | B108: 38.8 | C108: 61.5 | D108: 69.4 | E108: 135.1 | F108: 60.2 | G108: 27.5 | H108: 23.3 | I108: 67.3 | J108: 19 | K108: 155.6 | L108: 257.4 | M108: 19.1
A109: Girones_uo_Fornells de la Selva | B109: 32.4 | C109: 75.3 | D109: 49.9 | E109: 100.4 | F109: 78.8 | G109: 42.1 | H109: 70.5 | I109: 107.1 | J109: 7 | K109: 278.3 | L109: 141.1 | M109: 13.2
A110: Girones_XJ_Girona | B110: 33.5 | C110: 78 | D110: 44.9 | E110: 133.9 | F110: 93.8 | G110: 39.8 | H110: 94.7 | I110: 100.3 | J110: 37.4 | K110: 214.1 | L110: 135.4 | M110: 13
A111: Maresme_UP_Cabrils | B111: 73 | C111: 71.4 | D111: 63.5 | E111: 75.7 | F111: 88.5 | G111: 50.2 | H111: 33.8 | I111: 73.1 | J111: 78.1 | K111: 216.2 | L111: 97.9 | M111: 2.1
A112: Maresme_UQ_Dosrius - PN Montnegre Corredor | B112: 86.1 | C112: 92.6 | D112: 58.9 | E112: 104.6 | F112: 66.1 | G112: 15.7 | H112: 15.2 | I112: 44.6 | J112: 54 | K112: 293.8 | L112: 160.8 | M112: 5
A113: Maresme_WT_Malgrat de Mar | B113: 28 | C113: 64.6 | D113: 28.6 | E113: 64.1 | F113: 65.6 | G113: 35 | H113: 12 | I113: 24.7 | J113: 20.5 | K113: 154 | L113: 223.4 | M113: 6.5
A114: Montsia_US_Alcanar | B114: 14.5 | C114: 51.2 | D114: 18.1 | E114: 38.3 | F114: 28.2 | G114: 66.8 | H114: 9.8 | I114: 22.9 | J114: 72.2 | K114: 340.1 | L114: 94.9 | M114: 10.3
A115: Montsia_UU_Amposta | B115: 7.8 | C115: 49.7 | D115: 15.8 | E115: 40.5 | F115: 35.4 | G115: 15.8 | H115: 11.9 | I115: 23.7 | J115: 67.5 | K115: 198.6 | L115: 91.6 | M115: 6.2
A116: Montsia_UW_els Alfacs | B116: 12.2 | C116: 59 | D116: 15.3 | E116: 31.8 | F116: 11.7 | G116: 43.2 | H116: 6.4 | I116: 16.8 | J116: 73.5 | K116: 258 | L116: 44 | M116: 5.7
A117: Montsia_DL_lila de Buda | B117: 15 | C117: 89.4 | D117: 13.5 | E117: 15.5 | F117: 18 | G117: 26.5 | H117: 10.7 | I117: 36.7 | J117: 83 | K117: 158.1 | L117: 47.9 | M117: 4.6
A118: Montsia_C9_Mas de Barberans | B118: 12.6 | C118: 48.8 | D118: 22.5 | E118: 61.7 | F118: 41 | G118: 46.1 | H118: 38.4 | I118: 20.1 | J118: 81.6 | K118: 298.5 | L118: 226.5 | M118: 7.6
A119: Montsia_UX_Ulldecona - els Valentins | B119: 11.8 | C119: 39.5 | D119: 18.9 | E119: 52.3 | F119: 44.3 | G119: 45 | H119: 23.7 | I119: 27.4 | J119: 102.4 | K119: 287.4 | L119: 192.1 | M119: 8.8
A120: Noguera_WB_Albesa | B120: 27.8 | C120: 35.3 | D120: 48.4 | E120: 82.5 | F120: 72.1 | G120: 8.6 | H120: 8.5 | I120: 22.7 | J120: 1.2 | K120: 135.1 | L120: 74.5 | M120: 14.4
A121: Noguera_WG_Algerri | B121: 31 | C121: 35.1 | D121: 48.2 | E121: 78.6 | F121: 83 | G121: 9.7 | H121: 16.5 | I121: 20.6 | J121: 0.3 | K121: 130.1 | L121: 69.5 | M121: 13.4
A122: Noguera_X6_Baldomar | B122: 33.2 | C122: 98.1 | D122: 77.1 | E122: 121.7 | F122: 129.6 | G122: 13 | H122: 10.5 | I122: 76.8 | J122: 12.9 | K122: 118.4 | L122: 84.5 | M122: 9.3
A123: Noguera_WX_Camarasa | B123: 33.3 | C123: 75.4 | D123: 63.7 | E123: 117.5 | F123: 138.8 | G123: 20.4 | H123: 7.9 | I123: 31.7 | J123: 7.2 | K123: 168.6 | L123: 70.8 | M123: 11.5
A124: Noguera_WA_Oliola | B124: 30.8 | C124: 80.8 | D124: 71.2 | E124: 104.9 | F124: 95 | G124: 11.8 | H124: 7.8 | I124: 43.5 | J124: 5.3 | K124: 107.7 | L124: 91.7 | M124: 11.9
A125: Noguera_UY_Os de Balaguer - el Monestir d'Avellanes | B125: 36.9 | C125: 97.2 | D125: 71.7 | E125: 124.6 | F125: 159.1 | G125: 34.5 | H125: 9.4 | I125: 52.7 | J125: 2.4 | K125: 170.1 | L125: 74.8 | M125: 13.9
A126: Noguera_V1_Vallfogona de Balaguer | B126: 29.4 | C126: 56.6 | D126: 55.4 | E126: 105.1 | F126: 101.7 | G126: 13.3 | H126: 4.4 | I126: 10.7 | J126: 0.3 | K126: 130.2 | L126: 54.6 | M126: 12.6
A127: Noguera_CQ_Vilanova de Meia | B127: 45.7 | C127: 158.8 | D127: 113.9 | E127: 166.6 | F127: 194.5 | G127: 66.8 | H127: 18.4 | I127: 117.9 | J127: 13.6 | K127: 152.2 | L127: 107.5 | M127: 7.7
A128: Osona_V3_Gurb | B128: 63.8 | C128: 106.2 | D128: 39.6 | E128: 82.2 | F128: 152.3 | G128: 87.3 | H128: 54.9 | I128: 249.8 | J128: 68.3 | K128: 201.2 | L128: 78.8 | M128: 8.4
A129: Osona_V4_Montesquiu | B129: 82.2 | C129: 131.1 | D129: 44.5 | E129: 119.6 | F129: 154.5 | G129: 84.8 | H129: 87.9 | I129: 201.5 | J129: 82.9 | K129: 226.2 | L129: 89.2 | M129: 6.1
A130: Osona_CY_Muntanyola | B130: 80.8 | C130: 125.2 | D130: 66.6 | E130: 110.8 | F130: 135.4 | G130: 57.9 | H130: 41.8 | I130: 112 | J130: 10.8 | K130: 246 | L130: 83.6 | M130: 6.9
A131: Osona_ce_Orís | B131: 64.1 | C131: 123.3 | D131: 42.7 | E131: 109.4 | F131: 132 | G131: 69.1 | H131: 91.8 | I131: 198.4 | J131: 190.8 | K131: 231.1 | L131: 81.3 | M131: 6.3
A132: Osona_KE_Panta de Sau | B132: 56.9 | C132: 108.5 | D132: 31.4 | E132: 93.1 | F132: 141 | G132: 41 | H132: 79.6 | I132: 142 | J132: 51.9 | K132: 222.7 | L132: 103.3 | M132: 8.4
A133: Osona_V5_Perafita | B133: 73.6 | C133: 92 | D133: 45.6 | E133: 131 | F133: 89 | G133: 65.2 | H133: 92.8 | I133: 156.3 | J133: 57.1 | K133: 180.8 | L133: 69.6 | M133: 7.9
A134: Osona_xo_Vic | B134: 69.5 | C134: 118.6 | D134: 44.2 | E134: 86.8 | F134: 157.8 | G134: 69.9 | H134: 40.7 | I134: 232 | J134: 58.8 | K134: 167.9 | L134: 85.6 | M134: 7.6
A135: Osona_WS_Viladrau | B135: 91.4 | C135: 187.1 | D135: 81.7 | E135: 185.7 | F135: 144.4 | G135: 56.3 | H135: 45.1 | I135: 122.1 | J135: 17.4 | K135: 430.7 | L135: 200.2 | M135: 10.3
A136: Pallars Jussà_YC_la Pobla de Segur | B136: 28.4 | C136: 85 | D136: 86.2 | E136: 144.1 | F136: 124.5 | G136: 76 | H136: 23.3 | I136: 86.9 | J136: 52.6 | K136: 148.8 | L136: 88.7 | M136: 10.2
A137: Pallars Jussà_WQ_Montsec d'Ares (1.572 m) | B137: 54.3 | C137: 104.9 | D137: 123.7 | E137: 157.3 | F137: 149.8 | G137: 110.9 | H137: 10.8 | I137: 70 | J137: 57.2 | K137: 170.7 | L137: 86.3 | M137: 10.2
A138: Pallars Jussà_CP_Sant Roma d'Abella | B138: 41.2 | C138: 80 | D138: 68.1 | E138: 114 | F138: 131.8 | G138: 116.3 | H138: 15.4 | I138: 66 | J138: 27.2 | K138: 131.7 | L138: 81.7 | M138: 7.1
A139: Pallars Jussà_XQ_Tremp | B139: 33 | C139: 90.6 | D139: 79.4 | E139: 115 | F139: 121.4 | G139: 57.3 | H139: 16.3 | I139: 64.5 | J139: 56.6 | K139: 122.6 | L139: 69.4 | M139: 15.4
A140: Pallars Sobira_Z1_Bonaigua (2.266 m) | B140: 197.1 | C140: 204.1 | D140: 163.4 | E140: 276.4 | F140: 186.6 | G140: 103.2 | H140: 70.6 | I140: 80.2 | J140: 69 | K140: 219.9 | L140: 79.8 | M140: 31.4
A141: Pallars Sobira_Z5_Certascan (2.400 m) | B141: 229.4 | C141: 295.4 | D141: 157.3 | E141: 118.2 | F141: 298 | G141: 133.8 | H141: 61.6 | I141: 119.1 | J141: 93.8 | K141: 157.1 | L141: 81.1 | M141: 61.9
A142: Pallars Sobira_Z7_Espot (2.519 m) | B142: 160.2 | C142: 193.5 | D142: 289.7 | E142: 322.3 | F142: 177.9 | G142: 91.4 | H142: 113.2 | I142: 295.9 | J142: 109.5 | K142: 229.1 | L142: 124.6 | M142: 24.7
A143: Pallars Sobira_ZB_Salória (2.451 m) | B143: 143.1 | C143: 115.6 | D143: 152.6 | E143: 167.3 | F143: 120.5 | G143: 61.1 | H143: 82.8 | I143: 150.1 | J143: 41.6 | K143: 234.6 | L143: 113.7 | M143: 13.6
A144: Pallars Sobira_XH_Sort | B144: 47.4 | C144: 67.9 | D144: 81.9 | E144: 113.8 | F144: 114.9 | G144: 79.8 | H144: 83.1 | I144: 112.2 | J144: 74.3 | K144: 107.6 | L144: 68.1 | M144: 10.1
A145: Pla de l'Estany_DJ_Banyoles | B145: 56 | C145: 79.1 | D145: 27 | E145: 139.6 | F145: 112.3 | G145: 93.3 | H145: 49.4 | I145: 77.9 | J145: 57.1 | K145: 240.4 | L145: 231.6 | M145: 12.5
A146: Pla d'Urgell_C6_Castellnou de Seana | B146: 29.9 | C146: 44.8 | D146: 51.8 | E146: 103.2 | F146: 59.5 | G146: 3.9 | H146: 12.1 | I146: 6.7 | J146: 0.7 | K146: 126.4 | L146: 58.8 | M146: 14
A147: Pla d'Urgell_V8_el Poal | B147: 32 | C147: 43.3 | D147: 44.8 | E147: 74.5 | F147: 80.1 | G147: 4.3 | H147: 10 | I147: 11.4 | J147: 0.2 | K147: 124.2 | L147: 66.6 | M147: 14.2
A148: Pla d'Urgell_WC_Golmés | B148: 25.6 | C148: 46.1 | D148: 48.3 | E148: 87 | F148: 53.9 | G148: 3.7 | H148: 14.8 | I148: 7.7 | J148: 0.6 | K148: 117.6 | L148: 62 | M148: 16.1
A149: Pla d'Urgell_XI_Mollerussa | B149: 27.2 | C149: 44 | D149: 48.5 | E149: 77.2 | F149: 53.8 | G149: 3 | H149: 21.3 | I149: 11.6 | J149: 0.9 | K149: 132.1 | L149: 70.3 | M149: 16.5
A150: Priorat_WJ_el Masroig | B150: 15.5 | C150: 41.1 | D150: 33.3 | E150: 55.4 | F150: 92.1 | G150: 1.9 | H150: 7.2 | I150: 15.5 | J150: 3.6 | K150: 178 | L150: 59 | M150: 7.3
A151: Priorat_X1_Falset | B151: 21.7 | C151: 87.9 | D151: 41.6 | E151: 88.1 | F151: 131.6 | G151: 2.3 | H151: 9.3 | I151: 43.7 | J151: 12.8 | K151: 243 | L151: 137.9 | M151: 7.9
A152: Priorat_D1_Margalef | B152: 47.1 | C152: 49.5 | D152: 39.4 | E152: 100.8 | F152: 70.8 | G152: 1.2 | H152: 5.1 | I152: 18.1 | J152: 28.6 | K152: 194.1 | L152: 82.7 | M152: 8.3
A153: Priorat_MR_Panta de Siurana | B153: 28.2 | C153: 78.8 | D153: 52.7 | E153: 106.6 | F153: 116 | G153: 17.5 | H153: 6.8 | I153: 36.4 | J153: 65.4 | K153: 230.9 | L153: 80.1 | M153: 6
A154: Priorat_WR_Torroja del Priorat | B154: 25.8 | C154: 61.4 | D154: 45.4 | E154: 85 | F154: 97.2 | G154: 38.2 | H154: 17.8 | I154: 15.8 | J154: 18.8 | K154: 185.8 | L154: 101.5 | M154: 6.6
A155: Priorat_XD_Ulldemolins | B155: 44.9 | C155: 60.7 | D155: 66.6 | E155: 108.7 | F155: 137.5 | G155: 22.3 | H155: 10.1 | I155: 31.9 | J155: 58.4 | K155: 224.3 | L155: 75.8 | M155: 8.7
A156: Ribera d'Ebre_VA_Aseó | B156: 35.6 | C156: 37.9 | D156: 32.1 | E156: 82.3 | F156: 100.6 | G156: 2.4 | H156: 8.8 | I156: 7.3 | J156: 3.3 | K156: 164.3 | L156: 72.6 | M156: 10.1
A157: Ribera d'Ebre_VB_Benissanet | B157: 15.1 | C157: 38.1 | D157: 30.1 | E157: 50 | F157: 87 | G157: 3.5 | H157: 7.4 | I157: 5.5 | J157: 10.3 | K157: 201.1 | L157: 69.8 | M157: 11.6
A158: Ribera d'Ebre_ve_Panta de Riba-roja | B158: 26.9 | C158: 31.7 | D158: 23.8 | E158: 55 | F158: 52.3 | G158: 5.9 | H158: 11.4 | I158: 4.1 | J158: 13.1 | K158: 137.9 | L158: 50.5 | M158: 9.5
A159: Ribera d'Ebre_Y6_Tivissa | B159: 20.1 | C159: 69.2 | D159: 40 | E159: 73.3 | F159: 165.9 | G159: 2.8 | H159: 11.2 | I159: 83.7 | J159: 26.7 | K159: 257.4 | L159: 97 | M159: 12
A160: Ribera d'Ebre_D7_Vinebre | B160: 24 | C160: 42.8 | D160: 26 | E160: 74.2 | F160: 71.6 | G160: 2.1 | H160: 9.7 | I160: 16.2 | J160: 4.7 | K160: 149 | L160: 67.6 | M160: 7.9
A161: Ripolles_CG_Molió- Fabert | B161: 86.4 | C161: 122.8 | D161: 61.8 | E161: 192.9 | F161: 102.2 | G161: 110.6 | H161: 134.7 | I161: 169.2 | J161: 125.8 | K161: 350.4 | L161: 134.1 | M161: 7.3
A162: Ripolles_DG_Núria (1.971 m) | B162: 110.5 | C162: 150.2 | D162: 127.1 | E162: 193.4 | F162: 174.6 | G162: 62.1 | H162: 75.6 | I162: 133.6 | J162: 56.6 | K162: 369.1 | L162: 121.6 | M162: 14.2
A163: Ripolles_M6_Sant Joan de les Abadesses | B163: 62.6 | C163: 123 | D163: 43.2 | E163: 109.5 | F163: 126.1 | G163: 72.6 | H163: 153.7 | I163: 180.1 | J163: 88.3 | K163: 275.9 | L163: 94.9 | M163: 6
A164: Ripolles_CI_Sant Pau de Segúries | B164: 87.1 | C164: 144.6 | D164: 54.1 | E164: 173.7 | F164: 159.6 | G164: 114.1 | H164: 97.6 | I164: 114.7 | J164: 165.3 | K164: 321.9 | L164: 151.7 | M164: 4.8
A165: Ripolles_zc_Ulldeter (2.41O m) | B165: 154.8 | C165: 168.2 | D165: 150.1 | E165: 191.7 | F165: 171.1 | G165: 53.8 | H165: 104.2 | I165: 113.9 | J165: 61.2 | K165: 309.5 | L165: 73.1 | M165: 18
A166: Segarra_C8_Cervera | B166: 31.6 | C166: 28.4 | D166: 68.9 | E166: 51 | F166: 100 | G166: 33 | H166: 7.1 | I166: 35.7 | J166: 42.1 | K166: 123.9 | L166: 60.3 | M166: 7.3
A167: Segarra_VD_el Canós | B167: 28.9 | C167: 32 | D167: 57.6 | E167: 72 | F167: 82.2 | G167: 13.7 | H167: 16.2 | I167: 34.5 | J167: 12.8 | K167: 104.9 | L167: 71.1 | M167: 9.8
A168: Segarra_YE_Massoteres | B168: 44.9 | C168: 52.5 | D168: 75.1 | E168: 77 | F168: 122.6 | G168: 31.5 | H168: 6.4 | I168: 28.7 | J168: 18.9 | K168: 137.4 | L168: 81.6 | M168: 12
A169: Segria_VE_Aitona | B169: 23.4 | C169: 37.1 | D169: 32.2 | E169: 61 | F169: 58.6 | G169: 5.5 | H169: 21.7 | I169: 4.2 | J169: 2.2 | K169: 109.1 | L169: 52.1 | M169: 12.9
A170: Segria_XY_Alcarras | B170: 26.5 | C170: 44.9 | D170: 36.9 | E170: 83.7 | F170: 66.7 | G170: 28.1 | H170: 36.4 | I170: 18.9 | J170: 13.3 | K170: 135.8 | L170: 81.4 | M170: 16.3
A171: Segria_WK_Alfarras | B171: 29.9 | C171: 43.2 | D171: 54.3 | E171: 97.7 | F171: 71.1 | G171: 28.2 | H171: 8.6 | I171: 51.8 | J171: 0.9 | K171: 136 | L171: 63.5 | M171: 17.3
A172: Segria_X3_Alguaire | B172: 25.5 | C172: 32.1 | D172: 51.6 | E172: 86.4 | F172: 67 | G172: 7.4 | H172: 12.1 | I172: 46.6 | J172: 1.6 | K172: 141 | L172: 65.2 | M172: 16.2
A173: Segria_XM_els Alamús | B173: 33.3 | C173: 38 | D173: 46.3 | E173: 64.8 | F173: 61.8 | G173: 3.9 | H173: 19.3 | I173: 34.9 | J173: 3 | K173: 129.8 | L173: 68 | M173: 17.2
A174: Segria_VH_Gimenells | B174: 22.9 | C174: 22.3 | D174: 32.2 | E174: 78.6 | F174: 60 | G174: 12.8 | H174: 23 | I174: 33.7 | J174: 19.3 | K174: 98.8 | L174: 44.2 | M174: 13.1
A175: Segria_WI_Maials | B175: 27.1 | C175: 45.1 | D175: 41 | E175: 85.1 | F175: 38.3 | G175: 9.8 | H175: 33.5 | I175: 6.9 | J175: 3.3 | K175: 114.5 | L175: 62 | M175: 11.7
A176: Segria_VK_Raimat | B176: 21.3 | C176: 27.3 | D176: 43.9 | E176: 91.4 | F176: 48.3 | G176: 16.5 | H176: 27.8 | I176: 23 | J176: 6.9 | K176: 108.8 | L176: 55.4 | M176: 14.4
A177: Segria_XN_Seros | B177: 26.7 | C177: 39 | D177: 31.2 | E177: 58.9 | F177: 48.9 | G177: 6.1 | H177: 14.5 | I177: 6.9 | J177: 1.5 | K177: 102.7 | L177: 44.9 | M177: 10.5
A178: Segria_X7_Torres de Segre | B178: 18.1 | C178: 34.2 | D178: 26.5 | E178: 66.9 | F178: 42 | G178: 5.3 | H178: 30.2 | I178: 7.5 | J178: 32.5 | K178: 91.5 | L178: 53.6 | M178: 13.5
A179: Segria_VM_Vilanova de Segria | B179: 22.5 | C179: 35.4 | D179: 36.7 | E179: 79.3 | F179: 60.8 | G179: 10.4 | H179: 15.6 | I179: 51.7 | J179: 3.3 | K179: 134.4 | L179: 61.9 | M179: 16.5
A180: Selva_DN_Angles | B180: 32.4 | C180: 133.8 | D180: 50.7 | E180: 142.9 | F180: 163.2 | G180: 76 | H180: 80.2 | I180: 70 | J180: 33.4 | K180: 309 | L180: 188.1 | M180: 8.3
A181: Selva_KP_Fogars de la Selva | B181: 40.2 | C181: 98 | D181: 44.3 | E181: 80.2 | F181: 75 | G181: 37.3 | H181: 53.8 | I181: 59.7 | J181: 53.6 | K181: 241.7 | L181: 232.4 | M181: 10.7
A182: Selva_xs_Santa Coloma de Farners | B182: 32.8 | C182: 108.2 | D182: 65.4 | E182: 95.7 | F182: 104.5 | G182: 45.2 | H182: 79.7 | I182: 72.8 | J182: 10.2 | K182: 270.7 | L182: 161.9 | M182: 9.7
A183: Selva_VN_Vilobí d'Onyar | B183: 35.9 | C183: 95.3 | D183: 64 | E183: 100.2 | F183: 80.6 | G183: 22.7 | H183: 39.6 | I183: 49.8 | J183: 5.7 | K183: 200.4 | L183: 168.6 | M183: 9.7
A184: Solsones_Z8_el Port del Comte (2.316 m) | B184: 67.8 | C184: 138.3 | D184: 189.2 | E184: 176.3 | F184: 201.9 | G184: 137.2 | H184: 40.3 | I184: 209.2 | J184: 78.8 | K184: 258.9 | L184: 132.3 | M184: 25.7
A185: Solsones_MV_Guixers - Valls | B185: 95.9 | C185: 120 | D185: 105.7 | E185: 119.5 | F185: 147.4 | G185: 74.8 | H185: 30.1 | I185: 136.8 | J185: 36.3 | K185: 238.7 | L185: 75.7 | M185: 8.5
A186: Solsones_vo_Lladurs | B186: 56.1 | C186: 89.9 | D186: 86 | E186: 106.6 | F186: 136.3 | G186: 98.6 | H186: 16.8 | I186: 98.2 | J186: 38.8 | K186: 191.3 | L186: 96.7 | M186: 10.4
A187: Solsones_MW_Naves | B187: 84.6 | C187: 108 | D187: 71 | E187: 103.8 | F187: 123 | G187: 32.8 | H187: 47 | I187: 111.2 | J187: 25.9 | K187: 167.9 | L187: 82.7 | M187: 8.6
A188: Solsones_VP_Pinós | B188: 84.8 | C188: 89.8 | D188: 65.1 | E188: 99.5 | F188: 78.6 | G188: 86.4 | H188: 28.3 | I188: 47.3 | J188: 24.7 | K188: 184.7 | L188: 100.7 | M188: 8.7
A189: Solsones_XT_Solsona | B189: 75.5 | C189: 97.2 | D189: 85 | E189: 98.5 | F189: 111.9 | G189: 35.4 | H189: 29.6 | I189: 62.4 | J189: 50.8 | K189: 241.4 | L189: 108.7 | M189: 6.1
A190: Tarragones_VQ_Constantí | B190: 13.5 | C190: 94.2 | D190: 28.3 | E190: 67.3 | F190: 40.1 | G190: 6.9 | H190: 4.7 | I190: 94.6 | J190: 87.3 | K190: 336.5 | L190: 67.1 | M190: 7.9
A191: Tarragones_XE_Tarragona - Complex Educatiu | B191: 18.1 | C191: 83.1 | D191: 22.4 | E191: 45.6 | F191: 3 | G191: 9.3 | H191: 2 | I191: 77.5 | J191: 44.1 | K191: 386.5 | L191: 66 | M191: 5.2
A192: Tarragones_DK_Torredembarra | B192: 17.9 | C192: 102.3 | D192: 40.8 | E192: 45.5 | F192: 9.3 | G192: 13.6 | H192: 5.6 | I192: 120.6 | J192: 74.1 | K192: 200 | L192: 42.2 | M192: 5.8
A193: Terra Alta_WD_Batea | B193: 39.4 | C193: 36.4 | D193: 32 | E193: 67.5 | F193: 60 | G193: 11.2 | H193: 26.4 | I193: 1.5 | J193: 20.3 | K193: 166.9 | L193: 63.5 | M193: 12.3
A194: Terra Alta_XP_Gandesa | B194: 26.2 | C194: 46.6 | D194: 33.2 | E194: 64.3 | F194: 48 | G194: 12 | H194: 11 | I194: 8.6 | J194: 7.7 | K194: 161.3 | L194: 71.1 | M194: 11.4
A195: Terra Alta_D8_Horta de Sant Joan | B195: 114.1 | C195: 43 | D195: 37.8 | E195: 79.1 | F195: 62.8 | G195: 16.3 | H195: 29.6 | I195: 6.9 | J195: 2.2 | K195: 231.1 | L195: 80.7 | M195: 12.4
A196: Urgell_WL_Sant Martí de Riucorb | B196: 26.1 | C196: 28.1 | D196: 55 | E196: 88.1 | F196: 41.5 | G196: 14.6 | H196: 13.4 | I196: 3.8 | J196: 4.8 | K196: 123.9 | L196: 51.9 | M196: 12.8
A197: Urgell_C7_Tarrega | B197: 30.1 | C197: 34.5 | D197: 70.3 | E197: 79.6 | F197: 82.1 | G197: 21.6 | H197: 16.9 | I197: 19 | J197: 14.9 | K197: 103.5 | L197: 65.8 | M197: 13.5
A198: Urgell_XX_Tornabous | B198: 26.7 | C198: 34.6 | D198: 59.5 | E198: 86.1 | F198: 45.9 | G198: 8.4 | H198: 10 | I198: 7.1 | J198: 6 | K198: 108.7 | L198: 62.1 | M198: 12.5
A199: Val d'Aran_vs_Lac Redan (2.247 m) | B199: 197 | C199: 351.4 | D199: 191.4 | E199: 107.6 | F199: 255.9 | G199: 104.7 | H199: 93 | I199: 125.9 | J199: 93.1 | K199: 192 | L199: 86.7 | M199: 83.8
A200: Val d'Aran_Z6_ Sasseuva (2.228 m) | B200: 133.1 | C200: 206.1 | D200: 123.9 | E200: 92.4 | F200: 188.9 | G200: 82.7 | H200: 141.7 | I200: 31.9 | J200: 47.9 | K200: 116.5 | L200: 51.9 | M200: 44.8
A201: Val d'Aran_cu_Vielha | B201: 123 | C201: 192.3 | D201: 112.7 | E201: 160.3 | F201: 155.4 | G201: 83.9 | H201: 58.7 | I201: 96.8 | J201: 67.8 | K201: 116.1 | L201: 43 | M201: 37.1
A202: Valles Occ._XC_Castellbisbal | B202: 86.3 | C202: 106.4 | D202: 100 | E202: 85.5 | F202: 27.8 | G202: 98.2 | H202: 41.4 | I202: 75.2 | J202: 70.4 | K202: 150.3 | L202: 228.4 | M202: 2.8
A203: Valles Occ._vu_Rellinars | B203: 81.1 | C203: 101.6 | D203: 83.9 | E203: 113.9 | F203: 78.7 | G203: 80.4 | H203: 29.7 | I203: 41.5 | J203: 28.7 | K203: 178.3 | L203: 129.8 | M203: 5.1
A204: Valles Occ._XF_Sabadell - Pare Agrari | B204: 72.7 | C204: 85.5 | D204: 86.1 | E204: 91.2 | F204: 44.9 | G204: 70.5 | H204: 37.6 | I204: 77.5 | J204: 39.4 | K204: 154.6 | L204: 156.2 | M204: 3.2
A205: Valles Occ._XV_Sant Cugat del Valles - CAR | B205: 70.4 | C205: 89 | D205: 89 | E205: 77.4 | F205: 44.2 | G205: 61.4 | H205: 24.6 | I205: 35.1 | J205: 31.3 | K205: 174.5 | L205: 158.2 | M205: 3.8
... 8 more rows

Sheet Pluviometres_CAT (hidden)
A1: COMARCA | B1: CODI | C1: Població | D1: Nom per llista | E1: GEN | F1: FEB | G1: MAR | H1: ABR | I1: MAi | J1: JUN | K1: JUL | L1: AGO | M1: SET | N1: OCT | O1: NOV | P1: DES | Q1: ANY
A2: AltCamp | B2: VY | C2: Nulles | D2: AltCamp_VY_Nulles | E2: 16.7 | F2: 85.6 | G2: 32.6 | H2: 80.5 | I2: 35.7 | J2: 22.2 | K2: 2.5 | L2: 42.2 | M2: 37.1 | N2: 220.5 | O2: 48.3 | P2: 7.7 | Q2: 631.6
A3: AltCamp | B3: DQ | C3: Vila-rodona | D3: AltCamp_DQ_Vila-rodona | E3: 23.5 | F3: 72.2 | G3: 45.2 | H3: 90.4 | I3: 81.1 | J3: 40.4 | K3: 4.2 | L3: 41.8 | M3: 38.4 | N3: 198.3 | O3: 51.8 | P3: 6.5 | Q3: 693.8
A4: Alt Emporda | B4: U1 | C4: Cabanes | D4: Alt Emporda_U1_Cabanes | E4: 24.4 | F4: 67.7 | G4: 41.6 | H4: 132.8 | I4: 54.7 | J4: 56 | K4: 11.9 | L4: 18.1 | M4: 25.8 | N4: 251.7 | O4: 162 | P4: 18.2 | Q4: 864.9
A5: Alt Emporda | B5: W1 | C5: Castelló d'Empúries | D5: Alt Emporda_W1_Castelló d'Empúries | E5: 19.8 | F5: 43.5 | G5: 44.1 | H5: 74.5 | I5: 57.1 | J5: 32.4 | K5: 12.4 | L5: 29.6 | M5: 4.1 | N5: 202.2 | O5: 125.9 | P5: 12.7 | Q5: 658.3
A6: Alt Emporda | B6: vz | C6: Espolia | D6: Alt Emporda_vz_Espolia | E6: 53.6 | F6: 46.5 | G6: 41.9 | H6: 109.8 | I6: 82.1 | J6: 59.7 | K6: 21.4 | L6: 31.6 | M6: 17.7 | N6: 190.4 | O6: 177.4 | P6: 15 | Q6: 847.1
A7: Alt Emporda | B7: Y5 | C7: Navata | D7: Alt Emporda_Y5_Navata | E7: 38.9 | F7: 87.1 | G7: 31.9 | H7: 128.9 | I7: 110.5 | J7: 97.3 | K7: 35.1 | L7: 22.8 | M7: 36.4 | N7: 209.1 | O7: 265.5 | P7: 15.1 | Q7: 1078.6
A8: Alt Emporda | B8: J5 | C8: Panta de Darnius - Boadella | D8: Alt Emporda_J5_Panta de Darnius - Boadella | E8: 57 | F8: 81.1 | G8: 40.8 | H8: 152.5 | I8: 102.9 | J8: 68.3 | K8: 39.3 | L8: 27.7 | M8: 34.7 | N8: 297.9 | O8: 272.8 | P8: 16.3 | Q8: 1191.3
A9: Alt Emporda | B9: D6 | C9: Portbou | D9: Alt Emporda_D6_Portbou | E9: 17.7 | F9: 58.7 | G9: 68.9 | H9: 75.6 | I9: 24.1 | J9: 28 | K9: 40.2 | L9: 60.8 | M9: 24.2 | N9: 231.8 | O9: 64.5 | P9: 29.8 | Q9: 724.3
A10: Alt Emporda | B10: D4 | C10: Roses | D10: Alt Emporda_D4_Roses | E10: 21.8 | F10: 44.3 | G10: 48.9 | H10: 63.3 | I10: 33.1 | J10: 25.2 | K10: 22.4 | L10: 70.7 | M10: 2.3 | N10: 222.1 | O10: 81.3 | P10: 20.5 | Q10: 655.9
A11: Alt Emporda | B11: U2 | C11: Sant Pere Pescador | D11: Alt Emporda_U2_ Sant Pere Pescador | E11: 25.6 | F11: 61.1 | G11: 40.3 | H11: 79.6 | I11: 44.5 | J11: 45.5 | K11: 38.2 | L11: 49.2 | M11: 8.6 | N11: 211.5 | O11: 112.6 | P11: 21.7 | Q11: 738.4
A12: Alt Emporda | B12: xz | C12: Torroella de Fluvia | D12: Alt Emporda_xz_Torroella de Fluvia | E12: 34 | F12: 67.8 | G12: 43.4 | H12: 71.6 | I12: 62.9 | J12: 46.6 | K12: 38.5 | L12: 18 | M12: 6.3 | N12: 191.3 | O12: 114.5 | P12: 20.2 | Q12: 715.1
A13: Alt Penedes | B13: WP | C13: Canaletes | D13: Alt Penedes_WP_Canaletes | E13: 63.3 | F13: 117.8 | G13: 72.8 | H13: 90.3 | I13: 96.3 | J13: 55.3 | K13: 11.2 | L13: 25.6 | M13: 41.9 | N13: 185.8 | O13: 72.6 | P13: 2.5 | Q13: 835.4
A14: Alt Penedes | B14: DI | C14: Font-rubí | D14: Alt Penedes_DI_Font-rubí | E14: 63.4 | F14: 121.3 | G14: 65.9 | H14: 110.3 | I14: 88.9 | J14: 36.3 | K14: 0.9 | L14: 26.2 | M14: 36.4 | N14: 222.8 | O14: 61.8 | P14: 4.8 | Q14: 839
A15: Alt Penedes | B15: W4 | C15: la Granada | D15: Alt Penedes_W4_la Granada | E15: 61.5 | F15: 130.6 | G15: 60.9 | H15: 88.7 | I15: 48.4 | J15: 47.1 | K15: 13.9 | L15: 46.9 | M15: 31.2 | N15: 214.2 | O15: 94 | P15: 3.6 | Q15: 841
A16: Alt Penedes | B16: U3 | C16: Sant Martí Sarroca | D16: Alt Penedes_U3_Sant Martí Sarroca | E16: 57 | F16: 130.1 | G16: 48.3 | H16: 83.7 | I16: 39.7 | J16: 29.7 | K16: 9.4 | L16: 48 | M16: 38.7 | N16: 252 | O16: 60.7 | P16: 4.5 | Q16: 801.8
A17: Alt Penedes | B17: WY | C17: Sant Sadurní d'Anoia | D17: Alt Penedes_WY_Sant Sadurní d'Anoia | E17: 50.3 | F17: 96.1 | G17: 70.3 | H17: 82.7 | I17: 82.5 | J17: 47 | K17: 10.8 | L17: 49.8 | M17: 67.9 | N17: 181 | O17: 92 | P17: 3.3 | Q17: 833.7
A18: Alt Urgell | B18: Y4 | C18: Alinya | D18: Alt Urgell_Y4_ Alinya | E18: 91.7 | F18: 131.5 | G18: 129.7 | H18: 132.9 | I18: 169 | J18: 95.8 | K18: 26.8 | L18: 119.9 | M18: 43 | N18: 250.6 | O18: 84.5 | P18: 6.6 | Q18: 1282
A19: Alt Urgell | B19: CD | C19: la Seu d'Urgell - Bellestar | D19: Alt Urgell_CD_la Seu d'Urgell - Bellestar | E19: 58.9 | F19: 73.7 | G19: 55.4 | H19: 96.7 | I19: 143.7 | J19: 40.8 | K19: 51 | L19: 33.8 | M19: 63 | N19: 125.7 | O19: 52 | P19: 6 | Q19: 800.7
A20: Alt Urgell | B20: W5 | C20: Oliana | D20: Alt Urgell_W5_Oliana | E20: 56.4 | F20: 137.5 | G20: 109.1 | H20: 140.5 | I20: 161.6 | J20: 52.9 | K20: 21.7 | L20: 74.7 | M20: 25.5 | N20: 169.5 | O20: 90.5 | P20: 10.3 | Q20: 1050.2
A21: Alt Urgell | B21: CJ | C21: Organya | D21: Alt Urgell_CJ_Organya | E21: 66.5 | F21: 90.3 | G21: 82 | H21: 107.1 | I21: 185.4 | J21: 112.9 | K21: 15.3 | L21: 78.4 | M21: 84.6 | N21: 155.5 | O21: 65.5 | P21: 6.8 | Q21: 1050.3
A22: Alta Ribagorça | B22: Z2 | C22: Boí (2.535 m) | D22: Alta Ribagorça_Z2_Boí (2.535 m) | E22: 113.6 | F22: 183 | G22: 229.8 | H22: 254.9 | I22: 179.9 | J22: 104.3 | K22: 42.5 | L22: 148.7 | M22: 212.3 | N22: 181 | O22: 99 | P22: 8.4 | Q22: 1757.4
A23: Alta Ribagorça | B23: CT | C23: el Pont de Suert | D23: Alta Ribagorça_CT_el Pont de Suert | E23: 46.4 | F23: 103.7 | G23: 130.7 | H23: 231.2 | I23: 202.7 | J23: 88.7 | K23: 44.6 | L23: 64.9 | M23: 112.5 | N23: 145.2 | O23: 91.3 | P23: 12.8 | Q23: 1274.7
A24: Anoia | B24: CE | C24: els Hostalets de Pierola | D24: Anoia_CE_els Hostalets de Pierola | E24: 69.1 | F24: 87.3 | G24: 56.3 | H24: 92.7 | I24: 79 | J24: 94.7 | K24: 7.3 | L24: 27.6 | M24: 76 | N24: 187.2 | O24: 108.5 | P24: 2.3 | Q24: 888
A25: Anoia | B25: XB | C25: la Llacuna | D25: Anoia_XB_la Llacuna | E25: 53.2 | F25: 129.8 | G25: 63.1 | H25: 129 | I25: 123.6 | J25: 63.3 | K25: 2.7 | L25: 19.3 | M25: 33.3 | N25: 263.5 | O25: 79.3 | P25: 3.8 | Q25: 963.9
A26: Anoia | B26: XA | C26: la Panadella | D26: Anoia_XA_la Panadella | E26: 42.4 | F26: 60.6 | G26: 59.5 | H26: 88.7 | I26: 66.8 | J26: 44 | K26: 27.3 | L26: 98.2 | M26: 38.3 | N26: 196.2 | O26: 63.6 | P26: 5.8 | Q26: 791.4
A27: Anoia | B27: H1 | C27: ódena | D27: Anoia_H1_ ódena | E27: 65.3 | F27: 100.5 | G27: 45.6 | H27: 78.8 | I27: 68.6 | J27: 82.5 | K27: 13.9 | L27: 91.5 | M27: 41.2 | N27: 191.8 | O27: 74.6 | P27: 4.3 | Q27: 858.6
A28: Bages | B28: WW | C28: Artés | D28: Bages_WW_Artés | E28: 85.7 | F28: 85.9 | G28: 67.4 | H28: 70.5 | I28: 194.7 | J28: 84.6 | K28: 12.4 | L28: 93.1 | M28: 9.6 | N28: 181.2 | O28: 88 | P28: 5.4 | Q28: 978.5
A29: Bages | B29: MQ | C29: Cardona | D29: Bages_MQ_Cardona | E29: 76.8 | F29: 84.9 | G29: 59.6 | H29: 84 | I29: 71.7 | J29: 37 | K29: 71.4 | L29: 64.9 | M29: 42 | N29: 170.2 | O29: 88 | P29: 6.1 | Q29: 856.6
A30: Bages | B30: U4 | C30: Castellnou de Bages | D30: Bages_U4_ Castellnou de Bages | E30: 83.8 | F30: 88 | G30: 54.1 | H30: 66.1 | I30: 113.6 | J30: 98 | K30: 29.8 | L30: 80.6 | M30: 24 | N30: 172.6 | O30: 89.6 | P30: 7 | Q30: 907.2
A31: Bages | B31: R1 | C31: el Pont de Vilomara | D31: Bages_R1_el Pont de Vilomara | E31: 68.2 | F31: 87.8 | G31: 63.2 | H31: 84.6 | I31: 183.7 | J31: 57.4 | K31: 10.4 | L31: 20.5 | M31: 17.5 | N31: 162 | O31: 116.1 | P31: 4 | Q31: 875.4
A32: Bages | B32: WN | C32: Montserrat - Sant Dimes | D32: Bages_WN_Montserrat - Sant Dimes | E32: 80.3 | F32: 80.4 | G32: 67.2 | H32: 106.3 | I32: 124.8 | J32: 69.8 | K32: 26.4 | L32: 44.2 | M32: 56.9 | N32: 171.8 | O32: 145.7 | P32: 3.6 | Q32: 977.4
A33: Bages | B33: CL | C33: Sant Salvador de Guardiola | D33: Bages_CL_Sant Salvador de Guardiola | E33: 84 | F33: 110.1 | G33: 58.4 | H33: 90.1 | I33: 118.6 | J33: 43.2 | K33: 20.9 | L33: 34.2 | M33: 52 | N33: 194.7 | O33: 129.3 | P33: 3.1 | Q33: 938.6
A34: Baix Camp | B34: YF | C34: Mont-roig del Camp | D34: Baix Camp_YF_Mont-roig del Camp | E34: 10.8 | F34: 116.6 | G34: 22.5 | H34: 61 | I34: 15.2 | J34: 17.8 | K34: 6.9 | L34: 27.4 | M34: 71.6 | N34: 197.1 | O34: 70.4 | P34: 3.9 | Q34: 621.2
A35: Baix Camp | B35: XR | C35: Prades | D35: Baix Camp_XR_Prades | E35: 52.4 | F35: 100.7 | G35: 67.6 | H35: 155.6 | I35: 127.4 | J35: 17.5 | K35: 5.7 | L35: 25.6 | M35: 46.7 | N35: 314.4 | O35: 93.1 | P35: 14 | Q35: 1020.7
A36: Baix Camp | B36: W6 | C36: Riudoms | D36: Baix Camp_W6_Riudoms | E36: 16.5 | F36: 101.4 | G36: 32.5 | H36: 64.8 | I36: 55.8 | J36: 10.7 | K36: 5.2 | L36: 102.2 | M36: 26.2 | N36: 287.8 | O36: 69.7 | P36: 4.9 | Q36: 777.7
A37: Baix Camp | B37: U6 | C37: Vinyolsi els Ares | D37: Baix Camp_U6_ Vinyolsi els Ares | E37: 12 | F37: 88.3 | G37: 19.7 | H37: 62.3 | I37: 19.8 | J37: 9.3 | K37: 5.2 | L37: 100.1 | M37: 29.8 | N37: 275.6 | O37: 55.3 | P37: 5.1 | Q37: 682.5
A38: Baix Ebre | B38: U7 | C38: Aldover | D38: Baix Ebre_U7_Aldover | E38: 9.8 | F38: 42.4 | G38: 25.8 | H38: 58.8 | I38: 25.2 | J38: 7.3 | K38: 35.2 | L38: 91.6 | M38: 42.5 | N38: 234.6 | O38: 115.4 | P38: 8.2 | Q38: 696.8
A39: Baix Ebre | B39: DB | C39: el Perelló | D39: Baix Ebre_DB_el Perelló | E39: 11.8 | F39: 59.1 | G39: 18.3 | H39: 45.3 | I39: 52.1 | J39: 3.5 | K39: 18.7 | L39: 21.3 | M39: 41.9 | N39: 190.2 | O39: 59 | P39: 6.2 | Q39: 527.4
A40: Baix Ebre | B40: U9 | C40: l'Aldea | D40: Baix Ebre_U9_l'Aldea | E40: 10.7 | F40: 53.5 | G40: 22.4 | H40: 39.8 | I40: 106.5 | J40: 9.1 | K40: 14.1 | L40: 15 | M40: 28.5 | N40: 226.8 | O40: 164.7 | P40: 8 | Q40: 699.1
A41: Baix Ebre | B41: UA | C41: l'Amet llade Mar | D41: Baix Ebre_UA_l'Amet llade Mar | E41: 9.6 | F41: 68.9 | G41: 27 | H41: 44.3 | I41: 50 | J41: 5.5 | K41: 12.8 | L41: 14.9 | M41: 61.5 | N41: 220.3 | O41: 52.8 | P41: 7.5 | Q41: 575.1
A42: Baix Ebre | B42: X5 | C42: PN deis Ports | D42: Baix Ebre_X5_PN deis Ports | E42: 71.4 | F42: 67.7 | G42: 45 | H42: 158.1 | I42: 89.1 | J42: 51.8 | K42: 51.3 | L42: 50.7 | M42: 82.9 | N42: 462.4 | O42: 301.1 | P42: 51 | Q42: 1482.5
A43: Baix Emporda | B43: DO | C43: Castell d'Aro | D43: Baix Emporda_DO_Castell d'Aro | E43: 24.8 | F43: 64.6 | G43: 38.4 | H43: 118.2 | I43: 55.1 | J43: 47.7 | K43: 22.6 | L43: 18.5 | M43: 3.5 | N43: 221.9 | O43: 149.2 | P43: 11.6 | Q43: 776.1
A44: Baix Emporda | B44: DF | C44: la Bisbal d'Emporda | D44: Baix Emporda_DF_la Bisbal d'Emporda | E44: 35.2 | F44: 77 | G44: 47 | H44: 129.1 | I44: 61.4 | J44: 10.7 | K44: 51.2 | L44: 17.2 | M44: 5.6 | N44: 189.7 | O44: 327.3 | P44: 15 | Q44: 966.4
A45: Baix Emporda | B45: UB | C45: la Tallada d'Emporda | D45: Baix Emporda_UB_la Tallada d'Emporda | E45: 25.5 | F45: 72.3 | G45: 52.6 | H45: 86.4 | I45: 46.4 | J45: 17.9 | K45: 47.8 | L45: 23.4 | M45: 16.9 | N45: 158.9 | O45: 232.9 | P45: 14.7 | Q45: 795.7
A46: Baix Emporda | B46: uc | C46: Monells | D46: Baix Emporda_uc_Monells | E46: 31.2 | F46: 72.3 | G46: 44.1 | H46: 114.3 | I46: 46.6 | J46: 28.7 | K46: 60 | L46: 27.2 | M46: 11 | N46: 161 | O46: 293.7 | P46: 15.4 | Q46: 905.5
A47: Baix Emporda | B47: UE | C47: Torroella de Montgrí | D47: Baix Emporda_UE_Torroella de Montgrí | E47: 50 | F47: 71.6 | G47: 61.8 | H47: 71.5 | I47: 53.6 | J47: 24.7 | K47: 46.2 | L47: 15.6 | M47: 15 | N47: 161.6 | O47: 56.6 | P47: 27.2 | Q47: 655.4
A48: Baix Llobregat | B48: XL | C48: el Pral de Llobregat | D48: Baix Llobregat_XL_el Pral de Llobregat | E48: 52.2 | F48: 117 | G48: 89.8 | H48: 53.2 | I48: 36.9 | J48: 37.2 | K48: 9.4 | L48: 85 | M48: 87.1 | N48: 171.1 | O48: 132.5 | P48: 4.4 | Q48: 875.8
A49: Baix Llobregat | B49: UF | C49: PN del Garraf - el Rascler | D49: Baix Llobregat_UF_PN del Garraf - el Rascler | E49: 46.9 | F49: 154 | G49: 64.9 | H49: 47.6 | I49: 25.9 | J49: 73.2 | K49: 6 | L49: 60.5 | M49: 115.6 | N49: 173.7 | O49: 96.3 | P49: 7 | Q49: 871.6
A50: Baix Llobregat | B50: Y9 | C50: Port de Barcelona - ZAL Prat | D50: Baix Llobregat_Y9_Port de Barcelona - ZAL Prat | E50: 48.2 | F50: 96.4 | G50: 74.2 | H50: 39 | I50: 36.1 | J50: 32.6 | K50: 19 | L50: 85.4 | M50: 82.3 | N50: 184.6 | O50: 97.5 | P50: 4.5 | Q50: 799.8
A51: Baix Llobregat | B51: D3 | C51: Vallirana | D51: Baix Llobregat_D3_Vallirana | E51: 101.5 | F51: 169.2 | G51: 93.9 | H51: 83.7 | I51: 31.6 | J51: 99.1 | K51: 20.2 | L51: 123.7 | M51: 56.9 | N51: 180.1 | O51: 174.2 | P51: 3.8 | Q51: 1137.9
A52: Baix Llobregat | B52: UG | C52: Viladecans | D52: Baix Llobregat_UG_Viladecans | E52: 48.6 | F52: 139.2 | G52: 63.2 | H52: 41.3 | I52: 41.4 | J52: 43.2 | K52: 5.9 | L52: 83.5 | M52: 47.5 | N52: 145.8 | O52: 176.9 | P52: 4.1 | Q52: 840.6
A53: Baix Penedés | B53: WZ | C53: Cunit | D53: Baix Penedés_WZ_Cunit | E53: 43.5 | F53: 125.2 | G53: 44.1 | H53: 41.1 | I53: 14.3 | J53: 42.9 | K53: 2.4 | L53: 113.5 | M53: 108.3 | N53: 250.8 | O53: 69.6 | P53: 3.9 | Q53: 859.6
A54: Baix Penedés | B54: UH | C54: el Montmell | D54: Baix Penedés_UH_el Montmell | E54: 36.2 | F54: 118.1 | G54: 73.9 | H54: 103.6 | I54: 67.9 | J54: 38.5 | K54: 1.9 | L54: 76.3 | M54: 34.5 | N54: 328.6 | O54: 70.2 | P54: 6.1 | Q54: 955.8
A55: Baix Penedés | B55: D9 | C55: el Vendrell | D55: Baix Penedés_D9_el Vendrell | E55: 26.7 | F55: 111.2 | G55: 42.5 | H55: 66.6 | I55: 19.2 | J55: 32.8 | K55: 28.4 | L55: 89.9 | M55: 96.8 | N55: 239.8 | O55: 71.9 | P55: 4.2 | Q55: 830
A56: Baix Penedés | B56: WO | C56: la Bisbal del Penedés | D56: Baix Penedés_WO_la Bisbal del Penedés | E56: 19.2 | F56: 98.6 | G56: 45.1 | H56: 76.1 | I56: 21.7 | J56: 47.8 | K56: 9 | L56: 60.5 | M56: 65.6 | N56: 247.8 | O56: 59.6 | P56: 4.5 | Q56: 755.5
A57: Barcelonés | B57: WU | C57: Badalona - Museu | D57: Barcelonés_WU_Badalona - Museu | E57: 71.7 | F57: 82.7 | G57: 75.8 | H57: 34.1 | I57: 40.8 | J57: 34 | K57: 57.1 | L57: 30.9 | M57: 116.2 | N57: 151.2 | O57: 108.6 | P57: 3.3 | Q57: 806.4
A58: Barcelonés | B58: X4 | C58: Barcelona - el Raval | D58: Barcelonés_X4_Barcelona - el Raval | E58: 55.4 | F58: 89.6 | G58: 79.1 | H58: 48.6 | I58: 87.6 | J58: 12.9 | K58: 24.7 | L58: 96.2 | M58: 154.8 | N58: 187.9 | O58: 168.8 | P58: 4.6 | Q58: 1010.2
A59: Barcelonés | B59: D5 | C59: Barcelona - Observatori Fabra | D59: Barcelonés_D5_Barcelona - Observatori Fabra | E59: 62.5 | F59: 104 | G59: 113.5 | H59: 58.6 | I59: 53.6 | J59: 52.7 | K59: 51.4 | L59: 36.2 | M59: 43.6 | N59: 195.6 | O59: 207.6 | P59: 4.9 | Q59: 984.2
A60: Barcelonés | B60: X8 | C60: Barcelona - Zona Universitaria | D60: Barcelonés_X8_Barcelona - Zona Universitaria | E60: 55.6 | F60: 108.7 | G60: 104.3 | H60: 53.8 | I60: 41.8 | J60: 52.5 | K60: 12.4 | L60: 47.3 | M60: 93.9 | N60: 217.1 | O60: 128 | P60: 4.4 | Q60: 919.8
A61: Bergueda | B61: MS | C61: Castellar de n'Hug - el Clot del Moro | D61: Bergueda_MS_Castellar de n'Hug - el Clot del Moro | E61: 74.6 | F61: 111.7 | G61: 85.2 | H61: 163.2 | I61: 152.6 | J61: 71.2 | K61: 133.7 | L61: 265.9 | M61: 72.2 | N61: 311.6 | O61: 88.6 | P61: 8.6 | Q61: 1539.1
A62: Bergueda | B62: UI | C62: Gisclareny | D62: Bergueda_UI_Gisclareny | E62: 119.1 | F62: 145.9 | G62: 124.9 | H62: 184.8 | I62: 220.7 | J62: 132.3 | K62: 106.8 | L62: 192.8 | M62: 108.9 | N62: 321.4 | O62: 97.1 | P62: 12.7 | Q62: 1767.4
A63: Bergueda | B63: WV | C63: Guardiola de Bergueda | D63: Bergueda_WV_Guardiola de Bergueda | E63: 86.8 | F63: 132.7 | G63: 70.9 | H63: 136.8 | I63: 169.6 | J63: 102.4 | K63: 122.6 | L63: 201.6 | M63: 44.1 | N63: 277.6 | O63: 95.9 | P63: 11.3 | Q63: 1452.3
A64: Bergueda | B64: CR | C64: laQuar | D64: Bergueda_CR_laQuar | E64: 92.6 | F64: 142.2 | G64: 59.2 | H64: 107.1 | I64: 189.1 | J64: 82.5 | K64: 73.6 | L64: 194.3 | M64: 79.1 | N64: 206.5 | O64: 71.5 | P64: 5.7 | Q64: 1303.4
A65: Bergueda | B65: WM | C65: Santuari de Queralt | D65: Bergueda_WM_Santuari de Queralt | E65: 95.9 | F65: 151.8 | G65: 86.8 | H65: 105.3 | I65: 128.5 | J65: 89 | K65: 57.4 | L65: 172.6 | M65: 71.6 | N65: 241.7 | O65: 86.2 | P65: 8.8 | Q65: 1295.6
A66: Cerdanya | B66: z9 | C66: Cadí Nord (2.143 m) - Prat d'Aguiló | D66: Cerdanya_z9_Cadí Nord (2.143 m) - Prat d'Aguiló | E66: 151.5 | F66: 153.6 | G66: 159.2 | H66: 206.7 | I66: 178 | J66: 144.2 | K66: 94.7 | L66: 219.3 | M66: 115.9 | N66: 345.7 | O66: 106.3 | P66: 11.5 | Q66: 1886.6
A67: Cerdanya | B67: DP | C67: Das - Aerodrom | D67: Cerdanya_DP_Das - Aerodrom | E67: 66.6 | F67: 65.3 | G67: 38 | H67: 109.4 | I67: 83.5 | J67: 81.8 | K67: 71.3 | L67: 85.7 | M67: 33.4 | N67: 177.7 | O67: 49.2 | P67: 7.9 | Q67: 869.8
A68: Cerdanya | B68: Z3 | C68: Malniu (2.230 m) | D68: Cerdanya_Z3_Malniu (2.230 m) | E68: 146 | F68: 157.4 | G68: 89.8 | H68: 107.3 | I68: 142.5 | J68: 115.4 | K68: 133.5 | L68: 142.8 | M68: 99.9 | N68: 204.8 | O68: 71.9 | P68: 15.8 | Q68: 1427.1
A69: Cerdanya | B69: YA | C69: Puigcerdil | D69: Cerdanya_YA_Puigcerdil | E69: 69.7 | F69: 80 | G69: 43 | H69: 104.6 | I69: 107.7 | J69: 37.4 | K69: 75.2 | L69: 75.3 | M69: 44.6 | N69: 141.6 | O69: 39.9 | P69: 9.2 | Q69: 828.2
A70: Conca de B. | B70: W8 | C70: Blancafort | D70: Conca de B._W8_Blancafort | E70: 22 | F70: 68.9 | G70: 65.4 | H70: 103.1 | I70: 93.5 | J70: 16.7 | K70: 5.3 | L70: 27.7 | M70: 23.2 | N70: 246.9 | O70: 117.9 | P70: 8.2 | Q70: 798.8
A71: Conca de B. | B71: CW | C71: l'Espluga de Francolí | D71: Conca de B._CW_l'Espluga de Francolí | E71: 33.3 | F71: 94.5 | G71: 48.8 | H71: 186.6 | I71: 108.6 | J71: 13.6 | K71: 3.6 | L71: 35.7 | M71: 9.3 | N71: 212.9 | O71: 87 | P71: 9.6 | Q71: 843.5
A72: Conca de B. | B72: UJ | C72: Santa Coloma de Queralt | D72: Conca de B._UJ_Santa Coloma de Queralt | E72: 46.8 | F72: 67.1 | G72: 84.3 | H72: 81.7 | I72: 71.6 | J72: 54.4 | K72: 5.9 | L72: 42.4 | M72: 10.1 | N72: 206 | O72: 63.4 | P72: 5.8 | Q72: 739.5
A73: Garraf | B73: XU | C73: Canyelles | D73: Garraf_XU_Canyelles | E73: 43 | F73: 139.6 | G73: 62.6 | H73: 75.5 | I73: 21.7 | J73: 56.4 | K73: 6.6 | L73: 67.9 | M73: 74.8 | N73: 222.4 | O73: 84.1 | P73: 4.6 | Q73: 859.2
A74: Garraf | B74: UK | C74: Sant Pere de Ribes - PN del Garraf | D74: Garraf_UK_Sant Pere de Ribes - PN del Garraf | E74: 47.4 | F74: 131 | G74: 71.9 | H74: 66.4 | I74: 21.9 | J74: 119.4 | K74: 6.3 | L74: 67.9 | M74: 77.1 | N74: 235.4 | O74: 71.3 | P74: 4.9 | Q74: 920.9
A75: Garrigues | B75: UM | C75: la Granadella | D75: Garrigues_UM_la Granadella | E75: 29.9 | F75: 42 | G75: 38.5 | H75: 48.3 | I75: 61.2 | J75: 10.5 | K75: 12 | L75: 19.8 | M75: 8.7 | N75: 145.7 | O75: 98.3 | P75: 9.7 | Q75: 524.6
A76: Garrigues | B76: VD | C76: les Borges Blanques | D76: Garrigues_VD_les Borges Blanques | E76: 37.4 | F76: 48.2 | G76: 41.6 | H76: 74.1 | I76: 55.8 | J76: 3 | K76: 30.6 | L76: 14.8 | M76: 15.5 | N76: 129.5 | O76: 68.8 | P76: 16 | Q76: 535.3
A77: Garrotxa | B77: W9 | C77: la Vall d'en Bas | D77: Garrotxa_W9_la Vall d'en Bas | E77: 66.9 | F77: 152.4 | G77: 44.2 | H77: 161.9 | I77: 140.2 | J77: 69.5 | K77: 99.3 | L77: 65.4 | M77: 85.2 | N77: 230 | O77: 156.8 | P77: 7.5 | Q77: 1279.3
A78: Garrotxa | B78: YB | C78: Olot | D78: Garrotxa_YB_Olot | E78: 53.8 | F78: 137.9 | G78: 45.8 | H78: 160.5 | I78: 139.1 | J78: 83.4 | K78: 62.5 | L78: 64.5 | M78: 67 | N78: 209.5 | O78: 130 | P78: 6.8 | Q78: 1160.8
A79: Girones | B79: UN | C79: Cassa de la Selva | D79: Girones_UN_Cassa de la Selva | E79: 38.8 | F79: 61.5 | G79: 69.4 | H79: 135.1 | I79: 60.2 | J79: 27.5 | K79: 23.3 | L79: 67.3 | M79: 19 | N79: 155.6 | O79: 257.4 | P79: 19.1 | Q79: 934.2
A80: Girones | B80: uo | C80: Fornells de la Selva | D80: Girones_uo_Fornells de la Selva | E80: 32.4 | F80: 75.3 | G80: 49.9 | H80: 100.4 | I80: 78.8 | J80: 42.1 | K80: 70.5 | L80: 107.1 | M80: 7 | N80: 278.3 | O80: 141.1 | P80: 13.2 | Q80: 996.1
A81: Girones | B81: XJ | C81: Girona | D81: Girones_XJ_Girona | E81: 33.5 | F81: 78 | G81: 44.9 | H81: 133.9 | I81: 93.8 | J81: 39.8 | K81: 94.7 | L81: 100.3 | M81: 37.4 | N81: 214.1 | O81: 135.4 | P81: 13 | Q81: 1018.8
A82: Maresme | B82: UP | C82: Cabrils | D82: Maresme_UP_Cabrils | E82: 73 | F82: 71.4 | G82: 63.5 | H82: 75.7 | I82: 88.5 | J82: 50.2 | K82: 33.8 | L82: 73.1 | M82: 78.1 | N82: 216.2 | O82: 97.9 | P82: 2.1 | Q82: 923.5
A83: Maresme | B83: UQ | C83: Dosrius - PN Montnegre Corredor | D83: Maresme_UQ_Dosrius - PN Montnegre Corredor | E83: 86.1 | F83: 92.6 | G83: 58.9 | H83: 104.6 | I83: 66.1 | J83: 15.7 | K83: 15.2 | L83: 44.6 | M83: 54 | N83: 293.8 | O83: 160.8 | P83: 5 | Q83: 997.4
A84: Maresme | B84: WT | C84: Malgrat de Mar | D84: Maresme_WT_Malgrat de Mar | E84: 28 | F84: 64.6 | G84: 28.6 | H84: 64.1 | I84: 65.6 | J84: 35 | K84: 12 | L84: 24.7 | M84: 20.5 | N84: 154 | O84: 223.4 | P84: 6.5 | Q84: 727
A85: Montsia | B85: US | C85: Alcanar | D85: Montsia_US_Alcanar | E85: 14.5 | F85: 51.2 | G85: 18.1 | H85: 38.3 | I85: 28.2 | J85: 66.8 | K85: 9.8 | L85: 22.9 | M85: 72.2 | N85: 340.1 | O85: 94.9 | P85: 10.3 | Q85: 767.3
A86: Montsia | B86: UU | C86: Amposta | D86: Montsia_UU_Amposta | E86: 7.8 | F86: 49.7 | G86: 15.8 | H86: 40.5 | I86: 35.4 | J86: 15.8 | K86: 11.9 | L86: 23.7 | M86: 67.5 | N86: 198.6 | O86: 91.6 | P86: 6.2 | Q86: 564.5
A87: Montsia | B87: UW | C87: els Alfacs | D87: Montsia_UW_els Alfacs | E87: 12.2 | F87: 59 | G87: 15.3 | H87: 31.8 | I87: 11.7 | J87: 43.2 | K87: 6.4 | L87: 16.8 | M87: 73.5 | N87: 258 | O87: 44 | P87: 5.7 | Q87: 577.6
A88: Montsia | B88: DL | C88: lila de Buda | D88: Montsia_DL_lila de Buda | E88: 15 | F88: 89.4 | G88: 13.5 | H88: 15.5 | I88: 18 | J88: 26.5 | K88: 10.7 | L88: 36.7 | M88: 83 | N88: 158.1 | O88: 47.9 | P88: 4.6 | Q88: 518.9
A89: Montsia | B89: C9 | C89: Mas de Barberans | D89: Montsia_C9_Mas de Barberans | E89: 12.6 | F89: 48.8 | G89: 22.5 | H89: 61.7 | I89: 41 | J89: 46.1 | K89: 38.4 | L89: 20.1 | M89: 81.6 | N89: 298.5 | O89: 226.5 | P89: 7.6 | Q89: 905.4
A90: Montsia | B90: UX | C90: Ulldecona - els Valentins | D90: Montsia_UX_Ulldecona - els Valentins | E90: 11.8 | F90: 39.5 | G90: 18.9 | H90: 52.3 | I90: 44.3 | J90: 45 | K90: 23.7 | L90: 27.4 | M90: 102.4 | N90: 287.4 | O90: 192.1 | P90: 8.8 | Q90: 853.6
A91: Noguera | B91: WB | C91: Albesa | D91: Noguera_WB_Albesa | E91: 27.8 | F91: 35.3 | G91: 48.4 | H91: 82.5 | I91: 72.1 | J91: 8.6 | K91: 8.5 | L91: 22.7 | M91: 1.2 | N91: 135.1 | O91: 74.5 | P91: 14.4 | Q91: 531.1
A92: Noguera | B92: WG | C92: Algerri | D92: Noguera_WG_Algerri | E92: 31 | F92: 35.1 | G92: 48.2 | H92: 78.6 | I92: 83 | J92: 9.7 | K92: 16.5 | L92: 20.6 | M92: 0.3 | N92: 130.1 | O92: 69.5 | P92: 13.4 | Q92: 536
A93: Noguera | B93: X6 | C93: Baldomar | D93: Noguera_X6_Baldomar | E93: 33.2 | F93: 98.1 | G93: 77.1 | H93: 121.7 | I93: 129.6 | J93: 13 | K93: 10.5 | L93: 76.8 | M93: 12.9 | N93: 118.4 | O93: 84.5 | P93: 9.3 | Q93: 785.1
A94: Noguera | B94: WX | C94: Camarasa | D94: Noguera_WX_Camarasa | E94: 33.3 | F94: 75.4 | G94: 63.7 | H94: 117.5 | I94: 138.8 | J94: 20.4 | K94: 7.9 | L94: 31.7 | M94: 7.2 | N94: 168.6 | O94: 70.8 | P94: 11.5 | Q94: 746.8
A95: Noguera | B95: WA | C95: Oliola | D95: Noguera_WA_Oliola | E95: 30.8 | F95: 80.8 | G95: 71.2 | H95: 104.9 | I95: 95 | J95: 11.8 | K95: 7.8 | L95: 43.5 | M95: 5.3 | N95: 107.7 | O95: 91.7 | P95: 11.9 | Q95: 662.4
A96: Noguera | B96: UY | C96: Os de Balaguer - el Monestir d'Avellanes | D96: Noguera_UY_Os de Balaguer - el Monestir d'Avellanes | E96: 36.9 | F96: 97.2 | G96: 71.7 | H96: 124.6 | I96: 159.1 | J96: 34.5 | K96: 9.4 | L96: 52.7 | M96: 2.4 | N96: 170.1 | O96: 74.8 | P96: 13.9 | Q96: 847.3
A97: Noguera | B97: V1 | C97: Vallfogona de Balaguer | D97: Noguera_V1_Vallfogona de Balaguer | E97: 29.4 | F97: 56.6 | G97: 55.4 | H97: 105.1 | I97: 101.7 | J97: 13.3 | K97: 4.4 | L97: 10.7 | M97: 0.3 | N97: 130.2 | O97: 54.6 | P97: 12.6 | Q97: 574.3
A98: Noguera | B98: CQ | C98: Vilanova de Meia | D98: Noguera_CQ_Vilanova de Meia | E98: 45.7 | F98: 158.8 | G98: 113.9 | H98: 166.6 | I98: 194.5 | J98: 66.8 | K98: 18.4 | L98: 117.9 | M98: 13.6 | N98: 152.2 | O98: 107.5 | P98: 7.7 | Q98: 1163.6
A99: Osona | B99: V3 | C99: Gurb | D99: Osona_V3_Gurb | E99: 63.8 | F99: 106.2 | G99: 39.6 | H99: 82.2 | I99: 152.3 | J99: 87.3 | K99: 54.9 | L99: 249.8 | M99: 68.3 | N99: 201.2 | O99: 78.8 | P99: 8.4 | Q99: 1192.8
A100: Osona | B100: V4 | C100: Montesquiu | D100: Osona_V4_Montesquiu | E100: 82.2 | F100: 131.1 | G100: 44.5 | H100: 119.6 | I100: 154.5 | J100: 84.8 | K100: 87.9 | L100: 201.5 | M100: 82.9 | N100: 226.2 | O100: 89.2 | P100: 6.1 | Q100: 1310.5
A101: Osona | B101: CY | C101: Muntanyola | D101: Osona_CY_Muntanyola | E101: 80.8 | F101: 125.2 | G101: 66.6 | H101: 110.8 | I101: 135.4 | J101: 57.9 | K101: 41.8 | L101: 112 | M101: 10.8 | N101: 246 | O101: 83.6 | P101: 6.9 | Q101: 1077.8
A102: Osona | B102: ce | C102: Orís | D102: Osona_ce_Orís | E102: 64.1 | F102: 123.3 | G102: 42.7 | H102: 109.4 | I102: 132 | J102: 69.1 | K102: 91.8 | L102: 198.4 | M102: 190.8 | N102: 231.1 | O102: 81.3 | P102: 6.3 | Q102: 1340.3
A103: Osona | B103: KE | C103: Panta de Sau | D103: Osona_KE_Panta de Sau | E103: 56.9 | F103: 108.5 | G103: 31.4 | H103: 93.1 | I103: 141 | J103: 41 | K103: 79.6 | L103: 142 | M103: 51.9 | N103: 222.7 | O103: 103.3 | P103: 8.4 | Q103: 1079.8
A104: Osona | B104: V5 | C104: Perafita | D104: Osona_V5_Perafita | E104: 73.6 | F104: 92 | G104: 45.6 | H104: 131 | I104: 89 | J104: 65.2 | K104: 92.8 | L104: 156.3 | M104: 57.1 | N104: 180.8 | O104: 69.6 | P104: 7.9 | Q104: 1060.9
A105: Osona | B105: xo | C105: Vic | D105: Osona_xo_Vic | E105: 69.5 | F105: 118.6 | G105: 44.2 | H105: 86.8 | I105: 157.8 | J105: 69.9 | K105: 40.7 | L105: 232 | M105: 58.8 | N105: 167.9 | O105: 85.6 | P105: 7.6 | Q105: 1139.4
A106: Osona | B106: WS | C106: Viladrau | D106: Osona_WS_Viladrau | E106: 91.4 | F106: 187.1 | G106: 81.7 | H106: 185.7 | I106: 144.4 | J106: 56.3 | K106: 45.1 | L106: 122.1 | M106: 17.4 | N106: 430.7 | O106: 200.2 | P106: 10.3 | Q106: 1572.4
A107: Pallars Jussà | B107: YC | C107: la Pobla de Segur | D107: Pallars Jussà_YC_la Pobla de Segur | E107: 28.4 | F107: 85 | G107: 86.2 | H107: 144.1 | I107: 124.5 | J107: 76 | K107: 23.3 | L107: 86.9 | M107: 52.6 | N107: 148.8 | O107: 88.7 | P107: 10.2 | Q107: 954.7
A108: Pallars Jussà | B108: WQ | C108: Montsec d'Ares (1.572 m) | D108: Pallars Jussà_WQ_Montsec d'Ares (1.572 m) | E108: 54.3 | F108: 104.9 | G108: 123.7 | H108: 157.3 | I108: 149.8 | J108: 110.9 | K108: 10.8 | L108: 70 | M108: 57.2 | N108: 170.7 | O108: 86.3 | P108: 10.2 | Q108: 1106.1
A109: Pallars Jussà | B109: CP | C109: Sant Roma d'Abella | D109: Pallars Jussà_CP_Sant Roma d'Abella | E109: 41.2 | F109: 80 | G109: 68.1 | H109: 114 | I109: 131.8 | J109: 116.3 | K109: 15.4 | L109: 66 | M109: 27.2 | N109: 131.7 | O109: 81.7 | P109: 7.1 | Q109: 880.5
A110: Pallars Jussà | B110: XQ | C110: Tremp | D110: Pallars Jussà_XQ_Tremp | E110: 33 | F110: 90.6 | G110: 79.4 | H110: 115 | I110: 121.4 | J110: 57.3 | K110: 16.3 | L110: 64.5 | M110: 56.6 | N110: 122.6 | O110: 69.4 | P110: 15.4 | Q110: 841.5
A111: Pallars Sobira | B111: Z1 | C111: Bonaigua (2.266 m) | D111: Pallars Sobira_Z1_Bonaigua (2.266 m) | E111: 197.1 | F111: 204.1 | G111: 163.4 | H111: 276.4 | I111: 186.6 | J111: 103.2 | K111: 70.6 | L111: 80.2 | M111: 69 | N111: 219.9 | O111: 79.8 | P111: 31.4 | Q111: 1681.7
A112: Pallars Sobira | B112: Z5 | C112: Certascan (2.400 m) | D112: Pallars Sobira_Z5_Certascan (2.400 m) | E112: 229.4 | F112: 295.4 | G112: 157.3 | H112: 118.2 | I112: 298 | J112: 133.8 | K112: 61.6 | L112: 119.1 | M112: 93.8 | N112: 157.1 | O112: 81.1 | P112: 61.9 | Q112: 1806.7
A113: Pallars Sobira | B113: Z7 | C113: Espot (2.519 m) | D113: Pallars Sobira_Z7_Espot (2.519 m) | E113: 160.2 | F113: 193.5 | G113: 289.7 | H113: 322.3 | I113: 177.9 | J113: 91.4 | K113: 113.2 | L113: 295.9 | M113: 109.5 | N113: 229.1 | O113: 124.6 | P113: 24.7 | Q113: 2132
A114: Pallars Sobira | B114: ZB | C114: Salória (2.451 m) | D114: Pallars Sobira_ZB_Salória (2.451 m) | E114: 143.1 | F114: 115.6 | G114: 152.6 | H114: 167.3 | I114: 120.5 | J114: 61.1 | K114: 82.8 | L114: 150.1 | M114: 41.6 | N114: 234.6 | O114: 113.7 | P114: 13.6 | Q114: 1396.6
A115: Pallars Sobira | B115: XH | C115: Sort | D115: Pallars Sobira_XH_Sort | E115: 47.4 | F115: 67.9 | G115: 81.9 | H115: 113.8 | I115: 114.9 | J115: 79.8 | K115: 83.1 | L115: 112.2 | M115: 74.3 | N115: 107.6 | O115: 68.1 | P115: 10.1 | Q115: 961.1
A116: Pla de l'Estany | B116: DJ | C116: Banyoles | D116: Pla de l'Estany_DJ_Banyoles | E116: 56 | F116: 79.1 | G116: 27 | H116: 139.6 | I116: 112.3 | J116: 93.3 | K116: 49.4 | L116: 77.9 | M116: 57.1 | N116: 240.4 | O116: 231.6 | P116: 12.5 | Q116: 1176.2
A117: Pla d'Urgell | B117: C6 | C117: Castellnou de Seana | D117: Pla d'Urgell_C6_Castellnou de Seana | E117: 29.9 | F117: 44.8 | G117: 51.8 | H117: 103.2 | I117: 59.5 | J117: 3.9 | K117: 12.1 | L117: 6.7 | M117: 0.7 | N117: 126.4 | O117: 58.8 | P117: 14 | Q117: 511.8
A118: Pla d'Urgell | B118: V8 | C118: el Poal | D118: Pla d'Urgell_V8_el Poal | E118: 32 | F118: 43.3 | G118: 44.8 | H118: 74.5 | I118: 80.1 | J118: 4.3 | K118: 10 | L118: 11.4 | M118: 0.2 | N118: 124.2 | O118: 66.6 | P118: 14.2 | Q118: 505.6
A119: Pla d'Urgell | B119: WC | C119: Golmés | D119: Pla d'Urgell_WC_Golmés | E119: 25.6 | F119: 46.1 | G119: 48.3 | H119: 87 | I119: 53.9 | J119: 3.7 | K119: 14.8 | L119: 7.7 | M119: 0.6 | N119: 117.6 | O119: 62 | P119: 16.1 | Q119: 483.4
A120: Pla d'Urgell | B120: XI | C120: Mollerussa | D120: Pla d'Urgell_XI_Mollerussa | E120: 27.2 | F120: 44 | G120: 48.5 | H120: 77.2 | I120: 53.8 | J120: 3 | K120: 21.3 | L120: 11.6 | M120: 0.9 | N120: 132.1 | O120: 70.3 | P120: 16.5 | Q120: 506.4
A121: Priorat | B121: WJ | C121: el Masroig | D121: Priorat_WJ_el Masroig | E121: 15.5 | F121: 41.1 | G121: 33.3 | H121: 55.4 | I121: 92.1 | J121: 1.9 | K121: 7.2 | L121: 15.5 | M121: 3.6 | N121: 178 | O121: 59 | P121: 7.3 | Q121: 509.9
A122: Priorat | B122: X1 | C122: Falset | D122: Priorat_X1_Falset | E122: 21.7 | F122: 87.9 | G122: 41.6 | H122: 88.1 | I122: 131.6 | J122: 2.3 | K122: 9.3 | L122: 43.7 | M122: 12.8 | N122: 243 | O122: 137.9 | P122: 7.9 | Q122: 827.8
A123: Priorat | B123: D1 | C123: Margalef | D123: Priorat_D1_Margalef | E123: 47.1 | F123: 49.5 | G123: 39.4 | H123: 100.8 | I123: 70.8 | J123: 1.2 | K123: 5.1 | L123: 18.1 | M123: 28.6 | N123: 194.1 | O123: 82.7 | P123: 8.3 | Q123: 645.7
A124: Priorat | B124: MR | C124: Panta de Siurana | D124: Priorat_MR_Panta de Siurana | E124: 28.2 | F124: 78.8 | G124: 52.7 | H124: 106.6 | I124: 116 | J124: 17.5 | K124: 6.8 | L124: 36.4 | M124: 65.4 | N124: 230.9 | O124: 80.1 | P124: 6 | Q124: 825.4
A125: Priorat | B125: WR | C125: Torroja del Priorat | D125: Priorat_WR_Torroja del Priorat | E125: 25.8 | F125: 61.4 | G125: 45.4 | H125: 85 | I125: 97.2 | J125: 38.2 | K125: 17.8 | L125: 15.8 | M125: 18.8 | N125: 185.8 | O125: 101.5 | P125: 6.6 | Q125: 699.3
A126: Priorat | B126: XD | C126: Ulldemolins | D126: Priorat_XD_Ulldemolins | E126: 44.9 | F126: 60.7 | G126: 66.6 | H126: 108.7 | I126: 137.5 | J126: 22.3 | K126: 10.1 | L126: 31.9 | M126: 58.4 | N126: 224.3 | O126: 75.8 | P126: 8.7 | Q126: 849.9
A127: Ribera d'Ebre | B127: VA | C127: Aseó | D127: Ribera d'Ebre_VA_Aseó | E127: 35.6 | F127: 37.9 | G127: 32.1 | H127: 82.3 | I127: 100.6 | J127: 2.4 | K127: 8.8 | L127: 7.3 | M127: 3.3 | N127: 164.3 | O127: 72.6 | P127: 10.1 | Q127: 557.3
A128: Ribera d'Ebre | B128: VB | C128: Benissanet | D128: Ribera d'Ebre_VB_Benissanet | E128: 15.1 | F128: 38.1 | G128: 30.1 | H128: 50 | I128: 87 | J128: 3.5 | K128: 7.4 | L128: 5.5 | M128: 10.3 | N128: 201.1 | O128: 69.8 | P128: 11.6 | Q128: 529.5
A129: Ribera d'Ebre | B129: ve | C129: Panta de Riba-roja | D129: Ribera d'Ebre_ve_Panta de Riba-roja | E129: 26.9 | F129: 31.7 | G129: 23.8 | H129: 55 | I129: 52.3 | J129: 5.9 | K129: 11.4 | L129: 4.1 | M129: 13.1 | N129: 137.9 | O129: 50.5 | P129: 9.5 | Q129: 422.1
A130: Ribera d'Ebre | B130: Y6 | C130: Tivissa | D130: Ribera d'Ebre_Y6_Tivissa | E130: 20.1 | F130: 69.2 | G130: 40 | H130: 73.3 | I130: 165.9 | J130: 2.8 | K130: 11.2 | L130: 83.7 | M130: 26.7 | N130: 257.4 | O130: 97 | P130: 12 | Q130: 859.3
A131: Ribera d'Ebre | B131: D7 | C131: Vinebre | D131: Ribera d'Ebre_D7_Vinebre | E131: 24 | F131: 42.8 | G131: 26 | H131: 74.2 | I131: 71.6 | J131: 2.1 | K131: 9.7 | L131: 16.2 | M131: 4.7 | N131: 149 | O131: 67.6 | P131: 7.9 | Q131: 495.8
A132: Ripolles | B132: CG | C132: Molió- Fabert | D132: Ripolles_CG_Molió- Fabert | E132: 86.4 | F132: 122.8 | G132: 61.8 | H132: 192.9 | I132: 102.2 | J132: 110.6 | K132: 134.7 | L132: 169.2 | M132: 125.8 | N132: 350.4 | O132: 134.1 | P132: 7.3 | Q132: 1598.2
A133: Ripolles | B133: DG | C133: Núria (1.971 m) | D133: Ripolles_DG_Núria (1.971 m) | E133: 110.5 | F133: 150.2 | G133: 127.1 | H133: 193.4 | I133: 174.6 | J133: 62.1 | K133: 75.6 | L133: 133.6 | M133: 56.6 | N133: 369.1 | O133: 121.6 | P133: 14.2 | Q133: 1588.6
A134: Ripolles | B134: M6 | C134: Sant Joan de les Abadesses | D134: Ripolles_M6_Sant Joan de les Abadesses | E134: 62.6 | F134: 123 | G134: 43.2 | H134: 109.5 | I134: 126.1 | J134: 72.6 | K134: 153.7 | L134: 180.1 | M134: 88.3 | N134: 275.9 | O134: 94.9 | P134: 6 | Q134: 1335.9
A135: Ripolles | B135: CI | C135: Sant Pau de Segúries | D135: Ripolles_CI_Sant Pau de Segúries | E135: 87.1 | F135: 144.6 | G135: 54.1 | H135: 173.7 | I135: 159.6 | J135: 114.1 | K135: 97.6 | L135: 114.7 | M135: 165.3 | N135: 321.9 | O135: 151.7 | P135: 4.8 | Q135: 1589.2
A136: Ripolles | B136: zc | C136: Ulldeter (2.41O m) | D136: Ripolles_zc_Ulldeter (2.41O m) | E136: 154.8 | F136: 168.2 | G136: 150.1 | H136: 191.7 | I136: 171.1 | J136: 53.8 | K136: 104.2 | L136: 113.9 | M136: 61.2 | N136: 309.5 | O136: 73.1 | P136: 18 | Q136: 1569.6
A137: Segarra | B137: C8 | C137: Cervera | D137: Segarra_C8_Cervera | E137: 31.6 | F137: 28.4 | G137: 68.9 | H137: 51 | I137: 100 | J137: 33 | K137: 7.1 | L137: 35.7 | M137: 42.1 | N137: 123.9 | O137: 60.3 | P137: 7.3 | Q137: 589.3
A138: Segarra | B138: VD | C138: el Canós | D138: Segarra_VD_el Canós | E138: 28.9 | F138: 32 | G138: 57.6 | H138: 72 | I138: 82.2 | J138: 13.7 | K138: 16.2 | L138: 34.5 | M138: 12.8 | N138: 104.9 | O138: 71.1 | P138: 9.8 | Q138: 535.7
A139: Segarra | B139: YE | C139: Massoteres | D139: Segarra_YE_Massoteres | E139: 44.9 | F139: 52.5 | G139: 75.1 | H139: 77 | I139: 122.6 | J139: 31.5 | K139: 6.4 | L139: 28.7 | M139: 18.9 | N139: 137.4 | O139: 81.6 | P139: 12 | Q139: 688.6
A140: Segria | B140: VE | C140: Aitona | D140: Segria_VE_Aitona | E140: 23.4 | F140: 37.1 | G140: 32.2 | H140: 61 | I140: 58.6 | J140: 5.5 | K140: 21.7 | L140: 4.2 | M140: 2.2 | N140: 109.1 | O140: 52.1 | P140: 12.9 | Q140: 420
A141: Segria | B141: XY | C141: Alcarras | D141: Segria_XY_Alcarras | E141: 26.5 | F141: 44.9 | G141: 36.9 | H141: 83.7 | I141: 66.7 | J141: 28.1 | K141: 36.4 | L141: 18.9 | M141: 13.3 | N141: 135.8 | O141: 81.4 | P141: 16.3 | Q141: 588.9
A142: Segria | B142: WK | C142: Alfarras | D142: Segria_WK_Alfarras | E142: 29.9 | F142: 43.2 | G142: 54.3 | H142: 97.7 | I142: 71.1 | J142: 28.2 | K142: 8.6 | L142: 51.8 | M142: 0.9 | N142: 136 | O142: 63.5 | P142: 17.3 | Q142: 602.5
A143: Segria | B143: X3 | C143: Alguaire | D143: Segria_X3_Alguaire | E143: 25.5 | F143: 32.1 | G143: 51.6 | H143: 86.4 | I143: 67 | J143: 7.4 | K143: 12.1 | L143: 46.6 | M143: 1.6 | N143: 141 | O143: 65.2 | P143: 16.2 | Q143: 552.7
A144: Segria | B144: XM | C144: els Alamús | D144: Segria_XM_els Alamús | E144: 33.3 | F144: 38 | G144: 46.3 | H144: 64.8 | I144: 61.8 | J144: 3.9 | K144: 19.3 | L144: 34.9 | M144: 3 | N144: 129.8 | O144: 68 | P144: 17.2 | Q144: 520.3
A145: Segria | B145: VH | C145: Gimenells | D145: Segria_VH_Gimenells | E145: 22.9 | F145: 22.3 | G145: 32.2 | H145: 78.6 | I145: 60 | J145: 12.8 | K145: 23 | L145: 33.7 | M145: 19.3 | N145: 98.8 | O145: 44.2 | P145: 13.1 | Q145: 460.9
A146: Segria | B146: WI | C146: Maials | D146: Segria_WI_Maials | E146: 27.1 | F146: 45.1 | G146: 41 | H146: 85.1 | I146: 38.3 | J146: 9.8 | K146: 33.5 | L146: 6.9 | M146: 3.3 | N146: 114.5 | O146: 62 | P146: 11.7 | Q146: 478.3
A147: Segria | B147: VK | C147: Raimat | D147: Segria_VK_Raimat | E147: 21.3 | F147: 27.3 | G147: 43.9 | H147: 91.4 | I147: 48.3 | J147: 16.5 | K147: 27.8 | L147: 23 | M147: 6.9 | N147: 108.8 | O147: 55.4 | P147: 14.4 | Q147: 485
A148: Segria | B148: XN | C148: Seros | D148: Segria_XN_Seros | E148: 26.7 | F148: 39 | G148: 31.2 | H148: 58.9 | I148: 48.9 | J148: 6.1 | K148: 14.5 | L148: 6.9 | M148: 1.5 | N148: 102.7 | O148: 44.9 | P148: 10.5 | Q148: 391.8
A149: Segria | B149: X7 | C149: Torres de Segre | D149: Segria_X7_Torres de Segre | E149: 18.1 | F149: 34.2 | G149: 26.5 | H149: 66.9 | I149: 42 | J149: 5.3 | K149: 30.2 | L149: 7.5 | M149: 32.5 | N149: 91.5 | O149: 53.6 | P149: 13.5 | Q149: 421.8
A150: Segria | B150: VM | C150: Vilanova de Segria | D150: Segria_VM_Vilanova de Segria | E150: 22.5 | F150: 35.4 | G150: 36.7 | H150: 79.3 | I150: 60.8 | J150: 10.4 | K150: 15.6 | L150: 51.7 | M150: 3.3 | N150: 134.4 | O150: 61.9 | P150: 16.5 | Q150: 528.5
A151: Selva | B151: DN | C151: Angles | D151: Selva_DN_Angles | E151: 32.4 | F151: 133.8 | G151: 50.7 | H151: 142.9 | I151: 163.2 | J151: 76 | K151: 80.2 | L151: 70 | M151: 33.4 | N151: 309 | O151: 188.1 | P151: 8.3 | Q151: 1288
A152: Selva | B152: KP | C152: Fogars de la Selva | D152: Selva_KP_Fogars de la Selva | E152: 40.2 | F152: 98 | G152: 44.3 | H152: 80.2 | I152: 75 | J152: 37.3 | K152: 53.8 | L152: 59.7 | M152: 53.6 | N152: 241.7 | O152: 232.4 | P152: 10.7 | Q152: 1026.9
A153: Selva | B153: xs | C153: Santa Coloma de Farners | D153: Selva_xs_Santa Coloma de Farners | E153: 32.8 | F153: 108.2 | G153: 65.4 | H153: 95.7 | I153: 104.5 | J153: 45.2 | K153: 79.7 | L153: 72.8 | M153: 10.2 | N153: 270.7 | O153: 161.9 | P153: 9.7 | Q153: 1056.8
A154: Selva | B154: VN | C154: Vilobí d'Onyar | D154: Selva_VN_Vilobí d'Onyar | E154: 35.9 | F154: 95.3 | G154: 64 | H154: 100.2 | I154: 80.6 | J154: 22.7 | K154: 39.6 | L154: 49.8 | M154: 5.7 | N154: 200.4 | O154: 168.6 | P154: 9.7 | Q154: 872.5
A155: Solsones | B155: Z8 | C155: el Port del Comte (2.316 m) | D155: Solsones_Z8_el Port del Comte (2.316 m) | E155: 67.8 | F155: 138.3 | G155: 189.2 | H155: 176.3 | I155: 201.9 | J155: 137.2 | K155: 40.3 | L155: 209.2 | M155: 78.8 | N155: 258.9 | O155: 132.3 | P155: 25.7 | Q155: 1655.9
A156: Solsones | B156: MV | C156: Guixers - Valls | D156: Solsones_MV_Guixers - Valls | E156: 95.9 | F156: 120 | G156: 105.7 | H156: 119.5 | I156: 147.4 | J156: 74.8 | K156: 30.1 | L156: 136.8 | M156: 36.3 | N156: 238.7 | O156: 75.7 | P156: 8.5 | Q156: 1189.4
A157: Solsones | B157: vo | C157: Lladurs | D157: Solsones_vo_Lladurs | E157: 56.1 | F157: 89.9 | G157: 86 | H157: 106.6 | I157: 136.3 | J157: 98.6 | K157: 16.8 | L157: 98.2 | M157: 38.8 | N157: 191.3 | O157: 96.7 | P157: 10.4 | Q157: 1025.7
A158: Solsones | B158: MW | C158: Naves | D158: Solsones_MW_Naves | E158: 84.6 | F158: 108 | G158: 71 | H158: 103.8 | I158: 123 | J158: 32.8 | K158: 47 | L158: 111.2 | M158: 25.9 | N158: 167.9 | O158: 82.7 | P158: 8.6 | Q158: 966.5
A159: Solsones | B159: VP | C159: Pinós | D159: Solsones_VP_Pinós | E159: 84.8 | F159: 89.8 | G159: 65.1 | H159: 99.5 | I159: 78.6 | J159: 86.4 | K159: 28.3 | L159: 47.3 | M159: 24.7 | N159: 184.7 | O159: 100.7 | P159: 8.7 | Q159: 898.6
A160: Solsones | B160: XT | C160: Solsona | D160: Solsones_XT_Solsona | E160: 75.5 | F160: 97.2 | G160: 85 | H160: 98.5 | I160: 111.9 | J160: 35.4 | K160: 29.6 | L160: 62.4 | M160: 50.8 | N160: 241.4 | O160: 108.7 | P160: 6.1 | Q160: 1002.5
A161: Tarragones | B161: VQ | C161: Constantí | D161: Tarragones_VQ_Constantí | E161: 13.5 | F161: 94.2 | G161: 28.3 | H161: 67.3 | I161: 40.1 | J161: 6.9 | K161: 4.7 | L161: 94.6 | M161: 87.3 | N161: 336.5 | O161: 67.1 | P161: 7.9 | Q161: 848.4
A162: Tarragones | B162: XE | C162: Tarragona - Complex Educatiu | D162: Tarragones_XE_Tarragona - Complex Educatiu | E162: 18.1 | F162: 83.1 | G162: 22.4 | H162: 45.6 | I162: 3 | J162: 9.3 | K162: 2 | L162: 77.5 | M162: 44.1 | N162: 386.5 | O162: 66 | P162: 5.2 | Q162: 762.8
A163: Tarragones | B163: DK | C163: Torredembarra | D163: Tarragones_DK_Torredembarra | E163: 17.9 | F163: 102.3 | G163: 40.8 | H163: 45.5 | I163: 9.3 | J163: 13.6 | K163: 5.6 | L163: 120.6 | M163: 74.1 | N163: 200 | O163: 42.2 | P163: 5.8 | Q163: 677.7
A164: Terra Alta | B164: WD | C164: Batea | D164: Terra Alta_WD_Batea | E164: 39.4 | F164: 36.4 | G164: 32 | H164: 67.5 | I164: 60 | J164: 11.2 | K164: 26.4 | L164: 1.5 | M164: 20.3 | N164: 166.9 | O164: 63.5 | P164: 12.3 | Q164: 537.4
A165: Terra Alta | B165: XP | C165: Gandesa | D165: Terra Alta_XP_Gandesa | E165: 26.2 | F165: 46.6 | G165: 33.2 | H165: 64.3 | I165: 48 | J165: 12 | K165: 11 | L165: 8.6 | M165: 7.7 | N165: 161.3 | O165: 71.1 | P165: 11.4 | Q165: 501.4
A166: Terra Alta | B166: D8 | C166: Horta de Sant Joan | D166: Terra Alta_D8_Horta de Sant Joan | E166: 114.1 | F166: 43 | G166: 37.8 | H166: 79.1 | I166: 62.8 | J166: 16.3 | K166: 29.6 | L166: 6.9 | M166: 2.2 | N166: 231.1 | O166: 80.7 | P166: 12.4 | Q166: 716
A167: Urgell | B167: WL | C167: Sant Martí de Riucorb | D167: Urgell_WL_Sant Martí de Riucorb | E167: 26.1 | F167: 28.1 | G167: 55 | H167: 88.1 | I167: 41.5 | J167: 14.6 | K167: 13.4 | L167: 3.8 | M167: 4.8 | N167: 123.9 | O167: 51.9 | P167: 12.8 | Q167: 464
A168: Urgell | B168: C7 | C168: Tarrega | D168: Urgell_C7_Tarrega | E168: 30.1 | F168: 34.5 | G168: 70.3 | H168: 79.6 | I168: 82.1 | J168: 21.6 | K168: 16.9 | L168: 19 | M168: 14.9 | N168: 103.5 | O168: 65.8 | P168: 13.5 | Q168: 551.8
A169: Urgell | B169: XX | C169: Tornabous | D169: Urgell_XX_Tornabous | E169: 26.7 | F169: 34.6 | G169: 59.5 | H169: 86.1 | I169: 45.9 | J169: 8.4 | K169: 10 | L169: 7.1 | M169: 6 | N169: 108.7 | O169: 62.1 | P169: 12.5 | Q169: 467.6
A170: Val d'Aran | B170: vs | C170: Lac Redan (2.247 m) | D170: Val d'Aran_vs_Lac Redan (2.247 m) | E170: 197 | F170: 351.4 | G170: 191.4 | H170: 107.6 | I170: 255.9 | J170: 104.7 | K170: 93 | L170: 125.9 | M170: 93.1 | N170: 192 | O170: 86.7 | P170: 83.8 | Q170: 1882.5
A171: Val d'Aran | B171: Z6 | C171: Sasseuva (2.228 m) | D171: Val d'Aran_Z6_ Sasseuva (2.228 m) | E171: 133.1 | F171: 206.1 | G171: 123.9 | H171: 92.4 | I171: 188.9 | J171: 82.7 | K171: 141.7 | L171: 31.9 | M171: 47.9 | N171: 116.5 | O171: 51.9 | P171: 44.8 | Q171: 1261.8
A172: Val d'Aran | B172: cu | C172: Vielha | D172: Val d'Aran_cu_Vielha | E172: 123 | F172: 192.3 | G172: 112.7 | H172: 160.3 | I172: 155.4 | J172: 83.9 | K172: 58.7 | L172: 96.8 | M172: 67.8 | N172: 116.1 | O172: 43 | P172: 37.1 | Q172: 1247.1
A173: Valles Occ. | B173: XC | C173: Castellbisbal | D173: Valles Occ._XC_Castellbisbal | E173: 86.3 | F173: 106.4 | G173: 100 | H173: 85.5 | I173: 27.8 | J173: 98.2 | K173: 41.4 | L173: 75.2 | M173: 70.4 | N173: 150.3 | O173: 228.4 | P173: 2.8 | Q173: 1072.7
A174: Valles Occ. | B174: vu | C174: Rellinars | D174: Valles Occ._vu_Rellinars | E174: 81.1 | F174: 101.6 | G174: 83.9 | H174: 113.9 | I174: 78.7 | J174: 80.4 | K174: 29.7 | L174: 41.5 | M174: 28.7 | N174: 178.3 | O174: 129.8 | P174: 5.1 | Q174: 952.7
A175: Valles Occ. | B175: XF | C175: Sabadell - Pare Agrari | D175: Valles Occ._XF_Sabadell - Pare Agrari | E175: 72.7 | F175: 85.5 | G175: 86.1 | H175: 91.2 | I175: 44.9 | J175: 70.5 | K175: 37.6 | L175: 77.5 | M175: 39.4 | N175: 154.6 | O175: 156.2 | P175: 3.2 | Q175: 919.4
A176: Valles Occ. | B176: XV | C176: Sant Cugat del Valles - CAR | D176: Valles Occ._XV_Sant Cugat del Valles - CAR | E176: 70.4 | F176: 89 | G176: 89 | H176: 77.4 | I176: 44.2 | J176: 61.4 | K176: 24.6 | L176: 35.1 | M176: 31.3 | N176: 174.5 | O176: 158.2 | P176: 3.8 | Q176: 858.9
A177: Valles Occ. | B177: vv | C177: Sant Llorenç Savall | D177: Valles Occ._vv_Sant Llorenç Savall | E177: 99.7 | F177: 109.2 | G177: 107.7 | H177: 132.8 | I177: 136.9 | J177: 63.1 | K177: 22.1 | L177: 39.8 | M177: 21.6 | N177: 210.6 | O177: 139.3 | P177: 5.8 | Q177: 1088.6
A178: Valles Occ. | B178: D2 | C178: Vacarisses | D178: Valles Occ._D2_Vacarisses | E178: 67.3 | F178: 106.8 | G178: 85.4 | H178: 101.9 | I178: 76 | J178: 89.5 | K178: 28.5 | L178: 40.1 | M178: 58.3 | N178: 157 | O178: 159 | P178: 2.4 | Q178: 972.2
A179: Valles Oriental | B179: X9 | C179: Caldes de Montbui | D179: Valles Oriental_X9_Caldes de Montbui | E179: 73.8 | F179: 91.1 | G179: 74.6 | H179: 77.1 | I179: 52.4 | J179: 43.6 | K179: 18.5 | L179: 26.2 | M179: 41.5 | N179: 142.3 | O179: 106.3 | P179: 6.9 | Q179: 754.3
A180: Valles Oriental | B180: KX | C180: la Roca del Valles - ETAP Cardedeu | D180: Valles Oriental_KX_la Roca del Valles - ETAP Cardedeu | E180: 77.8 | F180: 76.1 | G180: 65.2 | H180: 128.4 | I180: 75.5 | J180: 23.7 | K180: 40 | L180: 26.4 | M180: 73.4 | N180: 227.4 | O180: 125.3 | P180: 4.6 | Q180: 943.8
A181: Valles Oriental | B181: XG | C181: Parets del Valles | D181: Valles Oriental_XG_Parets del Valles | E181: 75.2 | F181: 77.2 | G181: 84.3 | H181: 68.5 | I181: 37 | J181: 109.4 | K181: 10.1 | L181: 23.1 | M181: 31.7 | N181: 146.8 | O181: 102.9 | P181: 4.6 | Q181: 770.8
A182: Valles Oriental | B182: XK | C182: Puig Sesolles (1.668m) | D182: Valles Oriental_XK_Puig Sesolles (1.668m) | E182: 87.9 | F182: 122.9 | G182: 122.7 | H182: 160.9 | I182: 147.4 | J182: 74.6 | K182: 57.5 | L182: 96.7 | M182: 22.8 | N182: 378.6 | O182: 190.3 | P182: 5.1 | Q182: 1467.4
A183: Valles Oriental | B183: VX | C183: Tagamanent - PN del Montseny | D183: Valles Oriental_VX_Tagamanent - PN del Montseny | E183: 87.8 | F183: 102.9 | G183: 80.4 | H183: 153.1 | I183: 121 | J183: 35.2 | K183: 13.5 | L183: 81.5 | M183: 3.8 | N183: 253.1 | O183: 110.8 | P183: 5.7 | Q183: 1048.8
A184: Valles Oriental | B184: WE | C184: Vilanova del Valles | D184: Valles Oriental_WE_Vilanova del Valles | E184: 99.7 | F184: 79.7 | G184: 94.5 | H184: 88.4 | I184: 75.7 | J184: 20.4 | K184: 14.1 | L184: 22.6 | M184: 28.3 | N184: 219.7 | O184: 181.5 | P184: 8.9 | Q184: 933.5

Sheet Balanç anual (hidden)
A1: Superfície coberta | B1: =APLICATIU!J8 -> 70
A2: Eficiència de recollida | B2: 0.8 | P2: Volum dipòsit (l) | Q2: =APLICATIU!J29*1000 -> 3800
A4: ='Aigua recollida'!A13 -> Sant Andreu | B4: 31 | C4: 28 | D4: 31 | E4: 30 | F4: 31 | G4: 30 | H4: 31 | I4: 31 | J4: 30 | K4: 31 | L4: 30 | M4: 31 | N4: 31 | O4: 28 | P4: 31 | Q4: 30 | R4: 31 | S4: 30 | T4: 31 | U4: 31 | V4: 30 | W4: 31 | X4: 30 | Y4: 31 | Z4: 31 | AA4: 28 | AB4: 31 | AC4: 30 | AD4: 31 | AE4: 30 | AF4: 31 | AG4: 31 | AH4: 30 | AI4: 31 | AJ4: 30 | AK4: 31
A5: Mes | B5: Gener | C5: Febrer | D5: Març | E5: Abril | F5: Maig | G5: Juny | H5: Juliol | I5: Agost | J5: Setembre | K5: Octubre | L5: Novembre | M5: Desembre | N5: Gener | O5: Febrer | P5: Març | Q5: Abril | R5: Maig | S5: Juny | T5: Juliol | U5: Agost | V5: Setembre | W5: Octubre | X5: Novembre | Y5: Desembre | Z5: Gener | AA5: Febrer | AB5: Març | AC5: Abril | AD5: Maig | AE5: Juny | AF5: Juliol | AG5: Agost | AH5: Setembre | AI5: Octubre | AJ5: Novembre | AK5: Desembre | AL5: TOTAL | AN5: Pluviòmetre | AO5: Aigua recollida (m³/any) | AP5: Demanda domèstica (m³/any) | AQ5: Demanda reg (m³/any) | AR5: Demanda total (m³/any) | AS5: Volum estalviat | AT5: Demanda reg (l/dia)
A6: Pluviometria (mm) | B6: ='Aigua recollida'!B16 -> 58 | C6: ='Aigua recollida'!C16 -> 63 | D6: ='Aigua recollida'!D16 -> 56 | E6: ='Aigua recollida'!E16 -> 59 | F6: ='Aigua recollida'!F16 -> 54 | G6: ='Aigua recollida'!G16 -> 30 | H6: ='Aigua recollida'!H16 -> 20 | I6: ='Aigua recollida'!I16 -> 46 | J6: ='Aigua recollida'!J16 -> 86 | K6: ='Aigua recollida'!K16 -> 91 | L6: ='Aigua recollida'!L16 -> 56 | M6: ='Aigua recollida'!M16 -> 58 | N6: ='Aigua recollida'!B16 -> 58 | O6: ='Aigua recollida'!C16 -> 63 | P6: ='Aigua recollida'!D16 -> 56 | Q6: ='Aigua recollida'!E16 -> 59 | R6: ='Aigua recollida'!F16 -> 54 | S6: ='Aigua recollida'!G16 -> 30 | T6: ='Aigua recollida'!H16 -> 20 | U6: ='Aigua recollida'!I16 -> 46 | V6: ='Aigua recollida'!J16 -> 86 | W6: ='Aigua recollida'!K16 -> 91 | X6: ='Aigua recollida'!L16 -> 56 | Y6: ='Aigua recollida'!M16 -> 58 | Z6: ='Aigua recollida'!B16 -> 58 | AA6: ='Aigua recollida'!C16 -> 63 | AB6: ='Aigua recollida'!D16 -> 56 | AC6: ='Aigua recollida'!E16 -> 59 | AD6: ='Aigua recollida'!F16 -> 54 | AE6: ='Aigua recollida'!G16 -> 30 | AF6: ='Aigua recollida'!H16 -> 20 | AG6: ='Aigua recollida'!I16 -> 46 | AH6: ='Aigua recollida'!J16 -> 86 | AI6: ='Aigua recollida'!K16 -> 91 | AJ6: ='Aigua recollida'!L16 -> 56 | AK6: ='Aigua recollida'!M16 -> 58 | AN6: =A4 -> Sant Andreu | AO6: =AL7 -> 1236.248 | AP6: =AL10 -> 117.53 | AQ6: =AL11 -> 6.335073425 | AR6: =AL12 -> 123.8650734 | AS6: =AL15 -> 45.048
A7: Aigua recollida (m³/mes) | B7: ='Aigua recollida'!B17 -> 3.248 | C7: ='Aigua recollida'!C17 -> 3.528 | D7: ='Aigua recollida'!D17 -> 3.136 | E7: ='Aigua recollida'!E17 -> 3.304 | F7: ='Aigua recollida'!F17 -> 3.024 | G7: ='Aigua recollida'!G17 -> 1.68 | H7: ='Aigua recollida'!H17 -> 1.12 | I7: ='Aigua recollida'!I17 -> 2.576 | J7: ='Aigua recollida'!J17 -> 4.816 | K7: ='Aigua recollida'!K17 -> 5.096 | L7: ='Aigua recollida'!L17 -> 3.136 | M7: ='Aigua recollida'!M17 -> 3.248 | N7: ='Aigua recollida'!B17 -> 3.248 | O7: ='Aigua recollida'!C17 -> 3.528 | P7: ='Aigua recollida'!D17 -> 3.136 | Q7: ='Aigua recollida'!E17 -> 3.304 | R7: ='Aigua recollida'!F17 -> 3.024 | S7: ='Aigua recollida'!G17 -> 1.68 | T7: ='Aigua recollida'!H17 -> 1.12 | U7: ='Aigua recollida'!I17 -> 2.576 | V7: ='Aigua recollida'!J17 -> 4.816 | W7: ='Aigua recollida'!K17 -> 5.096 | X7: ='Aigua recollida'!L17 -> 3.136 | Y7: ='Aigua recollida'!M17 -> 3.248 | Z7: ='Aigua recollida'!B17 -> 3.248 | AA7: ='Aigua recollida'!D16 -> 56 | AB7: ='Aigua recollida'!E16 -> 59 | AC7: ='Aigua recollida'!F16 -> 54 | AD7: ='Aigua recollida'!G16 -> 30 | AE7: ='Aigua recollida'!H16 -> 20 | AF7: ='Aigua recollida'!I16 -> 46 | AG7: ='Aigua recollida'!J16 -> 86 | AH7: ='Aigua recollida'!K16 -> 91 | AI7: ='Aigua recollida'!L16 -> 56 | AJ7: ='Aigua recollida'!M16 -> 58 | AK7: ='Aigua recollida'!N16 -> 677 | AL7: =SUM(Z7:AK7) -> 1236.248 | AM7: m³/any | AN7: Personalitzat | AO7: =AL22 -> 0 | AP7: =AL25 -> 117.53 | AQ7: =AL26 -> 6.335073425 | AR7: =AL27 -> 123.8650734 | AS7: =AL30 -> 0
A8: Aigua recollida (l/mes) | B8: =B7*1000 -> 3248 | C8: =C7*1000 -> 3528 | D8: 3136 | E8: 3304 | F8: 3024 | G8: 1680 | H8: 1120 | I8: 2576 | J8: 4816 | K8: 5096 | L8: 3136 | M8: 3248 | N8: 3248 | O8: 3528 | P8: 3136 | Q8: 3304 | R8: 3024 | S8: 1680 | T8: 1120 | U8: 2576 | V8: 4816 | W8: 5096 | X8: 3136 | Y8: 3248 | Z8: 3248 | AA8: 56000 | AB8: 59000 | AC8: 54000 | AD8: 30000 | AE8: 20000 | AF8: 46000 | AG8: 86000 | AH8: 91000 | AI8: 56000 | AJ8: 58000 | AK8: 677000 | AP8: Aigua recollida | AQ8: =VLOOKUP(APLICATIU!I4,'Balanç anual'!AN6:AO7,2,FALSE) -> 1236.248
A9: Reserva d'aigua (l) | B9: =MIN(Q2,B8) -> 3248 | C9: =MIN($Q$2,IF(B13<0,C8,IF(B13=0,B14+C8))) -> 3528 | D9: =MIN($Q$2,IF(C13<0,D8,IF(C13=0,C14+D8))) -> 3136 | E9: 3304 | F9: 3024 | G9: 1680 | H9: 1120 | I9: =MIN($Q$2,IF(H13<0,I8,IF(H13=0,H14+I8))) -> 2576 | J9: =MIN($Q$2,IF(I13<0,J8,IF(I13=0,I14+J8))) -> 3800 | K9: =MIN($Q$2,IF(J13<0,K8,IF(J13=0,J14+K8))) -> 3800 | L9: =MIN($Q$2,IF(K13<0,L8,IF(K13=0,K14+L8))) -> 3136 | M9: =MIN($Q$2,IF(L13<0,M8,IF(L13=0,L14+M8))) -> 3248 | N9: =MIN($Q$2,IF(M13<0,N8,IF(M13=0,M14+N8))) -> 3248 | O9: 3528 | P9: =MIN($Q$2,IF(O13<0,P8,IF(O13=0,O14+P8))) -> 3136 | Q9: =MIN($Q$2,IF(P13<0,Q8,IF(P13=0,P14+Q8))) -> 3304 | R9: =MIN($Q$2,IF(Q13<0,R8,IF(Q13=0,Q14+R8))) -> 3024 | S9: =MIN($Q$2,IF(R13<0,S8,IF(R13=0,R14+S8))) -> 1680 | T9: =MIN($Q$2,IF(S13<0,T8,IF(S13=0,S14+T8))) -> 1120 | U9: 2576 | V9: =MIN($Q$2,IF(U13<0,V8,IF(U13=0,U14+V8))) -> 3800 | W9: =MIN($Q$2,IF(V13<0,W8,IF(V13=0,V14+W8))) -> 3800 | X9: =MIN($Q$2,IF(W13<0,X8,IF(W13=0,W14+X8))) -> 3136 | Y9: =MIN($Q$2,IF(X13<0,Y8,IF(X13=0,X14+Y8))) -> 3248 | Z9: =MIN($Q$2,IF(Y13<0,Z8,IF(Y13=0,Y14+Z8))) -> 3248 | AA9: 3800 | AB9: =MIN($Q$2,IF(AA13<0,AB8,IF(AA13=0,AA14+AB8))) -> 3800 | AC9: =MIN($Q$2,IF(AB13<0,AC8,IF(AB13=0,AB14+AC8))) -> 3800 | AD9: =MIN($Q$2,IF(AC13<0,AD8,IF(AC13=0,AC14+AD8))) -> 3800 | AE9: =MIN($Q$2,IF(AD13<0,AE8,IF(AD13=0,AD14+AE8))) -> 3800 | AF9: =MIN($Q$2,IF(AE13<0,AF8,IF(AE13=0,AE14+AF8))) -> 3800 | AG9: 3800 | AH9: =MIN($Q$2,IF(AG13<0,AH8,IF(AG13=0,AG14+AH8))) -> 3800 | AI9: =MIN($Q$2,IF(AH13<0,AI8,IF(AH13=0,AH14+AI8))) -> 3800 | AJ9: =MIN($Q$2,IF(AI13<0,AJ8,IF(AI13=0,AI14+AJ8))) -> 3800 | AK9: =MIN($Q$2,IF(AJ13<0,AK8,IF(AJ13=0,AJ14+AK8))) -> 3800 | AP9: Demanda total | AQ9: =VLOOKUP(APLICATIU!I4,'Balanç anual'!AN6:AR7,5,FALSE) -> 123.8650734
A10: Demanda domèstica (l/mes) | B10: =Consum!$C$19*B4 -> 9982 | C10: =Consum!$C$19*C4 -> 9016 | D10: =Consum!$C$19*D4 -> 9982 | E10: =Consum!$C$19*E4 -> 9660 | F10: =Consum!$C$19*F4 -> 9982 | G10: =Consum!$C$19*G4 -> 9660 | H10: =Consum!$C$19*H4 -> 9982 | I10: =Consum!$C$19*I4 -> 9982 | J10: =Consum!$C$19*J4 -> 9660 | K10: =Consum!$C$19*K4 -> 9982 | L10: =Consum!$C$19*L4 -> 9660 | M10: =Consum!$C$19*M4 -> 9982 | N10: =Consum!$C$19*N4 -> 9982 | O10: =Consum!$C$19*O4 -> 9016 | P10: =Consum!$C$19*P4 -> 9982 | Q10: =Consum!$C$19*Q4 -> 9660 | R10: =Consum!$C$19*R4 -> 9982 | S10: =Consum!$C$19*S4 -> 9660 | T10: =Consum!$C$19*T4 -> 9982 | U10: =Consum!$C$19*U4 -> 9982 | V10: =Consum!$C$19*V4 -> 9660 | W10: =Consum!$C$19*W4 -> 9982 | X10: =Consum!$C$19*X4 -> 9660 | Y10: =Consum!$C$19*Y4 -> 9982 | Z10: =Consum!$C$19*Z4 -> 9982 | AA10: =Consum!$C$19*AA4 -> 9016 | AB10: =Consum!$C$19*AB4 -> 9982 | AC10: =Consum!$C$19*AC4 -> 9660 | AD10: =Consum!$C$19*AD4 -> 9982 | AE10: =Consum!$C$19*AE4 -> 9660 | AF10: =Consum!$C$19*AF4 -> 9982 | AG10: =Consum!$C$19*AG4 -> 9982 | AH10: =Consum!$C$19*AH4 -> 9660 | AI10: =Consum!$C$19*AI4 -> 9982 | AJ10: =Consum!$C$19*AJ4 -> 9660 | AK10: =Consum!$C$19*AK4 -> 9982 | AL10: =(SUM(Z10:AK10)/1000) -> 117.53 | AM10: m³/any | AN10: RESERVA JULIOL
A11: Demanda de reg (l/mes) | B11: ='Necessitats de reg'!B77*B4 -> 180.6255708 | C11: ='Necessitats de reg'!C77*C4 -> 249.5515982 | D11: ='Necessitats de reg'!D77*D4 -> 429.886758 | E11: ='Necessitats de reg'!E77*E4 -> 558.9388128 | F11: ='Necessitats de reg'!F77*F4 -> 732.789589 | G11: ='Necessitats de reg'!G77*G4 -> 886.2 | H11: ='Necessitats de reg'!H77*H4 -> 980.1333333 | I11: ='Necessitats de reg'!I77*I4 -> 901.0666667 | J11: ='Necessitats de reg'!J77*J4 -> 625.4520548 | K11: ='Necessitats de reg'!K77*K4 -> 406.179726 | L11: ='Necessitats de reg'!L77*L4 -> 223.690411 | M11: ='Necessitats de reg'!M77*M4 -> 160.5589041 | N11: ='Necessitats de reg'!B77*N4 -> 180.6255708 | O11: ='Necessitats de reg'!C77*O4 -> 249.5515982 | P11: ='Necessitats de reg'!D77*P4 -> 429.886758 | Q11: ='Necessitats de reg'!E77*Q4 -> 558.9388128 | R11: ='Necessitats de reg'!F77*R4 -> 732.789589 | S11: ='Necessitats de reg'!G77*S4 -> 886.2 | T11: ='Necessitats de reg'!H77*T4 -> 980.1333333 | U11: ='Necessitats de reg'!I77*U4 -> 901.0666667 | V11: ='Necessitats de reg'!J77*V4 -> 625.4520548 | W11: ='Necessitats de reg'!K77*W4 -> 406.179726 | X11: ='Necessitats de reg'!L77*X4 -> 223.690411 | Y11: ='Necessitats de reg'!M77*Y4 -> 160.5589041 | Z11: ='Necessitats de reg'!B77*Z4 -> 180.6255708 | AA11: ='Necessitats de reg'!C77*AA4 -> 249.5515982 | AB11: ='Necessitats de reg'!D77*AB4 -> 429.886758 | AC11: ='Necessitats de reg'!E77*AC4 -> 558.9388128 | AD11: ='Necessitats de reg'!F77*AD4 -> 732.789589 | AE11: ='Necessitats de reg'!G77*AE4 -> 886.2 | AF11: ='Necessitats de reg'!H77*AF4 -> 980.1333333 | AG11: ='Necessitats de reg'!I77*AG4 -> 901.0666667 | AH11: ='Necessitats de reg'!J77*AH4 -> 625.4520548 | AI11: ='Necessitats de reg'!K77*AI4 -> 406.179726 | AJ11: ='Necessitats de reg'!L77*AJ4 -> 223.690411 | AK11: ='Necessitats de reg'!M77*AK4 -> 160.5589041 | AL11: =(SUM(Z11:AK11)/1000) -> 6.335073425 | AM11: m³/any | AN11: Sant Andreu | AO11: =T9 -> 1120 | AP11: =AO11/APLICATIU!$D$34 -> 3.167266712
A12: Demanda total (l/mes) | B12: =B11+B10 -> 10162.62557 | C12: =C11+C10 -> 9265.551598 | D12: 10411.88676 | E12: 10218.93881 | F12: 10714.78959 | G12: 10546.2 | H12: 10962.13333 | I12: 10883.06667 | J12: 10285.45205 | K12: 10388.17973 | L12: 9883.690411 | M12: 10142.5589 | N12: =N11+N10 -> 10162.62557 | O12: =O11+O10 -> 9265.551598 | P12: 10411.88676 | Q12: 10218.93881 | R12: 10714.78959 | S12: 10546.2 | T12: 10962.13333 | U12: 10883.06667 | V12: 10285.45205 | W12: 10388.17973 | X12: 9883.690411 | Y12: 10142.5589 | Z12: =Z11+Z10 -> 10162.62557 | AA12: =AA11+AA10 -> 9265.551598 | AB12: 10411.88676 | AC12: 10218.93881 | AD12: 10714.78959 | AE12: 10546.2 | AF12: 10962.13333 | AG12: 10883.06667 | AH12: 10285.45205 | AI12: 10388.17973 | AJ12: 9883.690411 | AK12: 10142.5589 | AL12: =(SUM(Z12:AK12)/1000) -> 123.8650734 | AM12: m³/any
A13: Dèficit aigua (l/mes) | B13: =IF(B9-B12<0,B9-B12,0) -> -6914.625571 | C13: =IF(C9-C12<0,C9-C12,0) -> -5737.551598 | D13: -7275.886758 | E13: -6914.938813 | F13: -7690.789589 | G13: -8866.2 | H13: -9842.133333 | I13: -8307.066667 | J13: -6485.452055 | K13: -6588.179726 | L13: -6747.690411 | M13: -6894.558904 | N13: =IF(N9-N12<0,N9-N12,0) -> -6914.625571 | O13: =IF(O9-O12<0,O9-O12,0) -> -5737.551598 | P13: -7275.886758 | Q13: -6914.938813 | R13: -7690.789589 | S13: -8866.2 | T13: -9842.133333 | U13: -8307.066667 | V13: -6485.452055 | W13: -6588.179726 | X13: -6747.690411 | Y13: -6894.558904 | Z13: =IF(Z9-Z12<0,Z9-Z12,0) -> -6914.625571 | AA13: =IF(AA9-AA12<0,AA9-AA12,0) -> -5465.551598 | AB13: -6611.886758 | AC13: -6418.938813 | AD13: -6914.789589 | AE13: -6746.2 | AF13: -7162.133333 | AG13: -7083.066667 | AH13: -6485.452055 | AI13: -6588.179726 | AJ13: -6083.690411 | AK13: -6342.558904 | AL13: =(SUM(Z13:AK13)/1000) -> -78.81707342 | AM13: m³/any
A14: Sobrant aigua (l/mes) | B14: =IF(B9-B12>0,B9-B12,0) -> 0 | C14: =IF(C9-C12>0,C9-C12,0) -> 0 | D14: 0 | E14: 0 | F14: 0 | G14: 0 | H14: 0 | I14: 0 | J14: 0 | K14: 0 | L14: 0 | M14: 0 | N14: =IF(N9-N12>0,N9-N12,0) -> 0 | O14: =IF(O9-O12>0,O9-O12,0) -> 0 | P14: 0 | Q14: 0 | R14: 0 | S14: 0 | T14: 0 | U14: 0 | V14: 0 | W14: 0 | X14: 0 | Y14: 0 | Z14: =IF(Z9-Z12>0,Z9-Z12,0) -> 0 | AA14: =IF(AA9-AA12>0,AA9-AA12,0) -> 0 | AB14: 0 | AC14: 0 | AD14: 0 | AE14: 0 | AF14: 0 | AG14: 0 | AH14: 0 | AI14: 0 | AJ14: 0 | AK14: 0 | AL14: =(SUM(Z14:AK14)/1000) -> 0 | AM14: m³/any
A15: Volum estalviat | B15: =B9-B14 -> 3248 | C15: =C9-C14 -> 3528 | D15: 3136 | E15: =E9-E14 -> 3304 | F15: =F9-F14 -> 3024 | G15: =G9-G14 -> 1680 | H15: =H9-H14 -> 1120 | I15: 2576 | J15: 3800 | K15: 3800 | L15: 3136 | M15: 3248 | N15: =N9-N14 -> 3248 | O15: =O9-O14 -> 3528 | P15: =P9-P14 -> 3136 | Q15: =Q9-Q14 -> 3304 | R15: 3024 | S15: 1680 | T15: 1120 | U15: 2576 | V15: =V9-V14 -> 3800 | W15: =W9-W14 -> 3800 | X15: =X9-X14 -> 3136 | Y15: =Y9-Y14 -> 3248 | Z15: =Z9-Z14 -> 3248 | AA15: =AA9-AA14 -> 3800 | AB15: =AB9-AB14 -> 3800 | AC15: =AC9-AC14 -> 3800 | AD15: =AD9-AD14 -> 3800 | AE15: =AE9-AE14 -> 3800 | AF15: =AF9-AF14 -> 3800 | AG15: =AG9-AG14 -> 3800 | AH15: 3800 | AI15: 3800 | AJ15: =AJ9-AJ14 -> 3800 | AK15: =AK9-AK14 -> 3800 | AL15: =(SUM(Z15:AK15))/1000 -> 45.048 | AM15: m³/any | AN15: =IF(AL7<AL12,100,((AL12*100)/AL7)) -> 10.0194357
B16: =B11/B4 -> 5.826631315 | C16: =C11/C4 -> 8.912557078 | D16: 13.86731477 | E16: 18.63129376 | F16: 23.63837384 | G16: 29.54 | H16: 31.6172043 | I16: 29.06666667 | J16: 20.84840183 | K16: 13.10257181 | L16: 7.456347032 | M16: 5.179319487 | N16: =(SUM(B16:M16))/12 -> 17.30722349
A19: Personalitzat | B19: 31 | C19: 28 | D19: 31 | E19: 30 | F19: 31 | G19: 30 | H19: 31 | I19: 31 | J19: 30 | K19: 31 | L19: 30 | M19: 31 | N19: 31 | O19: 28 | P19: 31 | Q19: 30 | R19: 31 | S19: 30 | T19: 31 | U19: 31 | V19: 30 | W19: 31 | X19: 30 | Y19: 31 | Z19: 31 | AA19: 28 | AB19: 31 | AC19: 30 | AD19: 31 | AE19: 30 | AF19: 31 | AG19: 31 | AH19: 30 | AI19: 31 | AJ19: 30 | AK19: 31
A20: Mes | B20: Gener | C20: Febrer | D20: Març | E20: Abril | F20: Maig | G20: Juny | H20: Juliol | I20: Agost | J20: Setembre | K20: Octubre | L20: Novembre | M20: Desembre | N20: Gener | O20: Febrer | P20: Març | Q20: Abril | R20: Maig | S20: Juny | T20: Juliol | U20: Agost | V20: Setembre | W20: Octubre | X20: Novembre | Y20: Desembre | Z20: Gener | AA20: Febrer | AB20: Març | AC20: Abril | AD20: Maig | AE20: Juny | AF20: Juliol | AG20: Agost | AH20: Setembre | AI20: Octubre | AJ20: Novembre | AK20: Desembre | AL20: TOTAL
A21: Pluviometria (mm) | B21: ='Aigua recollida'!B9 -> 0 | C21: ='Aigua recollida'!C9 -> 0 | D21: ='Aigua recollida'!D9 -> 0 | E21: ='Aigua recollida'!E9 -> 0 | F21: ='Aigua recollida'!F9 -> 0 | G21: ='Aigua recollida'!G9 -> 0 | H21: ='Aigua recollida'!H9 -> 0 | I21: ='Aigua recollida'!I9 -> 0 | J21: ='Aigua recollida'!J9 -> 0 | K21: ='Aigua recollida'!K9 -> 0 | L21: ='Aigua recollida'!L9 -> 0 | M21: ='Aigua recollida'!M9 -> 0 | N21: ='Aigua recollida'!B9 -> 0 | O21: ='Aigua recollida'!C9 -> 0 | P21: ='Aigua recollida'!D9 -> 0 | Q21: ='Aigua recollida'!E9 -> 0 | R21: ='Aigua recollida'!F9 -> 0 | S21: ='Aigua recollida'!G9 -> 0 | T21: ='Aigua recollida'!H9 -> 0 | U21: ='Aigua recollida'!I9 -> 0 | V21: ='Aigua recollida'!J9 -> 0 | W21: ='Aigua recollida'!K9 -> 0 | X21: ='Aigua recollida'!L9 -> 0 | Y21: ='Aigua recollida'!M9 -> 0 | Z21: ='Aigua recollida'!B9 -> 0 | AA21: ='Aigua recollida'!C9 -> 0 | AB21: ='Aigua recollida'!D9 -> 0 | AC21: ='Aigua recollida'!E9 -> 0 | AD21: ='Aigua recollida'!F9 -> 0 | AE21: ='Aigua recollida'!G9 -> 0 | AF21: ='Aigua recollida'!H9 -> 0 | AG21: ='Aigua recollida'!I9 -> 0 | AH21: ='Aigua recollida'!J9 -> 0 | AI21: ='Aigua recollida'!K9 -> 0 | AJ21: ='Aigua recollida'!L9 -> 0 | AK21: ='Aigua recollida'!M9 -> 0
A22: Aigua recollida (m³) | B22: ='Aigua recollida'!B10 -> 0 | C22: ='Aigua recollida'!C10 -> 0 | D22: ='Aigua recollida'!D10 -> 0 | E22: ='Aigua recollida'!E10 -> 0 | F22: ='Aigua recollida'!F10 -> 0 | G22: ='Aigua recollida'!G10 -> 0 | H22: ='Aigua recollida'!H10 -> 0 | I22: ='Aigua recollida'!I10 -> 0 | J22: ='Aigua recollida'!J10 -> 0 | K22: ='Aigua recollida'!K10 -> 0 | L22: ='Aigua recollida'!L10 -> 0 | M22: ='Aigua recollida'!M10 -> 0 | N22: ='Aigua recollida'!B10 -> 0 | O22: ='Aigua recollida'!C10 -> 0 | P22: ='Aigua recollida'!D10 -> 0 | Q22: ='Aigua recollida'!E10 -> 0 | R22: ='Aigua recollida'!F10 -> 0 | S22: ='Aigua recollida'!G10 -> 0 | T22: ='Aigua recollida'!H10 -> 0 | U22: ='Aigua recollida'!I10 -> 0 | V22: ='Aigua recollida'!J10 -> 0 | W22: ='Aigua recollida'!K10 -> 0 | X22: ='Aigua recollida'!L10 -> 0 | Y22: ='Aigua recollida'!M10 -> 0 | Z22: ='Aigua recollida'!B10 -> 0 | AA22: ='Aigua recollida'!C10 -> 0 | AB22: ='Aigua recollida'!D10 -> 0 | AC22: ='Aigua recollida'!E10 -> 0 | AD22: ='Aigua recollida'!F10 -> 0 | AE22: ='Aigua recollida'!G10 -> 0 | AF22: ='Aigua recollida'!H10 -> 0 | AG22: ='Aigua recollida'!I10 -> 0 | AH22: ='Aigua recollida'!J10 -> 0 | AI22: ='Aigua recollida'!K10 -> 0 | AJ22: ='Aigua recollida'!L10 -> 0 | AK22: ='Aigua recollida'!M10 -> 0 | AL22: =SUM(Z22:AK22) -> 0 | AM22: m³/any
A23: Aigua recollida (l/d) | B23: =B22*1000 -> 0 | C23: =C22*1000 -> 0 | D23: 0 | E23: 0 | F23: 0 | G23: 0 | H23: 0 | I23: 0 | J23: 0 | K23: 0 | L23: 0 | M23: 0 | N23: 0 | O23: 0 | P23: 0 | Q23: 0 | R23: 0 | S23: 0 | T23: 0 | U23: 0 | V23: 0 | W23: 0 | X23: 0 | Y23: 0 | Z23: 0 | AA23: 0 | AB23: 0 | AC23: 0 | AD23: 0 | AE23: 0 | AF23: 0 | AG23: 0 | AH23: 0 | AI23: 0 | AJ23: 0 | AK23: 0
A24: Reserva d'aigua (l) | B24: =B23 -> 0 | C24: =MIN($Q$2,IF(B28<0,C23,IF(B28=0,B29+C23))) -> 0 | D24: =MIN($Q$2,IF(C28<0,D23,IF(C28=0,C29+D23))) -> 0 | E24: =MIN($Q$2,IF(D28<0,E23,IF(D28=0,D29+E23))) -> 0 | F24: =MIN($Q$2,IF(E28<0,F23,IF(E28=0,E29+F23))) -> 0 | G24: =MIN($Q$2,IF(F28<0,G23,IF(F28=0,F29+G23))) -> 0 | H24: =MIN($Q$2,IF(G28<0,H23,IF(G28=0,G29+H23))) -> 0 | I24: =MIN($Q$2,IF(H28<0,I23,IF(H28=0,H29+I23))) -> 0 | J24: =MIN($Q$2,IF(I28<0,J23,IF(I28=0,I29+J23))) -> 0 | K24: =MIN($Q$2,IF(J28<0,K23,IF(J28=0,J29+K23))) -> 0 | L24: =MIN($Q$2,IF(K28<0,L23,IF(K28=0,K29+L23))) -> 0 | M24: =MIN($Q$2,IF(L28<0,M23,IF(L28=0,L29+M23))) -> 0 | N24: =MIN($Q$2,IF(M28<0,N23,IF(M28=0,M29+N23))) -> 0 | O24: =MIN($Q$2,IF(N28<0,O23,IF(N28=0,N29+O23))) -> 0 | P24: =MIN($Q$2,IF(O28<0,P23,IF(O28=0,O29+P23))) -> 0 | Q24: =MIN($Q$2,IF(P28<0,Q23,IF(P28=0,P29+Q23))) -> 0 | R24: =MIN($Q$2,IF(Q28<0,R23,IF(Q28=0,Q29+R23))) -> 0 | S24: =MIN($Q$2,IF(R28<0,S23,IF(R28=0,R29+S23))) -> 0 | T24: =MIN($Q$2,IF(S28<0,T23,IF(S28=0,S29+T23))) -> 0 | U24: =MIN($Q$2,IF(T28<0,U23,IF(T28=0,T29+U23))) -> 0 | V24: =MIN($Q$2,IF(U28<0,V23,IF(U28=0,U29+V23))) -> 0 | W24: =MIN($Q$2,IF(V28<0,W23,IF(V28=0,V29+W23))) -> 0 | X24: =MIN($Q$2,IF(W28<0,X23,IF(W28=0,W29+X23))) -> 0 | Y24: =MIN($Q$2,IF(X28<0,Y23,IF(X28=0,X29+Y23))) -> 0 | Z24: =MIN($Q$2,IF(Y28<0,Z23,IF(Y28=0,Y29+Z23))) -> 0 | AA24: =MIN($Q$2,IF(Z28<0,AA23,IF(Z28=0,Z29+AA23))) -> 0 | AB24: =MIN($Q$2,IF(AA28<0,AB23,IF(AA28=0,AA29+AB23))) -> 0 | AC24: =MIN($Q$2,IF(AB28<0,AC23,IF(AB28=0,AB29+AC23))) -> 0 | AD24: =MIN($Q$2,IF(AC28<0,AD23,IF(AC28=0,AC29+AD23))) -> 0 | AE24: =MIN($Q$2,IF(AD28<0,AE23,IF(AD28=0,AD29+AE23))) -> 0 | AF24: =MIN($Q$2,IF(AE28<0,AF23,IF(AE28=0,AE29+AF23))) -> 0 | AG24: =MIN($Q$2,IF(AF28<0,AG23,IF(AF28=0,AF29+AG23))) -> 0 | AH24: =MIN($Q$2,IF(AG28<0,AH23,IF(AG28=0,AG29+AH23))) -> 0 | AI24: =MIN($Q$2,IF(AH28<0,AI23,IF(AH28=0,AH29+AI23))) -> 0 | AJ24: =MIN($Q$2,IF(AI28<0,AJ23,IF(AI28=0,AI29+AJ23))) -> 0 | AK24: =MIN($Q$2,IF(AJ28<0,AK23,IF(AJ28=0,AJ29+AK23))) -> 0
A25: Demanda domèstica (l/d) | B25: =Consum!$C$19*B19 -> 9982 | C25: =Consum!$C$19*C19 -> 9016 | D25: =Consum!$C$19*D19 -> 9982 | E25: =Consum!$C$19*E19 -> 9660 | F25: =Consum!$C$19*F19 -> 9982 | G25: =Consum!$C$19*G19 -> 9660 | H25: =Consum!$C$19*H19 -> 9982 | I25: =Consum!$C$19*I19 -> 9982 | J25: =Consum!$C$19*J19 -> 9660 | K25: =Consum!$C$19*K19 -> 9982 | L25: =Consum!$C$19*L19 -> 9660 | M25: =Consum!$C$19*M19 -> 9982 | N25: =Consum!$C$19*N19 -> 9982 | O25: =Consum!$C$19*O19 -> 9016 | P25: =Consum!$C$19*P19 -> 9982 | Q25: =Consum!$C$19*Q19 -> 9660 | R25: =Consum!$C$19*R19 -> 9982 | S25: =Consum!$C$19*S19 -> 9660 | T25: =Consum!$C$19*T19 -> 9982 | U25: =Consum!$C$19*U19 -> 9982 | V25: =Consum!$C$19*V19 -> 9660 | W25: =Consum!$C$19*W19 -> 9982 | X25: =Consum!$C$19*X19 -> 9660 | Y25: =Consum!$C$19*Y19 -> 9982 | Z25: =Consum!$C$19*Z19 -> 9982 | AA25: =Consum!$C$19*AA19 -> 9016 | AB25: =Consum!$C$19*AB19 -> 9982 | AC25: =Consum!$C$19*AC19 -> 9660 | AD25: =Consum!$C$19*AD19 -> 9982 | AE25: =Consum!$C$19*AE19 -> 9660 | AF25: =Consum!$C$19*AF19 -> 9982 | AG25: =Consum!$C$19*AG19 -> 9982 | AH25: =Consum!$C$19*AH19 -> 9660 | AI25: =Consum!$C$19*AI19 -> 9982 | AJ25: =Consum!$C$19*AJ19 -> 9660 | AK25: =Consum!$C$19*AK19 -> 9982 | AL25: =(SUM(Z25:AK25)/1000) -> 117.53 | AM25: m³/any
A26: Demanda de reg (l/d) | B26: ='Necessitats de reg'!B77*B19 -> 180.6255708 | C26: ='Necessitats de reg'!C77*C19 -> 249.5515982 | D26: ='Necessitats de reg'!D77*D19 -> 429.886758 | E26: ='Necessitats de reg'!E77*E19 -> 558.9388128 | F26: ='Necessitats de reg'!F77*F19 -> 732.789589 | G26: ='Necessitats de reg'!G77*G19 -> 886.2 | H26: ='Necessitats de reg'!H77*H19 -> 980.1333333 | I26: ='Necessitats de reg'!I77*I19 -> 901.0666667 | J26: ='Necessitats de reg'!J77*J19 -> 625.4520548 | K26: ='Necessitats de reg'!K77*K19 -> 406.179726 | L26: ='Necessitats de reg'!L77*L19 -> 223.690411 | M26: ='Necessitats de reg'!M77*M19 -> 160.5589041 | N26: ='Necessitats de reg'!B77*N19 -> 180.6255708 | O26: ='Necessitats de reg'!C77*O19 -> 249.5515982 | P26: ='Necessitats de reg'!D77*P19 -> 429.886758 | Q26: ='Necessitats de reg'!E77*Q19 -> 558.9388128 | R26: ='Necessitats de reg'!F77*R19 -> 732.789589 | S26: ='Necessitats de reg'!G77*S19 -> 886.2 | T26: ='Necessitats de reg'!H77*T19 -> 980.1333333 | U26: ='Necessitats de reg'!I77*U19 -> 901.0666667 | V26: ='Necessitats de reg'!J77*V19 -> 625.4520548 | W26: ='Necessitats de reg'!K77*W19 -> 406.179726 | X26: ='Necessitats de reg'!L77*X19 -> 223.690411 | Y26: ='Necessitats de reg'!M77*Y19 -> 160.5589041 | Z26: ='Necessitats de reg'!B77*Z19 -> 180.6255708 | AA26: ='Necessitats de reg'!C77*AA19 -> 249.5515982 | AB26: ='Necessitats de reg'!D77*AB19 -> 429.886758 | AC26: ='Necessitats de reg'!E77*AC19 -> 558.9388128 | AD26: ='Necessitats de reg'!F77*AD19 -> 732.789589 | AE26: ='Necessitats de reg'!G77*AE19 -> 886.2 | AF26: ='Necessitats de reg'!H77*AF19 -> 980.1333333 | AG26: ='Necessitats de reg'!I77*AG19 -> 901.0666667 | AH26: ='Necessitats de reg'!J77*AH19 -> 625.4520548 | AI26: ='Necessitats de reg'!K77*AI19 -> 406.179726 | AJ26: ='Necessitats de reg'!L77*AJ19 -> 223.690411 | AK26: ='Necessitats de reg'!M77*AK19 -> 160.5589041 | AL26: =(SUM(Z26:AK26)/1000) -> 6.335073425 | AM26: m³/any
A27: Demanda total | B27: =B26+B25 -> 10162.62557 | C27: =C26+C25 -> 9265.551598 | D27: 10411.88676 | E27: 10218.93881 | F27: 10714.78959 | G27: 10546.2 | H27: 10962.13333 | I27: 10883.06667 | J27: 10285.45205 | K27: 10388.17973 | L27: 9883.690411 | M27: 10142.5589 | N27: =N26+N25 -> 10162.62557 | O27: =O26+O25 -> 9265.551598 | P27: 10411.88676 | Q27: 10218.93881 | R27: 10714.78959 | S27: 10546.2 | T27: 10962.13333 | U27: 10883.06667 | V27: 10285.45205 | W27: 10388.17973 | X27: 9883.690411 | Y27: 10142.5589 | Z27: =Z26+Z25 -> 10162.62557 | AA27: =AA26+AA25 -> 9265.551598 | AB27: 10411.88676 | AC27: 10218.93881 | AD27: 10714.78959 | AE27: 10546.2 | AF27: 10962.13333 | AG27: 10883.06667 | AH27: 10285.45205 | AI27: 10388.17973 | AJ27: 9883.690411 | AK27: 10142.5589 | AL27: =(SUM(Z27:AK27)/1000) -> 123.8650734 | AM27: m³/any
A28: Dèficit aigua (l) | B28: =IF(B24-B27<0,B24-B27,0) -> -10162.62557 | C28: =IF(C24-C27<0,C24-C27,0) -> -9265.551598 | D28: -10411.88676 | E28: -10218.93881 | F28: -10714.78959 | G28: -10546.2 | H28: -10962.13333 | I28: -10883.06667 | J28: -10285.45205 | K28: -10388.17973 | L28: -9883.690411 | M28: -10142.5589 | N28: =IF(N24-N27<0,N24-N27,0) -> -10162.62557 | O28: =IF(O24-O27<0,O24-O27,0) -> -9265.551598 | P28: -10411.88676 | Q28: -10218.93881 | R28: -10714.78959 | S28: -10546.2 | T28: -10962.13333 | U28: -10883.06667 | V28: -10285.45205 | W28: -10388.17973 | X28: -9883.690411 | Y28: -10142.5589 | Z28: =IF(Z24-Z27<0,Z24-Z27,0) -> -10162.62557 | AA28: =IF(AA24-AA27<0,AA24-AA27,0) -> -9265.551598 | AB28: -10411.88676 | AC28: -10218.93881 | AD28: -10714.78959 | AE28: -10546.2 | AF28: -10962.13333 | AG28: -10883.06667 | AH28: -10285.45205 | AI28: -10388.17973 | AJ28: -9883.690411 | AK28: -10142.5589 | AL28: =(SUM(Z28:AK28)/1000) -> -123.8650734 | AM28: m³/any
A29: Sobrant aigua (l) | B29: =IF(B24-B27>0,B24-B27,0) -> 0 | C29: =IF(C24-C27>0,C24-C27,0) -> 0 | D29: 0 | E29: 0 | F29: 0 | G29: 0 | H29: 0 | I29: 0 | J29: 0 | K29: 0 | L29: 0 | M29: 0 | N29: =IF(N24-N27>0,N24-N27,0) -> 0 | O29: =IF(O24-O27>0,O24-O27,0) -> 0 | P29: 0 | Q29: 0 | R29: 0 | S29: 0 | T29: 0 | U29: 0 | V29: 0 | W29: 0 | X29: 0 | Y29: 0 | Z29: =IF(Z24-Z27>0,Z24-Z27,0) -> 0 | AA29: =IF(AA24-AA27>0,AA24-AA27,0) -> 0 | AB29: 0 | AC29: 0 | AD29: 0 | AE29: 0 | AF29: 0 | AG29: 0 | AH29: 0 | AI29: 0 | AJ29: 0 | AK29: 0 | AL29: =(SUM(Z29:AK29)/1000) -> 0 | AM29: m³/any
A30: Volum estalviat | B30: =B24-B29 -> 0 | C30: =C24-C29 -> 0 | D30: 0 | E30: 0 | F30: 0 | G30: 0 | H30: 0 | I30: 0 | J30: 0 | K30: 0 | L30: 0 | M30: 0 | N30: 0 | O30: 0 | P30: 0 | Q30: 0 | R30: 0 | S30: 0 | T30: 0 | U30: 0 | V30: 0 | W30: 0 | X30: 0 | Y30: 0 | Z30: 0 | AA30: 0 | AB30: 0 | AC30: 0 | AD30: 0 | AE30: 0 | AF30: 0 | AG30: 0 | AH30: 0 | AI30: 0 | AJ30: 0 | AK30: 0 | AL30: =(SUM(Z30:AK30))/1000 -> 0 | AM30: m³/any

Sheet Consum (hidden)
B2: Dotacions | C2: lpd | F2: Consum instantani | G2: l/s | J2: Dotació mitjana (l/m³/dia) | K2: 3
B3: Dutxa | C3: =IF(C11=0,43,19.35) -> 43 | D3: =IF(Formularis!C3=TRUE(),1,0) -> 1 | F3: Rentamans | G3: 0.05
B4: Inodor (WC) | C4: =IF(C12=0,27,0) -> 27 | D4: =IF(Formularis!C4=TRUE(),1,0) -> 1 | F4: Lavabo | G4: 0.1 | H4: =APLICATIU!Q22 -> 1 | J4: Tipus de planta | K4: Coef. cultiu
B5: Lavabo | C5: =IF(C10=0,23,11.5) -> 23 | D5: =IF(Formularis!C5=TRUE(),1,0) -> 1 | F5: Dutxa | G5: 0.2 | H5: =APLICATIU!Q24 -> 0 | J5: Plantes de zona àrida | K5: 0.3
B6: Aixetes | C6: =IF(C10=0,47,23.5) -> 47 | D6: =IF(Formularis!C6=TRUE(),1,0) -> 1 | F6: Banyera ≥ 1,40 m | G6: 0.3 | H6: =APLICATIU!Q26 -> 0 | J6: Fruites | K6: 0.7
B7: Rentadora | C7: 16 | D7: =IF(Formularis!C7=TRUE(),1,0) -> 1 | F7: Banyera < 1,40 m | G7: 0.2 | H7: =APLICATIU!Q25 -> 0 | J7: Arbres | K7: 0.8
B8: Cuina | C8: 5 | D8: =IF(Formularis!C8=TRUE(),1,0) -> 1 | F8: Bidet | G8: 0.1 | H8: =APLICATIU!Q28 -> 0 | J8: Arbustos | K8: 0.8
B9: Rentavaixelles | C9: 7 | D9: =IF(Formularis!C9=TRUE(),1,0) -> 0 | F9: Inodor amb cisterna | G9: 0.1 | H9: =APLICATIU!Q29 -> 1 | J9: Flors | K9: 1
B10: Airejadors | C10: =IF(Formularis!C11=TRUE(),1,0) -> 0 | F10: Inodor amb fluxor | G10: 1.25 | H10: =APLICATIU!Q30 -> 0 | J10: Gespa | K10: 1
B11: Reguladors | C11: =IF(Formularis!C12=TRUE(),1,0) -> 0 | F11: Pica | G11: 0.2 | H11: =APLICATIU!S22 -> 1 | J11: Horta | K11: 1
B12: Inodors secs | C12: =IF(Formularis!C13=TRUE(),1,0) -> 0 | F12: Rentavaixelles | G12: 0.15 | H12: =APLICATIU!S24 -> 0
F13: Safareig | G13: 0.2 | H13: =APLICATIU!S28 -> 1 | J13: Sistema de reg | K13: Eficiència
F14: Rentadora | G14: 0.2 | H14: =APLICATIU!S29 -> 0 | J14: Mànega | K14: 0.65
F15: Aixeta aïllada | G15: 0.15 | H15: =APLICATIU!S30 -> 1 | J15: Aspersió | K15: 0.75
B16: Dotació domèstica | C16: =SUMPRODUCT(C3:C9,D3:D9) -> 161 | J16: Degoteig | K16: 0.8
B17: Residents | C17: =APLICATIU!D6 -> 2
B18: Grau d'ocupació | C18: =APLICATIU!D8 -> 1 | G18: Consum total | H18: =SUMPRODUCT(G4:G15,H4:H15) -> 0.75
B19: Dotació mitjana | C19: =C16*C17*C18 -> 322 | G19: Consum simultani | H19: =IF(H10=0,0.682*H18^0.45-0.14,1.7*H18^0.21-0.7) -> 0.4591863941 | J19: Dotació mitjana reg | K19: ='Necessitats de reg'!N77 -> 31.6172043
H20: =H19*3.6 -> 1.653071019
G21: Diàmetre necessari | H21: =SQRT(4*(H20/3600)/(2*PI()))*1000 -> 17.09757695
G24: Dint | H24: DN
F25: =IF(H21<=G25,1,0) -> 0 | G25: 14 | H25: 20
F26: =IF(AND($H$21<=G26,$H$21>G25),1,0) -> 1 | G26: 18 | H26: 25
F27: =IF(AND($H$21<=G27,$H$21>G26),1,0) -> 0 | G27: 23.2 | H27: 32
F28: 0 | G28: 29 | H28: 40
F29: 0 | G29: 36.2 | H29: 50
F30: 0 | G30: 45.8 | H30: 63
F31: 0 | G31: 55.4 | H31: 75

Sheet Necessitats de reg (hidden)
B2: 31 | C2: 28 | D2: 31 | E2: 30 | F2: 31 | G2: 30 | H2: 31 | I2: 31 | J2: 30 | K2: 31 | L2: 30 | M2: 31
A3: Mes | B3: Gener | C3: Febrer | D3: Març | E3: Abril | F3: Maig | G3: Juny | H3: Juliol | I3: Agost | J3: Setembre | K3: Octubre | L3: Novembre | M3: Desembre
A4: Eto mitjana (mm/mes) | B4: 29.68 | C4: 39.97 | D4: 66.98 | E4: 84.35 | F4: 110.4 | G4: 132.93 | H4: 147.02 | I4: 135.16 | J4: 94.56 | K4: 62.55 | L4: 35.97 | M4: 26.67 | P4: Sistema de reg | Q4: Eficiència
P5: Mànega | Q5: 0.65
A6: Plantes zona àrida | P6: Aspersió | Q6: 0.75
A7: Coeficient cultiu | B7: 0.3 | C7: 0.3 | D7: 0.3 | E7: 0.3 | F7: 0.3 | G7: 0.3 | H7: 0.3 | I7: 0.3 | J7: 0.3 | K7: 0.3 | L7: 0.3 | M7: 0.3 | P7: Degoteig | Q7: 0.8
A8: Demanda de reg | B8: =B7*(IF('Dades meteorològiques'!C11=0,'Necessitats de reg'!B4,'Dades meteorològiques'!C11)) -> 8.904 | C8: =C7*(IF('Dades meteorològiques'!D11=0,'Necessitats de reg'!C4,'Dades meteorològiques'!D11)) -> 11.991 | D8: =D7*(IF('Dades meteorològiques'!E11=0,'Necessitats de reg'!D4,'Dades meteorològiques'!E11)) -> 20.094 | E8: =E7*(IF('Dades meteorològiques'!F11=0,'Necessitats de reg'!E4,'Dades meteorològiques'!F11)) -> 25.305 | F8: =F7*(IF('Dades meteorològiques'!G11=0,'Necessitats de reg'!F4,'Dades meteorològiques'!G11)) -> 33.12 | G8: =G7*(IF('Dades meteorològiques'!H11=0,'Necessitats de reg'!G4,'Dades meteorològiques'!H11)) -> 39.879 | H8: =H7*(IF('Dades meteorològiques'!I11=0,'Necessitats de reg'!H4,'Dades meteorològiques'!I11)) -> 44.106 | I8: =I7*(IF('Dades meteorològiques'!J11=0,'Necessitats de reg'!I4,'Dades meteorològiques'!J11)) -> 40.548 | J8: =J7*(IF('Dades meteorològiques'!K11=0,'Necessitats de reg'!J4,'Dades meteorològiques'!K11)) -> 28.368 | K8: =K7*(IF('Dades meteorològiques'!L11=0,'Necessitats de reg'!K4,'Dades meteorològiques'!L11)) -> 18.765 | L8: =L7*(IF('Dades meteorològiques'!M11=0,'Necessitats de reg'!L4,'Dades meteorològiques'!M11)) -> 10.791 | M8: =M7*(IF('Dades meteorològiques'!N11=0,'Necessitats de reg'!M4,'Dades meteorològiques'!N11)) -> 8.001 | P8: 0 | Q8: 0
A9: Demanda de reg (l/mes) | B9: =APLICATIU!$E$18*B8 -> 0 | C9: =APLICATIU!$E$18*C8 -> 0 | D9: =APLICATIU!$E$18*D8 -> 0 | E9: =APLICATIU!$E$18*E8 -> 0 | F9: =APLICATIU!$E$18*F8 -> 0 | G9: =APLICATIU!$E$18*G8 -> 0 | H9: =APLICATIU!$E$18*H8 -> 0 | I9: =APLICATIU!$E$18*I8 -> 0 | J9: =APLICATIU!$E$18*J8 -> 0 | K9: =APLICATIU!$E$18*K8 -> 0 | L9: =APLICATIU!$E$18*L8 -> 0 | M9: =APLICATIU!$E$18*M8 -> 0
A10: Demanda de reg (l/dia) | B10: =B9/B2 -> 0 | C10: 0 | D10: 0 | E10: 0 | F10: 0 | G10: 0 | H10: 0 | I10: 0 | J10: 0 | K10: 0 | L10: 0 | M10: 0 | P10: Vegetació | Q10: Superfície (m²) | R10: Sistema de reg | S10: Eficiència
A11: Demanda segons sistema reg (l/dia) | B11: =B10/$S$11 -> 0 | C11: =C10/$S$11 -> 0 | D11: 0 | E11: 0 | F11: 0 | G11: 0 | H11: 0 | I11: 0 | J11: 0 | K11: 0 | L11: 0 | M11: 0 | P11: Plantes de zona àrida | Q11: =APLICATIU!$E$18 -> 0 | R11: =APLICATIU!D19 -> Mànega | S11: =VLOOKUP(R11,$P$5:$Q$8,2,FALSE) -> 0.65
A13: Fruites
A14: Coeficient cultiu | B14: 0.7 | C14: 0.7 | D14: 0.7 | E14: 0.7 | F14: 0.7 | G14: 0.7 | H14: 0.7 | I14: 0.7 | J14: 0.7 | K14: 0.7 | L14: 0.7 | M14: 0.7 | P14: Fruites | Q14: =APLICATIU!$E$20 -> 0 | R14: =APLICATIU!D20 -> Mànega | S14: =VLOOKUP(R14,$P$5:$Q$8,2,FALSE) -> 0.65
A15: Demanda de reg | B15: =B14*(IF('Dades meteorològiques'!C11=0,'Necessitats de reg'!B4,'Dades meteorològiques'!C11)) -> 20.776 | C15: =C14*(IF('Dades meteorològiques'!D11=0,'Necessitats de reg'!C4,'Dades meteorològiques'!D11)) -> 27.979 | D15: =D14*(IF('Dades meteorològiques'!E11=0,'Necessitats de reg'!D4,'Dades meteorològiques'!E11)) -> 46.886 | E15: =E14*(IF('Dades meteorològiques'!F11=0,'Necessitats de reg'!E4,'Dades meteorològiques'!F11)) -> 59.045 | F15: =F14*(IF('Dades meteorològiques'!G11=0,'Necessitats de reg'!F4,'Dades meteorològiques'!G11)) -> 77.28 | G15: =G14*(IF('Dades meteorològiques'!H11=0,'Necessitats de reg'!G4,'Dades meteorològiques'!H11)) -> 93.051 | H15: =H14*(IF('Dades meteorològiques'!I11=0,'Necessitats de reg'!H4,'Dades meteorològiques'!I11)) -> 102.914 | I15: =I14*(IF('Dades meteorològiques'!J11=0,'Necessitats de reg'!I4,'Dades meteorològiques'!J11)) -> 94.612 | J15: =J14*(IF('Dades meteorològiques'!K11=0,'Necessitats de reg'!J4,'Dades meteorològiques'!K11)) -> 66.192 | K15: =K14*(IF('Dades meteorològiques'!L11=0,'Necessitats de reg'!K4,'Dades meteorològiques'!L11)) -> 43.785 | L15: =L14*(IF('Dades meteorològiques'!M11=0,'Necessitats de reg'!L4,'Dades meteorològiques'!M11)) -> 25.179 | M15: =M14*(IF('Dades meteorològiques'!N11=0,'Necessitats de reg'!M4,'Dades meteorològiques'!N11)) -> 18.669 | P15: Arbres | Q15: =APLICATIU!$E$21 -> 0 | R15: =APLICATIU!D21 -> Mànega | S15: =VLOOKUP(R15,$P$5:$Q$8,2,FALSE) -> 0.65
A16: Demanda de reg (l/mes) | B16: =APLICATIU!$E$20*B15 -> 0 | C16: =APLICATIU!$E$20*C15 -> 0 | D16: =APLICATIU!$E$20*D15 -> 0 | E16: =APLICATIU!$E$20*E15 -> 0 | F16: =APLICATIU!$E$20*F15 -> 0 | G16: =APLICATIU!$E$20*G15 -> 0 | H16: =APLICATIU!$E$20*H15 -> 0 | I16: =APLICATIU!$E$20*I15 -> 0 | J16: =APLICATIU!$E$20*J15 -> 0 | K16: =APLICATIU!$E$20*K15 -> 0 | L16: =APLICATIU!$E$20*L15 -> 0 | M16: =APLICATIU!$E$20*M15 -> 0 | P16: Arbustos | Q16: =APLICATIU!$E$22 -> 0 | R16: =APLICATIU!D22 -> Mànega | S16: =VLOOKUP(R16,$P$5:$Q$8,2,FALSE) -> 0.65
A17: Demanda de reg (l/dia) | B17: =B16/B2 -> 0 | C17: 0 | D17: 0 | E17: 0 | F17: 0 | G17: 0 | H17: 0 | I17: 0 | J17: 0 | K17: 0 | L17: 0 | M17: 0
A18: Demanda segons sistema reg (l/dia) | B18: =B17/$S$14 -> 0 | C18: =C17/$S$14 -> 0 | D18: 0 | E18: 0 | F18: 0 | G18: 0 | H18: 0 | I18: 0 | J18: 0 | K18: 0 | L18: 0 | M18: 0 | P18: Flors | Q18: =APLICATIU!$E$24 -> 0 | R18: =APLICATIU!D24 -> Mànega | S18: =VLOOKUP(R18,$P$5:$Q$8,2,FALSE) -> 0.65
A20: Arbres | P20: Gespa | Q20: =APLICATIU!$E$25 -> 5 | R20: =APLICATIU!D25 -> Aspersió | S20: =VLOOKUP(R20,$P$5:$Q$7,2,FALSE) -> 0.75
A21: Coeficient cultiu | B21: 0.8 | C21: 0.8 | D21: 0.8 | E21: 0.8 | F21: 0.8 | G21: 0.8 | H21: 0.8 | I21: 0.8 | J21: 0.8 | K21: 0.8 | L21: 0.8 | M21: 0.8 | P21: Horta | Q21: =APLICATIU!$E$26 -> 0 | R21: =APLICATIU!D26 -> Mànega | S21: =VLOOKUP(R21,$P$5:$Q$8,2,FALSE) -> 0.65
A22: Demanda de reg | B22: =B21*(IF('Dades meteorològiques'!C11=0,'Necessitats de reg'!B4,'Dades meteorològiques'!C11)) -> 23.744 | C22: =C21*(IF('Dades meteorològiques'!D11=0,'Necessitats de reg'!C4,'Dades meteorològiques'!D11)) -> 31.976 | D22: =D21*(IF('Dades meteorològiques'!E11=0,'Necessitats de reg'!D4,'Dades meteorològiques'!E11)) -> 53.584 | E22: =E21*(IF('Dades meteorològiques'!F11=0,'Necessitats de reg'!E4,'Dades meteorològiques'!F11)) -> 67.48 | F22: =F21*(IF('Dades meteorològiques'!G11=0,'Necessitats de reg'!F4,'Dades meteorològiques'!G11)) -> 88.32 | G22: =G21*(IF('Dades meteorològiques'!H11=0,'Necessitats de reg'!G4,'Dades meteorològiques'!H11)) -> 106.344 | H22: =H21*(IF('Dades meteorològiques'!I11=0,'Necessitats de reg'!H4,'Dades meteorològiques'!I11)) -> 117.616 | I22: =I21*(IF('Dades meteorològiques'!J11=0,'Necessitats de reg'!I4,'Dades meteorològiques'!J11)) -> 108.128 | J22: =J21*(IF('Dades meteorològiques'!K11=0,'Necessitats de reg'!J4,'Dades meteorològiques'!K11)) -> 75.648 | K22: =K21*(IF('Dades meteorològiques'!L11=0,'Necessitats de reg'!K4,'Dades meteorològiques'!L11)) -> 50.04 | L22: =L21*(IF('Dades meteorològiques'!M11=0,'Necessitats de reg'!L4,'Dades meteorològiques'!M11)) -> 28.776 | M22: =M21*(IF('Dades meteorològiques'!N11=0,'Necessitats de reg'!M4,'Dades meteorològiques'!N11)) -> 21.336 | P22: Total | Q22: =SUM(Q11:Q21) -> 5
A23: Demanda de reg (l/mes) | B23: =APLICATIU!$E$21*B22 -> 0 | C23: =APLICATIU!$E$21*C22 -> 0 | D23: =APLICATIU!$E$21*D22 -> 0 | E23: =APLICATIU!$E$21*E22 -> 0 | F23: =APLICATIU!$E$21*F22 -> 0 | G23: =APLICATIU!$E$21*G22 -> 0 | H23: =APLICATIU!$E$21*H22 -> 0 | I23: =APLICATIU!$E$21*I22 -> 0 | J23: =APLICATIU!$E$21*J22 -> 0 | K23: =APLICATIU!$E$21*K22 -> 0 | L23: =APLICATIU!$E$21*L22 -> 0 | M23: =APLICATIU!$E$21*M22 -> 0
A24: Demanda de reg (l/dia) | B24: =B23/B2 -> 0 | C24: 0 | D24: 0 | E24: 0 | F24: 0 | G24: 0 | H24: 0 | I24: 0 | J24: 0 | K24: 0 | L24: 0 | M24: 0
A25: Demanda segons sistema reg (l/dia) | B25: =B24/$S$15 -> 0 | C25: =C24/$S$15 -> 0 | D25: 0 | E25: 0 | F25: 0 | G25: 0 | H25: 0 | I25: 0 | J25: 0 | K25: 0 | L25: 0 | M25: 0
A27: Arbustos
A28: Coeficient cultiu | B28: 0.8 | C28: 0.8 | D28: 0.8 | E28: 0.8 | F28: 0.8 | G28: 0.8 | H28: 0.8 | I28: 0.8 | J28: 0.8 | K28: 0.8 | L28: 0.8 | M28: 0.8
A29: Demanda de reg | B29: =B28*(IF('Dades meteorològiques'!C11=0,'Necessitats de reg'!B4,'Dades meteorològiques'!C11)) -> 23.744 | C29: =C28*(IF('Dades meteorològiques'!D11=0,'Necessitats de reg'!C4,'Dades meteorològiques'!D11)) -> 31.976 | D29: =D28*(IF('Dades meteorològiques'!E11=0,'Necessitats de reg'!D4,'Dades meteorològiques'!E11)) -> 53.584 | E29: =E28*(IF('Dades meteorològiques'!F11=0,'Necessitats de reg'!E4,'Dades meteorològiques'!F11)) -> 67.48 | F29: =F28*(IF('Dades meteorològiques'!G11=0,'Necessitats de reg'!F4,'Dades meteorològiques'!G11)) -> 88.32 | G29: =G28*(IF('Dades meteorològiques'!H11=0,'Necessitats de reg'!G4,'Dades meteorològiques'!H11)) -> 106.344 | H29: =H28*(IF('Dades meteorològiques'!I11=0,'Necessitats de reg'!H4,'Dades meteorològiques'!I11)) -> 117.616 | I29: =I28*(IF('Dades meteorològiques'!J11=0,'Necessitats de reg'!I4,'Dades meteorològiques'!J11)) -> 108.128 | J29: =J28*(IF('Dades meteorològiques'!K11=0,'Necessitats de reg'!J4,'Dades meteorològiques'!K11)) -> 75.648 | K29: =K28*(IF('Dades meteorològiques'!L11=0,'Necessitats de reg'!K4,'Dades meteorològiques'!L11)) -> 50.04 | L29: =L28*(IF('Dades meteorològiques'!M11=0,'Necessitats de reg'!L4,'Dades meteorològiques'!M11)) -> 28.776 | M29: =M28*(IF('Dades meteorològiques'!N11=0,'Necessitats de reg'!M4,'Dades meteorològiques'!N11)) -> 21.336
A30: Demanda de reg (l/mes) | B30: =APLICATIU!$E$22*B29 -> 0 | C30: =APLICATIU!$E$22*C29 -> 0 | D30: =APLICATIU!$E$22*D29 -> 0 | E30: =APLICATIU!$E$22*E29 -> 0 | F30: =APLICATIU!$E$22*F29 -> 0 | G30: =APLICATIU!$E$22*G29 -> 0 | H30: =APLICATIU!$E$22*H29 -> 0 | I30: =APLICATIU!$E$22*I29 -> 0 | J30: =APLICATIU!$E$22*J29 -> 0 | K30: =APLICATIU!$E$22*K29 -> 0 | L30: =APLICATIU!$E$22*L29 -> 0 | M30: =APLICATIU!$E$22*M29 -> 0
A31: Demanda de reg (l/dia) | B31: =B30/B2 -> 0 | C31: 0 | D31: 0 | E31: 0 | F31: 0 | G31: 0 | H31: 0 | I31: 0 | J31: 0 | K31: 0 | L31: 0 | M31: 0
A32: Demanda segons sistema reg (l/dia) | B32: =B31/$S$16 -> 0 | C32: =C31/$S$16 -> 0 | D32: 0 | E32: 0 | F32: 0 | G32: 0 | H32: 0 | I32: 0 | J32: 0 | K32: 0 | L32: 0 | M32: 0
A34: Flors
A35: Coeficient cultiu | B35: 1 | C35: 1 | D35: 1 | E35: 1 | F35: 1 | G35: 1 | H35: 1 | I35: 1 | J35: 1 | K35: 1 | L35: 1 | M35: 1
A36: Demanda de reg | B36: =B35*(IF('Dades meteorològiques'!C11=0,'Necessitats de reg'!B4,'Dades meteorològiques'!C11)) -> 29.68 | C36: =C35*(IF('Dades meteorològiques'!D11=0,'Necessitats de reg'!C4,'Dades meteorològiques'!D11)) -> 39.97 | D36: =D35*(IF('Dades meteorològiques'!E11=0,'Necessitats de reg'!D4,'Dades meteorològiques'!E11)) -> 66.98 | E36: =E35*(IF('Dades meteorològiques'!F11=0,'Necessitats de reg'!E4,'Dades meteorològiques'!F11)) -> 84.35 | F36: =F35*(IF('Dades meteorològiques'!G11=0,'Necessitats de reg'!F4,'Dades meteorològiques'!G11)) -> 110.4 | G36: =G35*(IF('Dades meteorològiques'!H11=0,'Necessitats de reg'!G4,'Dades meteorològiques'!H11)) -> 132.93 | H36: =H35*(IF('Dades meteorològiques'!I11=0,'Necessitats de reg'!H4,'Dades meteorològiques'!I11)) -> 147.02 | I36: =I35*(IF('Dades meteorològiques'!J11=0,'Necessitats de reg'!I4,'Dades meteorològiques'!J11)) -> 135.16 | J36: =J35*(IF('Dades meteorològiques'!K11=0,'Necessitats de reg'!J4,'Dades meteorològiques'!K11)) -> 94.56 | K36: =K35*(IF('Dades meteorològiques'!L11=0,'Necessitats de reg'!K4,'Dades meteorològiques'!L11)) -> 62.55 | L36: =L35*(IF('Dades meteorològiques'!M11=0,'Necessitats de reg'!L4,'Dades meteorològiques'!M11)) -> 35.97 | M36: =M35*(IF('Dades meteorològiques'!N11=0,'Necessitats de reg'!M4,'Dades meteorològiques'!N11)) -> 26.67
A37: Demanda de reg (l/mes) | B37: =APLICATIU!$E$24*B36 -> 0 | C37: =APLICATIU!$E$24*C36 -> 0 | D37: =APLICATIU!$E$24*D36 -> 0 | E37: =APLICATIU!$E$24*E36 -> 0 | F37: =APLICATIU!$E$24*F36 -> 0 | G37: =APLICATIU!$E$24*G36 -> 0 | H37: =APLICATIU!$E$24*H36 -> 0 | I37: =APLICATIU!$E$24*I36 -> 0 | J37: =APLICATIU!$E$24*J36 -> 0 | K37: =APLICATIU!$E$24*K36 -> 0 | L37: =APLICATIU!$E$24*L36 -> 0 | M37: =APLICATIU!$E$24*M36 -> 0
A38: Demanda de reg (l/dia) | B38: =B37/B2 -> 0 | C38: 0 | D38: 0 | E38: 0 | F38: 0 | G38: 0 | H38: 0 | I38: 0 | J38: 0 | K38: 0 | L38: 0 | M38: 0
A39: Demanda segons sistema reg (l/dia) | B39: =B38/$S$18 -> 0 | C39: =C38/$S$18 -> 0 | D39: 0 | E39: 0 | F39: 0 | G39: 0 | H39: 0 | I39: 0 | J39: 0 | K39: 0 | L39: 0 | M39: 0
A41: Gespa
A42: Coeficient cultiu | B42: 1 | C42: 1 | D42: 1 | E42: 1 | F42: 1 | G42: 1 | H42: 1 | I42: 1 | J42: 1 | K42: 1 | L42: 1 | M42: 1
A43: Demanda de reg | B43: =B42*(IF('Dades meteorològiques'!C11=0,'Necessitats de reg'!B4,'Dades meteorològiques'!C11)) -> 29.68 | C43: =C42*(IF('Dades meteorològiques'!D11=0,'Necessitats de reg'!C4,'Dades meteorològiques'!D11)) -> 39.97 | D43: =D42*(IF('Dades meteorològiques'!E11=0,'Necessitats de reg'!D4,'Dades meteorològiques'!E11)) -> 66.98 | E43: =E42*(IF('Dades meteorològiques'!F11=0,'Necessitats de reg'!E4,'Dades meteorològiques'!F11)) -> 84.35 | F43: =F42*(IF('Dades meteorològiques'!G11=0,'Necessitats de reg'!F4,'Dades meteorològiques'!G11)) -> 110.4 | G43: =G42*(IF('Dades meteorològiques'!H11=0,'Necessitats de reg'!G4,'Dades meteorològiques'!H11)) -> 132.93 | H43: =H42*(IF('Dades meteorològiques'!I11=0,'Necessitats de reg'!H4,'Dades meteorològiques'!I11)) -> 147.02 | I43: =I42*(IF('Dades meteorològiques'!J11=0,'Necessitats de reg'!I4,'Dades meteorològiques'!J11)) -> 135.16 | J43: =J42*(IF('Dades meteorològiques'!K11=0,'Necessitats de reg'!J4,'Dades meteorològiques'!K11)) -> 94.56 | K43: =K42*(IF('Dades meteorològiques'!L11=0,'Necessitats de reg'!K4,'Dades meteorològiques'!L11)) -> 62.55 | L43: =L42*(IF('Dades meteorològiques'!M11=0,'Necessitats de reg'!L4,'Dades meteorològiques'!M11)) -> 35.97 | M43: =M42*(IF('Dades meteorològiques'!N11=0,'Necessitats de reg'!M4,'Dades meteorològiques'!N11)) -> 26.67
A44: Demanda de reg (l/mes) | B44: =APLICATIU!$E$25*B43 -> 148.4 | C44: =APLICATIU!$E$25*C43 -> 199.85 | D44: =APLICATIU!$E$25*D43 -> 334.9 | E44: =APLICATIU!$E$25*E43 -> 421.75 | F44: =APLICATIU!$E$25*F43 -> 552 | G44: =APLICATIU!$E$25*G43 -> 664.65 | H44: =APLICATIU!$E$25*H43 -> 735.1 | I44: =APLICATIU!$E$25*I43 -> 675.8 | J44: =APLICATIU!$E$25*J43 -> 472.8 | K44: =APLICATIU!$E$25*K43 -> 312.75 | L44: =APLICATIU!$E$25*L43 -> 179.85 | M44: =APLICATIU!$E$25*M43 -> 133.35
A45: Demanda de reg (l/dia) | B45: =B44/B2 -> 4.787096774 | C45: 7.1375 | D45: 10.80322581 | E45: 14.05833333 | F45: 17.80645161 | G45: 22.155 | H45: 23.71290323 | I45: 21.8 | J45: 15.76 | K45: 10.08870968 | L45: 5.995 | M45: 4.301612903
A46: Demanda segons sistema reg (l/dia) | B46: =B45/$S$20 -> 6.382795699 | C46: =C45/$S$20 -> 9.516666667 | D46: 14.40430108 | E46: 18.74444444 | F46: 23.74193548 | G46: 29.54 | H46: 31.6172043 | I46: 29.06666667 | J46: 21.01333333 | K46: 13.4516129 | L46: 7.993333333 | M46: 5.735483871
A48: Horta
A49: Coeficient cultiu | B49: 1 | C49: 1 | D49: 1 | E49: 1 | F49: 1 | G49: 1 | H49: 1 | I49: 1 | J49: 1 | K49: 1 | L49: 1 | M49: 1
A50: Demanda de reg | B50: =B49*(IF('Dades meteorològiques'!C11=0,'Necessitats de reg'!B4,'Dades meteorològiques'!C11)) -> 29.68 | C50: =C49*(IF('Dades meteorològiques'!D11=0,'Necessitats de reg'!C4,'Dades meteorològiques'!D11)) -> 39.97 | D50: =D49*(IF('Dades meteorològiques'!E11=0,'Necessitats de reg'!D4,'Dades meteorològiques'!E11)) -> 66.98 | E50: =E49*(IF('Dades meteorològiques'!F11=0,'Necessitats de reg'!E4,'Dades meteorològiques'!F11)) -> 84.35 | F50: =F49*(IF('Dades meteorològiques'!G11=0,'Necessitats de reg'!F4,'Dades meteorològiques'!G11)) -> 110.4 | G50: =G49*(IF('Dades meteorològiques'!H11=0,'Necessitats de reg'!G4,'Dades meteorològiques'!H11)) -> 132.93 | H50: =H49*(IF('Dades meteorològiques'!I11=0,'Necessitats de reg'!H4,'Dades meteorològiques'!I11)) -> 147.02 | I50: =I49*(IF('Dades meteorològiques'!J11=0,'Necessitats de reg'!I4,'Dades meteorològiques'!J11)) -> 135.16 | J50: =J49*(IF('Dades meteorològiques'!K11=0,'Necessitats de reg'!J4,'Dades meteorològiques'!K11)) -> 94.56 | K50: =K49*(IF('Dades meteorològiques'!L11=0,'Necessitats de reg'!K4,'Dades meteorològiques'!L11)) -> 62.55 | L50: =L49*(IF('Dades meteorològiques'!M11=0,'Necessitats de reg'!L4,'Dades meteorològiques'!M11)) -> 35.97 | M50: =M49*(IF('Dades meteorològiques'!N11=0,'Necessitats de reg'!M4,'Dades meteorològiques'!N11)) -> 26.67
A51: Demanda de reg (l/mes) | B51: =APLICATIU!$E$26*B50 -> 0 | C51: =APLICATIU!$E$26*C50 -> 0 | D51: =APLICATIU!$E$26*D50 -> 0 | E51: =APLICATIU!$E$26*E50 -> 0 | F51: =APLICATIU!$E$26*F50 -> 0 | G51: =APLICATIU!$E$26*G50 -> 0 | H51: =APLICATIU!$E$26*H50 -> 0 | I51: =APLICATIU!$E$26*I50 -> 0 | J51: =APLICATIU!$E$26*J50 -> 0 | K51: =APLICATIU!$E$26*K50 -> 0 | L51: =APLICATIU!$E$26*L50 -> 0 | M51: =APLICATIU!$E$26*M50 -> 0
A52: Demanda de reg (l/dia) | B52: =B51/B2 -> 0 | C52: 0 | D52: 0 | E52: 0 | F52: 0 | G52: 0 | H52: 0 | I52: 0 | J52: 0 | K52: 0 | L52: 0 | M52: 0
A53: Demanda segons sistema reg (l/dia) | B53: =B52/$S$21 -> 0 | C53: =C52/$S$21 -> 0 | D53: 0 | E53: 0 | F53: 0 | G53: 0 | H53: 0 | I53: 0 | J53: 0 | K53: 0 | L53: 0 | M53: 0
A56: =APLICATIU!I4 -> Sant Andreu | B56: 31 | C56: 28 | D56: 31 | E56: 30 | F56: 31 | G56: 30 | H56: 31 | I56: 31 | J56: 30 | K56: 31 | L56: 30 | M56: 31
A57: Mes | B57: Gener | C57: Febrer | D57: Març | E57: Abril | F57: Maig | G57: Juny | H57: Juliol | I57: Agost | J57: Setembre | K57: Octubre | L57: Novembre | M57: Desembre
A58: Pluviometria (mm) | B58: =VLOOKUP(APLICATIU!$I$4,'Aigua recollida'!$A$22:$M$213,2,FALSE) -> 58 | C58: =VLOOKUP(APLICATIU!$I$4,'Aigua recollida'!$A$22:$M$213,3,FALSE) -> 63 | D58: =VLOOKUP(APLICATIU!$I$4,'Aigua recollida'!$A$22:$M$213,4,FALSE) -> 56 | E58: =VLOOKUP(APLICATIU!$I$4,'Aigua recollida'!$A$22:$M$213,5,FALSE) -> 59 | F58: =VLOOKUP(APLICATIU!$I$4,'Aigua recollida'!$A$22:$M$213,6,FALSE) -> 54 | G58: =VLOOKUP(APLICATIU!$I$4,'Aigua recollida'!$A$22:$M$213,7,FALSE) -> 30 | H58: =VLOOKUP(APLICATIU!$I$4,'Aigua recollida'!$A$22:$M$213,8,FALSE) -> 20 | I58: =VLOOKUP(APLICATIU!$I$4,'Aigua recollida'!$A$22:$M$213,9,FALSE) -> 46 | J58: =VLOOKUP(APLICATIU!$I$4,'Aigua recollida'!$A$22:$M$213,10,FALSE) -> 86 | K58: =VLOOKUP(APLICATIU!$I$4,'Aigua recollida'!$A$22:$M$213,11,FALSE) -> 91 | L58: =VLOOKUP(APLICATIU!$I$4,'Aigua recollida'!$A$22:$M$213,12,FALSE) -> 56 | M58: =VLOOKUP(APLICATIU!$I$4,'Aigua recollida'!$A$22:$M$213,13,FALSE) -> 58
A59: Pluja útil (%) | B59: 100 | C59: 100 | D59: 100 | E59: 20 | F59: 20 | G59: 0 | H59: 0 | I59: 0 | J59: 20 | K59: 40 | L59: 100 | M59: 100
A60: Plúja útil (l/m²) | B60: =(B58*B59)/100 -> 58 | C60: =(C58*C59)/100 -> 63 | D60: 56 | E60: 11.8 | F60: 10.8 | G60: =(G58*G59)/100 -> 0 | H60: =(H58*H59)/100 -> 0 | I60: =(I58*I59)/100 -> 0 | J60: 17.2 | K60: =(K58*K59)/100 -> 36.4 | L60: =(L58*L59)/100 -> 56 | M60: =(M58*M59)/100 -> 58
A61: Infiltració (%) | B61: 70 | C61: 70 | D61: 70 | E61: 70 | F61: 70 | G61: 70 | H61: 70 | I61: 70 | J61: 70 | K61: 70 | L61: 70 | M61: 70
A62: Pluja infiltrada (l/m²/mes) | B62: =(B60*B61)/100 -> 40.6 | C62: =(C60*C61)/100 -> 44.1 | D62: 39.2 | E62: 8.26 | F62: 7.56 | G62: 0 | H62: 0 | I62: 0 | J62: 12.04 | K62: 25.48 | L62: 39.2 | M62: 40.6
A63: Pluja infiltrada (l/m²/dia) | B63: =B62/365 -> 0.1112328767 | C63: =C62/365 -> 0.1208219178 | D63: 0.1073972603 | E63: 0.02263013699 | F63: 0.02071232877 | G63: 0 | H63: 0 | I63: 0 | J63: 0.03298630137 | K63: 0.06980821918 | L63: 0.1073972603 | M63: 0.1112328767
B66: Gener | C66: Febrer | D66: Març | E66: Abril | F66: Maig | G66: Juny | H66: Juliol | I66: Agost | J66: Setembre | K66: Octubre | L66: Novembre | M66: Desembre
A67: Plantes zona àrida | B67: =B11 -> 0 | C67: =C11 -> 0 | D67: 0 | E67: 0 | F67: 0 | G67: 0 | H67: 0 | I67: 0 | J67: 0 | K67: 0 | L67: 0 | M67: 0
A68: Fruites | B68: =B18 -> 0 | C68: =C18 -> 0 | D68: 0 | E68: 0 | F68: 0 | G68: 0 | H68: 0 | I68: 0 | J68: 0 | K68: 0 | L68: 0 | M68: 0
A69: Arbres | B69: =B25 -> 0 | C69: =C25 -> 0 | D69: 0 | E69: 0 | F69: 0 | G69: 0 | H69: 0 | I69: 0 | J69: 0 | K69: 0 | L69: 0 | M69: 0
A70: Arbustos | B70: =B32 -> 0 | C70: =C32 -> 0 | D70: 0 | E70: 0 | F70: 0 | G70: 0 | H70: 0 | I70: 0 | J70: 0 | K70: 0 | L70: 0 | M70: 0
A71: Flors | B71: =B39 -> 0 | C71: =C39 -> 0 | D71: 0 | E71: 0 | F71: 0 | G71: 0 | H71: 0 | I71: 0 | J71: 0 | K71: 0 | L71: 0 | M71: 0
A72: Gespa | B72: =B46 -> 6.382795699 | C72: =C46 -> 9.516666667 | D72: 14.40430108 | E72: 18.74444444 | F72: 23.74193548 | G72: 29.54 | H72: 31.6172043 | I72: 29.06666667 | J72: 21.01333333 | K72: 13.4516129 | L72: 7.993333333 | M72: 5.735483871
A73: Horta | B73: =B53 -> 0 | C73: =C52 -> 0 | D73: 0 | E73: 0 | F73: 0 | G73: 0 | H73: 0 | I73: 0 | J73: 0 | K73: 0 | L73: 0 | M73: 0
A74: Total demanda diaria (l/dia) | B74: =SUM(B67:B73) -> 6.382795699 | C74: =SUM(C67:C73) -> 9.516666667 | D74: =SUM(D67:D73) -> 14.40430108 | E74: 18.74444444 | F74: 23.74193548 | G74: 29.54 | H74: 31.6172043 | I74: 29.06666667 | J74: 21.01333333 | K74: 13.4516129 | L74: 7.993333333 | M74: 5.735483871
A75: Pluja infiltrada diària (l) | B75: =B63*$Q$22 -> 0.5561643836 | C75: =C63*$Q$22 -> 0.604109589 | D75: 0.5369863014 | E75: 0.1131506849 | F75: 0.1035616438 | G75: 0 | H75: 0 | I75: 0 | J75: 0.1649315068 | K75: 0.3490410959 | L75: =L63*$Q$22 -> 0.5369863014 | M75: 0.5561643836
N76: Màxim
A77: Demanda diària (l/dia) | B77: =B74-B75 -> 5.826631315 | C77: =C74-C75 -> 8.912557078 | D77: 13.86731477 | E77: 18.63129376 | F77: 23.63837384 | G77: 29.54 | H77: 31.6172043 | I77: 29.06666667 | J77: 20.84840183 | K77: 13.10257181 | L77: 7.456347032 | M77: 5.179319487 | N77: =MAX(B77:M77) -> 31.6172043

Sheet Tarifes (hidden)
B2: CANONADES PE40 PN10 | E2: BAIXANTS PVC | H2: DIPÒSITS | K2: DIPÒSITS CLORACIÓ | R2: FILTRE | U2: GRUP PRESSIÓ
B3: DN | C3: Preu | E3: DN | F3: Preu | H3: Volum | I3: Preu | K3: Volum | L3: Dipòsit | M3: Tapa | N3: Total | O3: Caseta | P3: Preu | R3: Superfície | S3: Preu | U3: Pressió | V3: Cabal | W3: Potència | X3: Preu
B4: 20 | C4: 1.77 | D4: =IF(#REF!<=B4,1,0) ->  | E4: 75 | F4: 4.73 | H4: 1.3 | I4: 245 | K4: 43 | L4: 69.94 | M4: 18.51 | N4: =L4+M4 -> 88.45 | O4: 1,28x1,96x0,94 | P4: 249 | R4: 80 | S4: 25.5 | U4: 34 | V4: 4.2 | W4: 0.65 | X4: 358
B5: 25 | C5: 2.7 | D5: =IF(AND($H$21<=B5,$H$21>B4),1,0) -> 0 | H5: 2.6 | I5: 570 | K5: 94 | L5: 83.31 | M5: 21.6 | N5: =L5+M5 -> 104.91 | O5: 1,28x1,96x0,94 | P5: 249 | R5: 160 | S5: =S4+25.5 -> 51 | U5: 45 | V5: 4.2 | W5: 0.77 | X5: 370.8
B6: 32 | C6: 4.45 | D6: =IF(AND($H$21<=B6,$H$21>B5),1,0) -> 0 | E6: Coef. accessoris | F6: 0.5 | H6: 3.2 | I6: 755 | K6: 190 | L6: 159.42 | M6: 26.74 | N6: 186.16 | O6: 1,28x1,96x0,94 | P6: 249 | R6: 240 | S6: =S5+25.5 -> 76.5 | U6: 58 | V6: 4.2 | W6: 1.01 | X6: 392.7 | Z6: Cabal | AA6: =APLICATIU!O33 -> 1.653071019
B7: 40 | C7: 6.9 | D7: 0 | H7: 3.9 | I7: 825 | K7: 297 | L7: 171.76 | M7: 31.88 | N7: 203.64 | O7: 1,86x2,26x1,25 | P7: 399 | R7: 320 | S7: 102 | U7: 35 | V7: 7.2 | W7: 0.78 | X7: 443 | Z7: Pressió | AA7: =APLICATIU!R33 -> 22.5
B8: 50 | C8: 10.66 | D8: 0 | H8: 4.8 | I8: 1150 | K8: 486 | L8: 212.9 | M8: 42.17 | N8: 255.07 | O8: 1,86x2,26x1,25 | P8: 399 | R8: 400 | S8: 127.5 | U8: 47 | V8: 7.2 | W8: 1.07 | X8: 448.4 | Z8: Cabal 4,20 | AA8: =IF(AND(AA6<=V4,AA7<=U4),X4,IF(AND(AA6<=V5,AA7<=U5),X5,IF(AND(AA6<=V6,AA7<=U6),X6,FALSE))) -> 358
B9: 63 | C9: 16.65 | D9: 0 | H9: 6.4 | I9: 1540 | K9: 905 | L9: 338.38 | M9: 48.34 | N9: 386.72 | O9: 1,85x2,26x1,83 | P9: 545 | U9: 59 | V9: 7.2 | W9: 1.31 | X9: 532.5 | Z9: Cabal 7,20 | AA9: =IF(AND(AA6<=V7,AA7<=U7),X7,IF(AND(AA6<=V8,AA7<=U8),X8,IF(AND(AA6<=V9,AA7<=U9),X9,FALSE))) -> 443
B10: 75 | C10: 23.85 | D10: 0 | H10: 9 | I10: 2800 | K10: 1002 | L10: 370.26 | M10: 48.34 | N10: 418.6 | O10: 1,85x2,26x1,83 | P10: 545 | R10: Aixeta | S10: 10.2 | Z10: Cabal màxim | AA10: =IF(AA6<=V4,V4,V7) -> 4.2
K11: 1050 | L11: 397 | M11: 91.54 | N11: 488.54 | O11: 1,85x2,26x1,83 | P11: 545 | U11: Regulador | V11: 110
B12: Coef. accessoris | C12: 8 | R12: Sobreeixidor | S12: 2.45 | Z12: Preu | AA12: =IF(AA10=7.2,AA9,AA8) -> 358
K13: Dosificador | L13: 685.4
R14: BOIA
H15: CASETA | K15: COMPTADOR EMISSOR D'IMPULSOS | R15: Diàmetre | S15: Preu | U15: mm | V15: Polzades
B16: Diàmetre canonada | C16: =VLOOKUP(1,Consum!F25:H30,3,FALSE) -> 25 | H16: Dimensions | I16: Preu | K16: Diàmetre | L16: Preu | R16: 0.375 | S16: 44.38 | U16: 20 | V16: 0.75
B17: Preu | C17: =VLOOKUP(C16,B4:C10,2,FALSE) -> 2.7 | H17: 1,28x1,96x0,94 | I17: 249 | K17: 0.5 | L17: 144 | R17: 0.5 | S17: 50.87 | U17: 25 | V17: 1
H18: 1,86x2,26x1,25 | I18: 399 | K18: 0.75 | L18: 152.5 | R18: 0.75 | S18: 76.51 | U18: 32 | V18: 1.25
H19: 1,85x2,26x1,83 | I19: 545 | K19: 1 | L19: 265.5 | R19: 1 | S19: 102.71 | U19: 40 | V19: 1.5
K20: 1.25 | L20: 302.9 | R20: 1.25 | S20: 145.81 | U20: 50 | V20: 2
K21: 1.5 | L21: 474.5 | R21: 1.5 | S21: 183.94 | U21: 63 | V21: 2.5
K22: 2 | L22: 890.3 | R22: 2 | S22: 264.92 | U22: 75 | V22: 3
K24: Diàm. Comptador | L24: =VLOOKUP(C16,U16:V22,2,FALSE) -> 1 | R24: Polzades boia | S24: =VLOOKUP(C16,U16:V22,2,FALSE) -> 1
B26: RAJOS UV | F26: Recanvis
B27: Cabal | C27: Làmpada UV | D27: Bomba | F27: Cabal | G27: Làmpada | H27: Tub quars
B28: 0.2 | C28: 120.1 | D28: 506 | F28: 0.2 | G28: 38.4 | H28: 12.9
B29: 0.6 | C29: 184.3 | D29: 440 | F29: 0.6 | G29: 71.6 | H29: 59.8
B30: 1.4 | C30: 504.1 | D30: 484 | F30: 1.4 | G30: 105.6 | H30: 52.8
B32: Cabal recirculació | C32: =IF(AND(APLICATIU!Q11>0,APLICATIU!Q11<=0.2),0.2,IF(AND(APLICATIU!Q11>0.2,APLICATIU!Q11<=0.6),0.6,IF(AND(APLICATIU!Q11>0.6,APLICATIU!Q11<=1.4),1.4,IF(AND(APLICATIU!Q11>1.4,APLICATIU!Q11<=400),1.4,FALSE)))) -> 0.2

Sheet Pressupost (hidden)
A3: RECOL·LECCIÓ I EMMAGATZEMATGE D'AIGÜES PLUVIALS
A6: Codi | B6: Concepte | C6: Preu unitari | D6: Amidament | E6: Import (sense IVA)
A7: 1 | B7: Dipòsit | C7: =VLOOKUP(F7,Tarifes!H4:I10,2,FALSE) -> 825 | D7: 1 | E7: =C7*D7 -> 825 | F7: =IF(AND(APLICATIU!J29>0,APLICATIU!J29<=1.3),1.3,IF(AND(APLICATIU!J29>1.3,APLICATIU!J29<=2.6),2.6,IF(AND(APLICATIU!J29>2.6,APLICATIU!J29<=3.2),3.2,IF(AND(APLICATIU!J29>3.2,APLICATIU!J29<=3.9),3.9,IF(AND(APLICATIU!J29>3.9,APLICATIU!J29<=4.8),4.8,IF(AND(APLICATIU!J29>4.8,APLICATIU!J29<=6.4),6.4,IF(AND(APLICATIU!J29>6.4,APLICATIU!J29<=9),9,IF(AND(APLICATIU!J29>9,APLICATIU!J29<=10000000),9)))))))) -> 3.9
A8: 2 | B8: Filtre | C8: =VLOOKUP(F8,Tarifes!R4:S8,2,FALSE) -> 25.5 | D8: 1 | E8: =C8*D8 -> 25.5 | F8: =IF(AND(APLICATIU!J8>0,APLICATIU!J8<=80),80,IF(AND(APLICATIU!J8>80,APLICATIU!J8<=160),160,IF(AND(APLICATIU!J8>160,APLICATIU!J8<=240),240,IF(AND(APLICATIU!J8>240,APLICATIU!J8<=320),320,IF(AND(APLICATIU!J8>320,APLICATIU!J8<=400),400,FALSE))))) -> 80
A9: 3 | B9: Aixeta | C9: =Tarifes!S10 -> 10.2 | D9: 1 | E9: 10.2
A10: 4 | B10: Sobreeixidor d'emergència, | C10: =Tarifes!S12 -> 2.45 | D10: 2 | E10: =C10*D10 -> 4.9
B11: TOTAL RECOL·LECCIÓ I EMMAGATZEMATGE D'AIGÜES PLUVIALS | E11: =SUM(E7:E10) -> 865.6
A14: CLORACIÓ
A17: Codi | B17: Concepte | C17: Preu unitari | D17: Amidament | E17: Import (sense IVA)
A18: 1 | B18: Dipòsit rectangular per aigua potable | C18: =VLOOKUP(APLICATIU!P9,Tarifes!K4:O11,4,FALSE) -> 186.16 | D18: 1 | E18: =C18*D18 -> 186.16
A19: 2 | B19: Vàlvula de flotador | C19: =VLOOKUP(Tarifes!S24,Tarifes!R16:S22,2,FALSE) -> 102.71 | D19: 1 | E19: =D19*C19 -> 102.71
A20: 3 | B20: Bomba dosificadora d'hipoclorit sòdic | C20: =Tarifes!L13 -> 685.4 | D20: 1 | E20: =C20*D20 -> 685.4
A21: 4 | B21: Caseta de resina per allotjament d'equips | C21: =VLOOKUP(C18,Tarifes!N4:P11,3,FALSE) -> 249 | D21: 1 | E21: =C21*D21 -> 249
B22: TOTAL CLORACIÓ | E22: =IF(APLICATIU!D10=0,"0,00 €",SUM(E18:E21)) -> 1223.27
A25: GRUP DE PRESSIÓ
A28: Codi | B28: Concepte | C28: Preu unitari | D28: Amidament | E28: Import (sense IVA)
A29: 1 | B29: Grup de pressió amb regulador | C29: =Tarifes!AA12 -> 358 | D29: 1 | E29: =D29*C29 -> 358
A30: 2 | B30: Comptador d'aigua amb emissor d'impulsos | C30: =VLOOKUP(Tarifes!L24,Tarifes!K17:L22,2,FALSE) -> 265.5 | D30: 1 | E30: =C30*D30 -> 265.5
A31: 3 | B31: Quadre elèctric per control del grup de pressió i el dosificador de clor | C31: 1000 | D31: 1 | E31: =D31*C31 -> 1000
B32: TOTAL GRUP DE PRESSIÓ | E32: =SUM(E29:E31) -> 1623.5
A35: CANONADES, VÀLVULES I ACCESSORIS
A38: Codi | B38: Concepte | C38: Preu unitari | D38: Amidament | E38: Import (sense IVA)
A39: 1 | B39: Canonada PVC gris per pluvials DN75. | C39: =Tarifes!F4 -> 4.73 | D39: 10 | E39: =D39*C39 -> 47.3
A40: 2 | B40: Accessoris baixants | C40: =C39*Tarifes!F6 -> 2.365 | D40: 2 | E40: =C40*D40 -> 4.73
A41: 6 | B41: Canonada PE40 | C41: =Tarifes!C17 -> 2.7 | D41: 10 | E41: =C41*D41 -> 27
A42: 7 | B42: Accessoris canonada pressió | C42: =C41*Tarifes!C12 -> 21.6 | D42: 7 | E42: =C42*D42 -> 151.2
B43: TOTAL CANONADES, VÀLVULES I ACCESSORIS | E43: =SUM(E39:E42) -> 230.23
A46: MÀ D'OBRA
A49: Codi | B49: Concepte | C49: Preu unitari | D49: Amidament | E49: Import (sense IVA)
A50: 1 | B50: Mà d'obra de tècnic especialista en lampisteria i fontaneria. Import per hores amb desplaçament inclòs | C50: 40 | D50: 10 | E50: 400
B51: TOTAL MÀ D'OBRA | E51: 400
A54: RAJOS UV
A57: Codi | B57: Concepte | C57: Preu unitari | D57: Amidament | E57: Import (sense IVA)
B58: Làmpada UV | C58: =VLOOKUP(Tarifes!C32,Tarifes!B28:C30,2,FALSE) -> 120.1 | D58: 1 | E58: =C58*D58 -> 120.1
B59: Bomba de recirculació | C59: =VLOOKUP(Tarifes!C32,Tarifes!B28:D30,3,FALSE) -> 506 | D59: 1 | E59: =C59*D59 -> 506
B60: Recanvi làmpada | C60: =VLOOKUP(Tarifes!C32,Tarifes!F28:G30,2,FALSE) -> 38.4 | D60: 1 | E60: =C60*D60 -> 38.4
B61: Recanvi tub quars | C61: =VLOOKUP(Tarifes!C32,Tarifes!F28:H30,3,FALSE) -> 12.9 | D61: 1 | E61: =C61*D61 -> 12.9
B62: Caseta de resina per allotjament d'equips | C62: =Tarifes!I17 -> 249 | D62: 1 | E62: =C62*D62 -> 249
B63: TOTAL DESINFECCIÓ PER RAJOS UV | E63: =IF(APLICATIU!D10=0,"0,00 €",SUM(E58:E62)) -> 926.4
B68: RESUM DE PRESSUPOST PLANTA PILOT
B69: RECOL·LECCIÓ I EMMAGATZEMATGE D'AIGÜES PLUVIALS | C69: =E11 -> 865.6
B70: =VLOOKUP(APLICATIU!O4,A81:B82,2,FALSE) -> CLORACIÓ | C70: =IF(B70="RAJOS UV",E63,E22) -> 1223.27
B71: GRUP DE PRESSIÓ | C71: =E32 -> 1623.5
B72: CANONADES, VÀLVULES I ACCESSORIS | C72: =E43 -> 230.23
B73: MÀ D'OBRA | C73: =E51 -> 400
B74: TOTAL PLANTA PILOT | C74: =SUM(C69:C73) -> 4342.6
B75: IVA 21% | C75: =C74*0.21 -> 911.946
B76: TOTAL PLANTA PILOT IVA INCLÒS | C76: =C74+C75 -> 5254.546
A80: DESINFECCIÓ
A81: DESINFECCIÓ AMB HIPOCLORIT | B81: CLORACIÓ | C81: =E22 -> 1223.27
A82: DESINFECCIÓ PER RAJOS UV | B82: RAJOS UV | C82: =E63 -> 926.4

Sheet Formularis (hidden)
B3: Dutxa | C3: TRUE | E3: DISPONIBILITAT
B4: Inodor (WC) | C4: TRUE | E4: DEMANDA
B5: Lavabo | C5: TRUE
B6: Aixetes | C6: TRUE
B7: Rentadora | C7: TRUE | E7: DESINFECCIÓ AMB HIPOCLORIT | F7: CLORACIÓ
B8: Cuina | C8: TRUE | E8: DESINFECCIÓ PER RAJOS UV | F8: RAJOS UV
B9: Rentavaixelles | C9: FALSE
E10: Cisterna
E11: Fluxor
